Workbook

Sheet 1931 xy
O1: DESIGN Data | T1: Transform and Calculate | Y1: Ellipse 0-360° x 2° | AB1: DESIGN CIE
A2: Center x | F2: 1. Open FilmStar DESIGN, load a design, set tolerance values (<Ctrl+N>) | N2: x | O2: y | P2: Y | R2: Angle | S2: Radius | T2: X | U2: Y | V2: Pass | X2: Angle | Y2: X | Z2: Y | AB2: Tolerance Box
A3: 0.267 | F3: 2. Click [Calculate] to draw scatter plot (1000 iterations, so not instant) | N3: 0.2595693469 | O3: 0.1429561526 | P3: 8.30247879 | R3: =(ATAN2($N3-$A$3, $O3-$A$6))-$C$15 -> -1.71521 | S3: =SQRT(($N3-$A$3)^2+($O3-$A$6)^2) -> 0.00927 | T3: =$S3*COS($R3) -> -0.00133 | U3: =$S3*SIN($R3) -> -0.00917 | V3: =IF(($T3/$A$9)^2 +($U3/$A$12)^2<=1, "OK", "NG") -> OK | X3: 0.00000 | Y3: =$A$3+$A$9*COS($X3)*COS($C$15)-$A$12*SIN($X3)*SIN($C$15) -> 0.2705355339 | Z3: =$A$6+$A$9*COS($X3)*SIN($C$15)+$A$12*SIN($X3)*COS($C$15) -> 0.1449644661 | AB3: =TEXT($Y3, "0" & DeciSep() & "00000") & ListSep() & TEXT($Z3, "0" & DeciSep() & "00000") -> 0.27054,0.14496
F4: 3. Click [Copy] to transfer ellipse to DESIGN or MEASURE Tolerance Box | N4: 0.2665395439 | O4: 0.1489009559 | P4: 8.494370461 | R4: 3.21056 | S4: 0.00061 | T4: =$S4*COS($R4) -> -0.00061 | U4: =$S4*SIN($R4) -> -0.00004 | V4: OK | X4: 0.03491 | Y4: 0.2707801569 | Z4: 0.1452133966 | AB4: =TEXT($Y4, "0" & DeciSep() & "00000") & ListSep() & TEXT($Z4, "0" & DeciSep() & "00000") -> 0.27078,0.14521
A5: Center y | N5: 0.2700839639 | O5: 0.1513006985 | P5: 8.673055649 | R5: 1.52270 | S5: 0.00417 | T5: 0.00020 | U5: 0.00416 | V5: OK | X5: 0.06981 | Y5: 0.2710201743 | Z5: 0.1454663312 | AB5: =TEXT($Y5, "0" & DeciSep() & "00000") & ListSep() & TEXT($Z5, "0" & DeciSep() & "00000") -> 0.27102,0.14547
A6: 0.1485 | N6: 0.2654658258 | O6: 0.1455110162 | P6: 8.323009491 | R6: -1.25961 | S6: 0.00336 | T6: 0.00103 | U6: -0.00320 | V6: OK | X6: 0.10472 | Y6: 0.2712552937 | Z6: 0.145722962 | AB6: =TEXT($Y6, "0" & DeciSep() & "00000") & ListSep() & TEXT($Z6, "0" & DeciSep() & "00000") -> 0.27126,0.14572
N7: 0.2668703794 | O7: 0.1478454173 | P7: 8.49071312 | R7: -0.98089 | S7: 0.00067 | T7: 0.00037 | U7: -0.00055 | V7: OK | X7: 0.13963 | Y7: 0.2714852288 | Z7: 0.1459829761 | AB7: =TEXT($Y7, "0" & DeciSep() & "00000") & ListSep() & TEXT($Z7, "0" & DeciSep() & "00000") -> 0.27149,0.14598
A8: Radius a | N8: 0.267744571 | O8: 0.1492699981 | P8: 8.527223587 | R8: 1.58758 | S8: 0.00107 | T8: -0.00002 | U8: 0.00107 | V8: OK | X8: 0.17453 | Y8: 0.2717096992 | Z8: 0.1462460568 | AB8: =TEXT($Y8, "0" & DeciSep() & "00000") & ListSep() & TEXT($Z8, "0" & DeciSep() & "00000") -> 0.27171,0.14625
A9: 0.005 | N9: 0.2721005976 | O9: 0.1485927999 | P9: 8.58116436 | R9: 0.80359 | S9: 0.00510 | T9: 0.00354 | U9: 0.00367 | V9: OK | X9: 0.20944 | Y9: 0.2719284317 | Z9: 0.1465118837 | AB9: =TEXT($Y9, "0" & DeciSep() & "00000") & ListSep() & TEXT($Z9, "0" & DeciSep() & "00000") -> 0.27193,0.14651
N10: 0.2699796259 | O10: 0.1502423584 | P10: 8.592855453 | R10: 1.31453 | S10: 0.00345 | T10: 0.00087 | U10: 0.00334 | V10: OK | X10: 0.24435 | Y10: 0.2721411596 | Z10: 0.1467801327 | AB10: =TEXT($Y10, "0" & DeciSep() & "00000") & ListSep() & TEXT($Z10, "0" & DeciSep() & "00000") -> 0.27214,0.14678
A11: Radius b | N11: 0.2663790286 | O11: 0.1458330303 | P11: 8.405960083 | R11: -1.01416 | S11: 0.00274 | T11: 0.00145 | U11: -0.00232 | V11: OK | X11: 0.27925 | Y11: 0.2723476238 | Z11: 0.1470504771 | AB11: =TEXT($Y11, "0" & DeciSep() & "00000") & ListSep() & TEXT($Z11, "0" & DeciSep() & "00000") -> 0.27235,0.14705
A12: 0.01 | N12: 0.2645517588 | O12: 0.1511423588 | P12: 8.562549591 | R12: 3.10348 | S12: 0.00360 | T12: -0.00360 | U12: 0.00014 | V12: OK | X12: 0.31416 | Y12: 0.2725475727 | Z12: 0.1473225876 | AB12: =TEXT($Y12, "0" & DeciSep() & "00000") & ListSep() & TEXT($Z12, "0" & DeciSep() & "00000") -> 0.27255,0.14732
N13: 0.2676422298 | O13: 0.1460510045 | P13: 8.361793518 | R13: -0.52893 | S13: 0.00253 | T13: 0.00219 | U13: -0.00128 | V13: OK | X13: 0.34907 | Y13: 0.2727407627 | Z13: 0.1475961325 | AB13: =TEXT($Y13, "0" & DeciSep() & "00000") & ListSep() & TEXT($Z13, "0" & DeciSep() & "00000") -> 0.27274,0.14760
A14: Tilt (deg) | N14: 0.262524575 | O14: 0.1470253766 | P14: 8.42845726 | R14: -2.03790 | S14: 0.00471 | T14: -0.00212 | U14: -0.00421 | V14: OK | X14: 0.38397 | Y14: 0.2729269586 | Z14: 0.1478707787 | AB14: =TEXT($Y14, "0" & DeciSep() & "00000") & ListSep() & TEXT($Z14, "0" & DeciSep() & "00000") -> 0.27293,0.14787
A15: -45 | C15: =$A$15*PI()/180 -> -0.7854 | N15: 0.2684110403 | O15: 0.1483329833 | P15: 8.537218094 | R15: 0.66758 | S15: 0.00142 | T15: 0.00112 | U15: 0.00088 | V15: OK | X15: 0.41888 | Y15: 0.2731059333 | Z15: 0.1481461914 | AB15: =TEXT($Y15, "0" & DeciSep() & "00000") & ListSep() & TEXT($Z15, "0" & DeciSep() & "00000") -> 0.27311,0.14815
N16: 0.2645235658 | O16: 0.1486179233 | P16: 8.434824944 | R16: 3.87941 | S16: 0.00248 | T16: -0.00183 | U16: -0.00167 | V16: OK | X16: 0.45379 | Y16: 0.2732774689 | Z16: 0.1484220353 | AB16: =TEXT($Y16, "0" & DeciSep() & "00000") & ListSep() & TEXT($Z16, "0" & DeciSep() & "00000") -> 0.27328,0.14842
A17: Yield | N17: 0.2650517523 | O17: 0.1480844319 | P17: 8.438611031 | R17: -2.14604 | S17: 0.00199 | T17: -0.00108 | U17: -0.00167 | V17: OK | X17: 0.48869 | Y17: 0.2734413564 | Z17: 0.1486979741 | AB17: =TEXT($Y17, "0" & DeciSep() & "00000") & ListSep() & TEXT($Z17, "0" & DeciSep() & "00000") -> 0.27344,0.14870
A18: 96.9% | N18: 0.261744529 | O18: 0.1432513744 | P18: 8.202982903 | R18: -1.57145 | S18: 0.00743 | T18: -0.00000 | U18: -0.00743 | V18: OK | X18: 0.52360 | Y18: 0.2735973961 | Z18: 0.1489736717 | AB18: =TEXT($Y18, "0" & DeciSep() & "00000") & ListSep() & TEXT($Z18, "0" & DeciSep() & "00000") -> 0.27360,0.14897
N19: 0.2718703747 | O19: 0.1532301307 | P19: 8.723555565 | R19: 1.55619 | S19: 0.00679 | T19: 0.00010 | U19: 0.00679 | V19: OK | X19: 0.55851 | Y19: 0.2737453979 | Z19: 0.1492487923 | AB19: =TEXT($Y19, "0" & DeciSep() & "00000") & ListSep() & TEXT($Z19, "0" & DeciSep() & "00000") -> 0.27375,0.14925
N20: 0.273339808 | O20: 0.1551056653 | P20: 8.815302849 | R20: 1.59133 | S20: 0.00916 | T20: -0.00019 | U20: 0.00915 | V20: OK | X20: 0.59341 | Y20: 0.2738851814 | Z20: 0.1495230005 | AB20: =TEXT($Y20, "0" & DeciSep() & "00000") & ListSep() & TEXT($Z20, "0" & DeciSep() & "00000") -> 0.27389,0.14952
N21: 0.2615809143 | O21: 0.1439643949 | P21: 8.250934601 | R21: -1.65931 | S21: 0.00707 | T21: -0.00062 | U21: -0.00704 | V21: OK | X21: 0.62832 | Y21: 0.2740165764 | Z21: 0.1497959624 | AB21: =TEXT($Y21, "0" & DeciSep() & "00000") & ListSep() & TEXT($Z21, "0" & DeciSep() & "00000") -> 0.27402,0.14980
N22: 0.2635230124 | O22: 0.1499965787 | P22: 8.53123188 | R22: 3.52054 | S22: 0.00379 | T22: -0.00352 | U22: -0.00140 | V22: OK | X22: 0.66323 | Y22: 0.2741394228 | Z22: 0.1500673453 | AB22: =TEXT($Y22, "0" & DeciSep() & "00000") & ListSep() & TEXT($Z22, "0" & DeciSep() & "00000") -> 0.27414,0.15007
N23: 0.2680571675 | O23: 0.1481304616 | P23: 8.524559975 | R23: 0.44912 | S23: 0.00112 | T23: 0.00101 | U23: 0.00049 | V23: OK | X23: 0.69813 | Y23: 0.2742535709 | Z23: 0.1503368187 | AB23: =TEXT($Y23, "0" & DeciSep() & "00000") & ListSep() & TEXT($Z23, "0" & DeciSep() & "00000") -> 0.27425,0.15034
N24: 0.268357724 | O24: 0.1496822238 | P24: 8.502713203 | R24: 1.50181 | S24: 0.00180 | T24: 0.00012 | U24: 0.00180 | V24: OK | X24: 0.73304 | Y24: 0.2743588816 | Z24: 0.1506040542 | AB24: =TEXT($Y24, "0" & DeciSep() & "00000") & ListSep() & TEXT($Z24, "0" & DeciSep() & "00000") -> 0.27436,0.15060
N25: 0.2699459791 | O25: 0.1515608877 | P25: 8.683432579 | R25: 1.58992 | S25: 0.00425 | T25: -0.00008 | U25: 0.00425 | V25: OK | X25: 0.76794 | Y25: 0.2744552267 | Z25: 0.1508687262 | AB25: =TEXT($Y25, "0" & DeciSep() & "00000") & ListSep() & TEXT($Z25, "0" & DeciSep() & "00000") -> 0.27446,0.15087
N26: 0.266453743 | O26: 0.1497929394 | P26: 8.547311783 | R26: 2.75594 | S26: 0.00140 | T26: -0.00130 | U26: 0.00053 | V26: OK | X26: 0.80285 | Y26: 0.2745424887 | Z26: 0.1511305123 | AB26: =TEXT($Y26, "0" & DeciSep() & "00000") & ListSep() & TEXT($Z26, "0" & DeciSep() & "00000") -> 0.27454,0.15113
N27: 0.2667892575 | O27: 0.1467700303 | P27: 8.412552834 | R27: -0.90662 | S27: 0.00174 | T27: 0.00107 | U27: -0.00137 | V27: OK | X27: 0.83776 | Y27: 0.2746205614 | Z27: 0.1513890935 | AB27: =TEXT($Y27, "0" & DeciSep() & "00000") & ListSep() & TEXT($Z27, "0" & DeciSep() & "00000") -> 0.27462,0.15139
N28: 0.2656398118 | O28: 0.1478194147 | P28: 8.451769829 | R28: -1.89226 | S28: 0.00152 | T28: -0.00048 | U28: -0.00144 | V28: OK | X28: 0.87266 | Y28: 0.2746893496 | Z28: 0.1516441548 | AB28: =TEXT($Y28, "0" & DeciSep() & "00000") & ListSep() & TEXT($Z28, "0" & DeciSep() & "00000") -> 0.27469,0.15164
N29: 0.2673006952 | O29: 0.1530249417 | P29: 8.619200706 | R29: 2.28984 | S29: 0.00453 | T29: -0.00299 | U29: 0.00341 | V29: OK | X29: 0.90757 | Y29: 0.2747487695 | Z29: 0.1518953855 | AB29: =TEXT($Y29, "0" & DeciSep() & "00000") & ListSep() & TEXT($Z29, "0" & DeciSep() & "00000") -> 0.27475,0.15190
N30: 0.2649210095 | O30: 0.1486503035 | P30: 8.477625847 | R30: 3.85482 | S30: 0.00208 | T30: -0.00158 | U30: -0.00136 | V30: OK | X30: 0.94248 | Y30: 0.2747987487 | Z30: 0.1521424793 | AB30: =TEXT($Y30, "0" & DeciSep() & "00000") & ListSep() & TEXT($Z30, "0" & DeciSep() & "00000") -> 0.27480,0.15214
N31: 0.2704885006 | O31: 0.149215892 | P31: 8.523509026 | R31: 0.98780 | S31: 0.00356 | T31: 0.00196 | U31: 0.00297 | V31: OK | X31: 0.97738 | Y31: 0.2748392264 | Z31: 0.1523851354 | AB31: =TEXT($Y31, "0" & DeciSep() & "00000") & ListSep() & TEXT($Z31, "0" & DeciSep() & "00000") -> 0.27484,0.15239
N32: 0.2654133439 | O32: 0.1490046531 | P32: 8.469025612 | R32: 3.61905 | S32: 0.00166 | T32: -0.00148 | U32: -0.00077 | V32: OK | X32: 1.01229 | Y32: 0.2748701531 | Z32: 0.1526230581 | AB32: =TEXT($Y32, "0" & DeciSep() & "00000") & ListSep() & TEXT($Z32, "0" & DeciSep() & "00000") -> 0.27487,0.15262
N33: 0.2614535093 | O33: 0.1452371329 | P33: 8.377923965 | R33: -1.82444 | S33: 0.00644 | T33: -0.00161 | U33: -0.00623 | V33: OK | X33: 1.04720 | Y33: 0.2748914913 | Z33: 0.1528559574 | AB33: =TEXT($Y33, "0" & DeciSep() & "00000") & ListSep() & TEXT($Z33, "0" & DeciSep() & "00000") -> 0.27489,0.15286
N34: 0.2660322189 | O34: 0.1515968442 | P34: 8.64533329 | R34: 2.65908 | S34: 0.00324 | T34: -0.00287 | U34: 0.00151 | V34: OK | X34: 1.08210 | Y34: 0.2749032149 | Z34: 0.1530835497 | AB34: =TEXT($Y34, "0" & DeciSep() & "00000") & ListSep() & TEXT($Z34, "0" & DeciSep() & "00000") -> 0.27490,0.15308
N35: 0.2636708915 | O35: 0.1516115367 | P35: 8.538234711 | R35: 3.17536 | S35: 0.00456 | T35: -0.00455 | U35: -0.00015 | V35: OK | X35: 1.11701 | Y35: 0.2749053097 | Z35: 0.1533055576 | AB35: =TEXT($Y35, "0" & DeciSep() & "00000") & ListSep() & TEXT($Z35, "0" & DeciSep() & "00000") -> 0.27491,0.15331
N36: 0.2720348835 | O36: 0.1516818553 | P36: 8.628324509 | R36: 1.34899 | S36: 0.00596 | T36: 0.00131 | U36: 0.00581 | V36: OK | X36: 1.15192 | Y36: 0.2748977731 | Z36: 0.1535217107 | AB36: =TEXT($Y36, "0" & DeciSep() & "00000") & ListSep() & TEXT($Z36, "0" & DeciSep() & "00000") -> 0.27490,0.15352
N37: 0.2661964595 | O37: 0.1481779665 | P37: 8.494831085 | R37: -1.97503 | S37: 0.00087 | T37: -0.00034 | U37: -0.00080 | V37: OK | X37: 1.18682 | Y37: 0.2748806142 | Z37: 0.1537317456 | AB37: =TEXT($Y37, "0" & DeciSep() & "00000") & ListSep() & TEXT($Z37, "0" & DeciSep() & "00000") -> 0.27488,0.15373
N38: 0.2653737068 | O38: 0.1462877989 | P38: 8.41983223 | R38: -1.41933 | S38: 0.00275 | T38: 0.00041 | U38: -0.00271 | V38: OK | X38: 1.22173 | Y38: 0.2748538541 | Z38: 0.1539354064 | AB38: =TEXT($Y38, "0" & DeciSep() & "00000") & ListSep() & TEXT($Z38, "0" & DeciSep() & "00000") -> 0.27485,0.15394
N39: 0.2624409199 | O39: 0.1436869651 | P39: 8.27190876 | R39: -1.54371 | S39: 0.00663 | T39: 0.00018 | U39: -0.00663 | V39: OK | X39: 1.25664 | Y39: 0.2748175252 | Z39: 0.1541324451 | AB39: =TEXT($Y39, "0" & DeciSep() & "00000") & ListSep() & TEXT($Z39, "0" & DeciSep() & "00000") -> 0.27482,0.15413
N40: 0.2702661157 | O40: 0.1527002603 | P40: 8.653844833 | R40: 1.69526 | S40: 0.00532 | T40: -0.00066 | U40: 0.00528 | V40: OK | X40: 1.29154 | Y40: 0.2747716719 | Z40: 0.1543226214 | AB40: =TEXT($Y40, "0" & DeciSep() & "00000") & ListSep() & TEXT($Z40, "0" & DeciSep() & "00000") -> 0.27477,0.15432
N41: 0.2627597153 | O41: 0.1460795701 | P41: 8.394375801 | R41: -1.83751 | S41: 0.00488 | T41: -0.00129 | U41: -0.00471 | V41: OK | X41: 1.32645 | Y41: 0.2747163499 | Z41: 0.1545057038 | AB41: =TEXT($Y41, "0" & DeciSep() & "00000") & ListSep() & TEXT($Z41, "0" & DeciSep() & "00000") -> 0.27472,0.15451
N42: 0.2695038319 | O42: 0.1486562639 | P42: 8.483469009 | R42: 0.84773 | S42: 0.00251 | T42: 0.00166 | U42: 0.00188 | V42: OK | X42: 1.36136 | Y42: 0.2746516268 | Z42: 0.1546814692 | AB42: =TEXT($Y42, "0" & DeciSep() & "00000") & ListSep() & TEXT($Z42, "0" & DeciSep() & "00000") -> 0.27465,0.15468
N43: 0.2683464587 | O43: 0.152139321 | P43: 8.657032013 | R43: 2.00184 | S43: 0.00388 | T43: -0.00162 | U43: 0.00353 | V43: OK | X43: 1.39626 | Y43: 0.2745775814 | Z43: 0.1548497034 | AB43: =TEXT($Y43, "0" & DeciSep() & "00000") & ListSep() & TEXT($Z43, "0" & DeciSep() & "00000") -> 0.27458,0.15485
N44: 0.2692532241 | O44: 0.1491856575 | P44: 8.515324593 | R44: 1.08080 | S44: 0.00236 | T44: 0.00111 | U44: 0.00208 | V44: OK | X44: 1.43117 | Y44: 0.2744943039 | Z44: 0.1550102014 | AB44: =TEXT($Y44, "0" & DeciSep() & "00000") & ListSep() & TEXT($Z44, "0" & DeciSep() & "00000") -> 0.27449,0.15501
N45: 0.2704607844 | O45: 0.1488901526 | P45: 8.505937576 | R45: 0.89766 | S45: 0.00348 | T45: 0.00217 | U45: 0.00272 | V45: OK | X45: 1.46608 | Y45: 0.2744018957 | Z45: 0.1551627678 | AB45: =TEXT($Y45, "0" & DeciSep() & "00000") & ListSep() & TEXT($Z45, "0" & DeciSep() & "00000") -> 0.27440,0.15516
N46: 0.2691597939 | O46: 0.1486886889 | P46: 8.550222397 | R46: 0.87254 | S46: 0.00217 | T46: 0.00139 | U46: 0.00166 | V46: OK | X46: 1.50098 | Y46: 0.2743004694 | Z46: 0.1553072167 | AB46: =TEXT($Y46, "0" & DeciSep() & "00000") & ListSep() & TEXT($Z46, "0" & DeciSep() & "00000") -> 0.27430,0.15531
N47: 0.262634635 | O47: 0.1494774818 | P47: 8.519578934 | R47: 3.70671 | S47: 0.00447 | T47: -0.00378 | U47: -0.00240 | V47: OK | X47: 1.53589 | Y47: 0.2741901487 | Z47: 0.155443372 | AB47: =TEXT($Y47, "0" & DeciSep() & "00000") & ListSep() & TEXT($Z47, "0" & DeciSep() & "00000") -> 0.27419,0.15544
N48: 0.2660622597 | O48: 0.1490133405 | P48: 8.501925468 | R48: 3.42613 | S48: 0.00107 | T48: -0.00103 | U48: -0.00030 | V48: OK | X48: 1.57080 | Y48: 0.2740710678 | Z48: 0.1555710678 | AB48: =TEXT($Y48, "0" & DeciSep() & "00000") & ListSep() & TEXT($Z48, "0" & DeciSep() & "00000") -> 0.27407,0.15557
N49: 0.2653051317 | O49: 0.1482017338 | P49: 8.395567894 | R49: -2.18200 | S49: 0.00172 | T49: -0.00099 | U49: -0.00141 | V49: OK | X49: 1.60570 | Y49: 0.273943372 | Z49: 0.1556901487 | AB49: =TEXT($Y49, "0" & DeciSep() & "00000") & ListSep() & TEXT($Z49, "0" & DeciSep() & "00000") -> 0.27394,0.15569
N50: 0.2623440623 | O50: 0.1449002624 | P50: 8.308811188 | R50: -1.69804 | S50: 0.00589 | T50: -0.00075 | U50: -0.00584 | V50: OK | X50: 1.64061 | Y50: 0.2738072167 | Z50: 0.1558004694 | AB50: =TEXT($Y50, "0" & DeciSep() & "00000") & ListSep() & TEXT($Z50, "0" & DeciSep() & "00000") -> 0.27381,0.15580
N51: 0.2695613503 | O51: 0.1499097645 | P51: 8.590869904 | R51: 1.28855 | S51: 0.00292 | T51: 0.00081 | U51: 0.00281 | V51: OK | X51: 1.67552 | Y51: 0.2736627678 | Z51: 0.1559018957 | AB51: =TEXT($Y51, "0" & DeciSep() & "00000") & ListSep() & TEXT($Z51, "0" & DeciSep() & "00000") -> 0.27366,0.15590
N52: 0.2724619508 | O52: 0.1507296115 | P52: 8.612985611 | R52: 1.17296 | S52: 0.00590 | T52: 0.00229 | U52: 0.00544 | V52: OK | X52: 1.71042 | Y52: 0.2735102014 | Z52: 0.1559943039 | AB52: =TEXT($Y52, "0" & DeciSep() & "00000") & ListSep() & TEXT($Z52, "0" & DeciSep() & "00000") -> 0.27351,0.15599
N53: 0.2670075595 | O53: 0.1497242898 | P53: 8.534562111 | R53: 2.35002 | S53: 0.00122 | T53: -0.00086 | U53: 0.00087 | V53: OK | X53: 1.74533 | Y53: 0.2733497034 | Z53: 0.1560775814 | AB53: =TEXT($Y53, "0" & DeciSep() & "00000") & ListSep() & TEXT($Z53, "0" & DeciSep() & "00000") -> 0.27335,0.15608
N54: 0.2688253224 | O54: 0.1508078724 | P54: 8.638475418 | R54: 1.68702 | S54: 0.00294 | T54: -0.00034 | U54: 0.00292 | V54: OK | X54: 1.78024 | Y54: 0.2731814692 | Z54: 0.1561516268 | AB54: =TEXT($Y54, "0" & DeciSep() & "00000") & ListSep() & TEXT($Z54, "0" & DeciSep() & "00000") -> 0.27318,0.15615
N55: 0.2658495605 | O55: 0.1469468474 | P55: 8.480561256 | R55: -1.42293 | S55: 0.00193 | T55: 0.00028 | U55: -0.00191 | V55: OK | X55: 1.81514 | Y55: 0.2730057038 | Z55: 0.1562163499 | AB55: =TEXT($Y55, "0" & DeciSep() & "00000") & ListSep() & TEXT($Z55, "0" & DeciSep() & "00000") -> 0.27301,0.15622
N56: 0.2615776658 | O56: 0.1446899921 | P56: 8.297129631 | R56: -1.74369 | S56: 0.00663 | T56: -0.00114 | U56: -0.00653 | V56: OK | X56: 1.85005 | Y56: 0.2728226214 | Z56: 0.1562716719 | AB56: =TEXT($Y56, "0" & DeciSep() & "00000") & ListSep() & TEXT($Z56, "0" & DeciSep() & "00000") -> 0.27282,0.15627
N57: 0.2739628553 | O57: 0.152275905 | P57: 8.740481377 | R57: 1.28230 | S57: 0.00792 | T57: 0.00225 | U57: 0.00759 | V57: OK | X57: 1.88496 | Y57: 0.2726324451 | Z57: 0.1563175252 | AB57: =TEXT($Y57, "0" & DeciSep() & "00000") & ListSep() & TEXT($Z57, "0" & DeciSep() & "00000") -> 0.27263,0.15632
N58: 0.263376683 | O58: 0.1438827664 | P58: 8.311601639 | R58: -1.45076 | S58: 0.00587 | T58: 0.00070 | U58: -0.00583 | V58: OK | X58: 1.91986 | Y58: 0.2724354064 | Z58: 0.1563538541 | AB58: =TEXT($Y58, "0" & DeciSep() & "00000") & ListSep() & TEXT($Z58, "0" & DeciSep() & "00000") -> 0.27244,0.15635
N59: 0.2683056593 | O59: 0.1480220258 | P59: 8.475841522 | R59: 0.43447 | S59: 0.00139 | T59: 0.00126 | U59: 0.00059 | V59: OK | X59: 1.95477 | Y59: 0.2722317456 | Z59: 0.1563806142 | AB59: =TEXT($Y59, "0" & DeciSep() & "00000") & ListSep() & TEXT($Z59, "0" & DeciSep() & "00000") -> 0.27223,0.15638
N60: 0.2666012049 | O60: 0.1485217959 | P60: 8.485620499 | R60: 3.87239 | S60: 0.00040 | T60: -0.00030 | U60: -0.00027 | V60: OK | X60: 1.98968 | Y60: 0.2720217107 | Z60: 0.1563977731 | AB60: =TEXT($Y60, "0" & DeciSep() & "00000") & ListSep() & TEXT($Z60, "0" & DeciSep() & "00000") -> 0.27202,0.15640
N61: 0.2721472383 | O61: 0.1513034403 | P61: 8.650461197 | R61: 1.28412 | S61: 0.00586 | T61: 0.00166 | U61: 0.00562 | V61: OK | X61: 2.02458 | Y61: 0.2718055576 | Z61: 0.1564053097 | AB61: =TEXT($Y61, "0" & DeciSep() & "00000") & ListSep() & TEXT($Z61, "0" & DeciSep() & "00000") -> 0.27181,0.15641
N62: 0.2654530704 | O62: 0.1482065767 | P62: 8.468462944 | R62: -2.16874 | S62: 0.00157 | T62: -0.00089 | U62: -0.00130 | V62: OK | X62: 2.05949 | Y62: 0.2715835497 | Z62: 0.1564032149 | AB62: =TEXT($Y62, "0" & DeciSep() & "00000") & ListSep() & TEXT($Z62, "0" & DeciSep() & "00000") -> 0.27158,0.15640
N63: 0.2677293122 | O63: 0.147429347 | P63: 8.476275444 | R63: -0.18741 | S63: 0.00130 | T63: 0.00127 | U63: -0.00024 | V63: OK | X63: 2.09440 | Y63: 0.2713559574 | Z63: 0.1563914913 | AB63: =TEXT($Y63, "0" & DeciSep() & "00000") & ListSep() & TEXT($Z63, "0" & DeciSep() & "00000") -> 0.27136,0.15639
N64: 0.2727181017 | O64: 0.1515366584 | P64: 8.62604332 | R64: 1.27358 | S64: 0.00647 | T64: 0.00190 | U64: 0.00619 | V64: OK | X64: 2.12930 | Y64: 0.2711230581 | Z64: 0.1563701531 | AB64: =TEXT($Y64, "0" & DeciSep() & "00000") & ListSep() & TEXT($Z64, "0" & DeciSep() & "00000") -> 0.27112,0.15637
N65: 0.2655233741 | O65: 0.1498616338 | P65: 8.540435791 | R65: 3.18209 | S65: 0.00201 | T65: -0.00201 | U65: -0.00008 | V65: OK | X65: 2.16421 | Y65: 0.2708851354 | Z65: 0.1563392264 | AB65: =TEXT($Y65, "0" & DeciSep() & "00000") & ListSep() & TEXT($Z65, "0" & DeciSep() & "00000") -> 0.27089,0.15634
N66: 0.2674396038 | O66: 0.1501748413 | P66: 8.529102325 | R66: 2.09951 | S66: 0.00173 | T66: -0.00087 | U66: 0.00150 | V66: OK | X66: 2.19911 | Y66: 0.2706424793 | Z66: 0.1562987487 | AB66: =TEXT($Y66, "0" & DeciSep() & "00000") & ListSep() & TEXT($Z66, "0" & DeciSep() & "00000") -> 0.27064,0.15630
N67: 0.2624443769 | O67: 0.1498611569 | P67: 8.510900497 | R67: =(ATAN2($N67-$A$3, $O67-$A$6))-$C$15 -> 3.63665 | S67: =SQRT(($N67-$A$3)^2+($O67-$A$6)^2) -> 0.00475 | T67: -0.00418 | U67: -0.00226 | V67: =IF(($T67/$A$9)^2 +($U67/$A$12)^2<=1, "OK", "NG") -> OK | X67: 2.23402 | Y67: =$A$3+$A$9*COS($X67)*COS($C$15)-$A$12*SIN($X67)*SIN($C$15) -> 0.2703953855 | Z67: =$A$6+$A$9*COS($X67)*SIN($C$15)+$A$12*SIN($X67)*COS($C$15) -> 0.1562487695 | AB67: =TEXT($Y67, "0" & DeciSep() & "00000") & ListSep() & TEXT($Z67, "0" & DeciSep() & "00000") -> 0.27040,0.15625
N68: 0.2658842504 | O68: 0.1477038264 | P68: 8.521853447 | R68: -1.73641 | S68: 0.00137 | T68: =$S68*COS($R68) -> -0.00023 | U68: =$S68*SIN($R68) -> -0.00135 | V68: OK | X68: 2.26893 | Y68: 0.2701441548 | Z68: 0.1561893496 | AB68: =TEXT($Y68, "0" & DeciSep() & "00000") & ListSep() & TEXT($Z68, "0" & DeciSep() & "00000") -> 0.27014,0.15619
N69: 0.2617284954 | O69: 0.1465584338 | P69: 8.438751221 | R69: -2.00330 | S69: 0.00562 | T69: -0.00235 | U69: -0.00510 | V69: OK | X69: 2.30383 | Y69: 0.2698890935 | Z69: 0.1561205614 | AB69: =TEXT($Y69, "0" & DeciSep() & "00000") & ListSep() & TEXT($Z69, "0" & DeciSep() & "00000") -> 0.26989,0.15612
N70: 0.2684218884 | O70: 0.1483881474 | P70: 8.451774597 | R70: 0.70689 | S70: 0.00143 | T70: 0.00108 | U70: 0.00093 | V70: OK | X70: 2.33874 | Y70: 0.2696305123 | Z70: 0.1560424887 | AB70: =TEXT($Y70, "0" & DeciSep() & "00000") & ListSep() & TEXT($Z70, "0" & DeciSep() & "00000") -> 0.26963,0.15604
N71: 0.2648654282 | O71: 0.1493097842 | P71: 8.51822567 | R71: 3.56440 | S71: 0.00228 | T71: -0.00208 | U71: -0.00094 | V71: OK | X71: 2.37365 | Y71: 0.2693687262 | Z71: 0.1559552267 | AB71: =TEXT($Y71, "0" & DeciSep() & "00000") & ListSep() & TEXT($Z71, "0" & DeciSep() & "00000") -> 0.26937,0.15596
N72: 0.259067446 | O72: 0.1433274299 | P72: 8.216794968 | R72: -1.77837 | S72: 0.00947 | T72: -0.00195 | U72: -0.00927 | V72: NG | X72: 2.40855 | Y72: 0.2691040542 | Z72: 0.1558588816 | AB72: =TEXT($Y72, "0" & DeciSep() & "00000") & ListSep() & TEXT($Z72, "0" & DeciSep() & "00000") -> 0.26910,0.15586
N73: 0.2702449858 | O73: 0.1507561207 | P73: 8.583087921 | R73: 1.39294 | S73: 0.00395 | T73: 0.00070 | U73: 0.00389 | V73: OK | X73: 2.44346 | Y73: 0.2688368187 | Z73: 0.1557535709 | AB73: =TEXT($Y73, "0" & DeciSep() & "00000") & ListSep() & TEXT($Z73, "0" & DeciSep() & "00000") -> 0.26884,0.15575
N74: 0.267519325 | O74: 0.1455040276 | P74: 8.423371315 | R74: -0.61376 | S74: 0.00304 | T74: 0.00249 | U74: -0.00175 | V74: OK | X74: 2.47837 | Y74: 0.2685673453 | Z74: 0.1556394228 | AB74: =TEXT($Y74, "0" & DeciSep() & "00000") & ListSep() & TEXT($Z74, "0" & DeciSep() & "00000") -> 0.26857,0.15564
N75: 0.2685764432 | O75: 0.1514828354 | P75: 8.598689079 | R75: 1.87000 | S75: 0.00337 | T75: -0.00099 | U75: 0.00322 | V75: OK | X75: 2.51327 | Y75: 0.2682959624 | Z75: 0.1555165764 | AB75: =TEXT($Y75, "0" & DeciSep() & "00000") & ListSep() & TEXT($Z75, "0" & DeciSep() & "00000") -> 0.26830,0.15552
N76: 0.2651385963 | O76: 0.1472678483 | P76: 8.44994545 | R76: -1.77147 | S76: 0.00223 | T76: -0.00044 | U76: -0.00219 | V76: OK | X76: 2.54818 | Y76: 0.2680230005 | Z76: 0.1553851814 | AB76: =TEXT($Y76, "0" & DeciSep() & "00000") & ListSep() & TEXT($Z76, "0" & DeciSep() & "00000") -> 0.26802,0.15539
N77: 0.2652132213 | O77: 0.1471136808 | P77: 8.445342064 | R77: -1.69634 | S77: 0.00226 | T77: -0.00028 | U77: -0.00224 | V77: OK | X77: 2.58309 | Y77: 0.2677487923 | Z77: 0.1552453979 | AB77: =TEXT($Y77, "0" & DeciSep() & "00000") & ListSep() & TEXT($Z77, "0" & DeciSep() & "00000") -> 0.26775,0.15525
N78: 0.265150547 | O78: 0.1490247995 | P78: 8.493063927 | R78: 3.65050 | S78: 0.00192 | T78: -0.00168 | U78: -0.00094 | V78: OK | X78: 2.61799 | Y78: 0.2674736717 | Z78: 0.1550973961 | AB78: =TEXT($Y78, "0" & DeciSep() & "00000") & ListSep() & TEXT($Z78, "0" & DeciSep() & "00000") -> 0.26747,0.15510
N79: 0.2684088647 | O79: 0.1488648653 | P79: 8.511101723 | R79: 1.03881 | S79: 0.00146 | T79: 0.00074 | U79: 0.00125 | V79: OK | X79: 2.65290 | Y79: 0.2671979741 | Z79: 0.1549413564 | AB79: =TEXT($Y79, "0" & DeciSep() & "00000") & ListSep() & TEXT($Z79, "0" & DeciSep() & "00000") -> 0.26720,0.15494
N80: 0.2658704519 | O80: 0.1473495066 | P80: 8.433803558 | R80: -1.56161 | S80: 0.00161 | T80: 0.00001 | U80: -0.00161 | V80: OK | X80: 2.68781 | Y80: 0.2669220353 | Z80: 0.1547774689 | AB80: =TEXT($Y80, "0" & DeciSep() & "00000") & ListSep() & TEXT($Z80, "0" & DeciSep() & "00000") -> 0.26692,0.15478
N81: 0.2674962282 | O81: 0.1469697505 | P81: 8.428967476 | R81: -0.47182 | S81: 0.00161 | T81: 0.00143 | U81: -0.00073 | V81: OK | X81: 2.72271 | Y81: 0.2666461914 | Z81: 0.1546059333 | AB81: =TEXT($Y81, "0" & DeciSep() & "00000") & ListSep() & TEXT($Z81, "0" & DeciSep() & "00000") -> 0.26665,0.15461
N82: 0.2616634071 | O82: 0.14775756 | P82: 8.416314125 | R82: -2.21796 | S82: 0.00539 | T82: -0.00325 | U82: -0.00430 | V82: OK | X82: 2.75762 | Y82: 0.2663707787 | Z82: 0.1544269586 | AB82: =TEXT($Y82, "0" & DeciSep() & "00000") & ListSep() & TEXT($Z82, "0" & DeciSep() & "00000") -> 0.26637,0.15443
N83: 0.2684458792 | O83: 0.1517736763 | P83: 8.695416451 | R83: 1.94029 | S83: 0.00358 | T83: -0.00129 | U83: 0.00334 | V83: OK | X83: 2.79253 | Y83: 0.2660961325 | Z83: 0.1542407627 | AB83: =TEXT($Y83, "0" & DeciSep() & "00000") & ListSep() & TEXT($Z83, "0" & DeciSep() & "00000") -> 0.26610,0.15424
N84: 0.2699161768 | O84: 0.1482976824 | P84: 8.467195511 | R84: 0.71613 | S84: 0.00292 | T84: 0.00221 | U84: 0.00192 | V84: OK | X84: 2.82743 | Y84: 0.2658225876 | Z84: 0.1540475727 | AB84: =TEXT($Y84, "0" & DeciSep() & "00000") & ListSep() & TEXT($Z84, "0" & DeciSep() & "00000") -> 0.26582,0.15405
N85: 0.2694203556 | O85: 0.1491156518 | P85: 8.505228043 | R85: 1.03448 | S85: 0.00250 | T85: 0.00128 | U85: 0.00215 | V85: OK | X85: 2.86234 | Y85: 0.2655504771 | Z85: 0.1538476238 | AB85: =TEXT($Y85, "0" & DeciSep() & "00000") & ListSep() & TEXT($Z85, "0" & DeciSep() & "00000") -> 0.26555,0.15385
N86: 0.2659862936 | O86: 0.1467260271 | P86: 8.416168213 | R86: -1.30455 | S86: 0.00204 | T86: 0.00054 | U86: -0.00197 | V86: OK | X86: 2.89725 | Y86: 0.2652801327 | Z86: 0.1536411596 | AB86: =TEXT($Y86, "0" & DeciSep() & "00000") & ListSep() & TEXT($Z86, "0" & DeciSep() & "00000") -> 0.26528,0.15364
N87: 0.2705213428 | O87: 0.147897616 | P87: 8.516160011 | R87: 0.61597 | S87: 0.00357 | T87: 0.00292 | U87: 0.00206 | V87: OK | X87: 2.93215 | Y87: 0.2650118837 | Z87: 0.1534284317 | AB87: =TEXT($Y87, "0" & DeciSep() & "00000") & ListSep() & TEXT($Z87, "0" & DeciSep() & "00000") -> 0.26501,0.15343
N88: 0.2747817338 | O88: 0.1513092816 | P88: 8.679542542 | R88: 1.13185 | S88: 0.00827 | T88: 0.00352 | U88: 0.00749 | V88: NG | X88: 2.96706 | Y88: 0.2647460568 | Z88: 0.1532096992 | AB88: =TEXT($Y88, "0" & DeciSep() & "00000") & ListSep() & TEXT($Z88, "0" & DeciSep() & "00000") -> 0.26475,0.15321
N89: 0.2605630457 | O89: 0.1431981474 | P89: 8.265091896 | R89: -1.66719 | S89: 0.00834 | T89: -0.00080 | U89: -0.00830 | V89: OK | X89: 3.00197 | Y89: 0.2644829761 | Z89: 0.1529852288 | AB89: =TEXT($Y89, "0" & DeciSep() & "00000") & ListSep() & TEXT($Z89, "0" & DeciSep() & "00000") -> 0.26448,0.15299
N90: 0.2697746754 | O90: 0.1469597518 | P90: 8.462013245 | R90: 0.27864 | S90: 0.00317 | T90: 0.00305 | U90: 0.00087 | V90: OK | X90: 3.03687 | Y90: 0.264222962 | Z90: 0.1527552937 | AB90: =TEXT($Y90, "0" & DeciSep() & "00000") & ListSep() & TEXT($Z90, "0" & DeciSep() & "00000") -> 0.26422,0.15276
N91: 0.2665030658 | O91: 0.1476987153 | P91: 8.504486084 | R91: -1.34052 | S91: 0.00094 | T91: 0.00022 | U91: -0.00092 | V91: OK | X91: 3.07178 | Y91: 0.2639663312 | Z91: 0.1525201743 | AB91: =TEXT($Y91, "0" & DeciSep() & "00000") & ListSep() & TEXT($Z91, "0" & DeciSep() & "00000") -> 0.26397,0.15252
N92: 0.2695321441 | O92: 0.1529086232 | P92: 8.669985771 | R92: 1.83484 | S92: 0.00508 | T92: -0.00133 | U92: 0.00491 | V92: OK | X92: 3.10669 | Y92: 0.2637133966 | Z92: 0.1522801569 | AB92: =TEXT($Y92, "0" & DeciSep() & "00000") & ListSep() & TEXT($Z92, "0" & DeciSep() & "00000") -> 0.26371,0.15228
N93: 0.2661989629 | O93: 0.1494579315 | P93: 8.505228996 | R93: 3.05263 | S93: 0.00125 | T93: -0.00124 | U93: 0.00011 | V93: OK | X93: 3.14159 | Y93: 0.2634644661 | Z93: 0.1520355339 | AB93: =TEXT($Y93, "0" & DeciSep() & "00000") & ListSep() & TEXT($Z93, "0" & DeciSep() & "00000") -> 0.26346,0.15204
N94: 0.2652578652 | O94: 0.1479016989 | P94: 8.492376328 | R94: -2.02538 | S94: 0.00184 | T94: -0.00081 | U94: -0.00165 | V94: OK | X94: 3.17650 | Y94: 0.2632198431 | Z94: 0.1517866034 | AB94: =TEXT($Y94, "0" & DeciSep() & "00000") & ListSep() & TEXT($Z94, "0" & DeciSep() & "00000") -> 0.26322,0.15179
N95: 0.2706675231 | O95: 0.1501677185 | P95: 8.581728935 | R95: 1.21218 | S95: 0.00403 | T95: 0.00141 | U95: 0.00377 | V95: OK | X95: 3.21141 | Y95: 0.2629798257 | Z95: 0.1515336688 | AB95: =TEXT($Y95, "0" & DeciSep() & "00000") & ListSep() & TEXT($Z95, "0" & DeciSep() & "00000") -> 0.26298,0.15153
N96: 0.2626500726 | O96: 0.1497836858 | P96: 8.470412254 | R96: 3.64003 | S96: 0.00454 | T96: -0.00398 | U96: -0.00217 | V96: OK | X96: 3.24631 | Y96: 0.2627447063 | Z96: 0.151277038 | AB96: =TEXT($Y96, "0" & DeciSep() & "00000") & ListSep() & TEXT($Z96, "0" & DeciSep() & "00000") -> 0.26274,0.15128
N97: 0.269099921 | O97: 0.1486407369 | P97: 8.522129059 | R97: 0.85232 | S97: 0.00210 | T97: 0.00139 | U97: 0.00158 | V97: OK | X97: 3.28122 | Y97: 0.2625147712 | Z97: 0.1510170239 | AB97: =TEXT($Y97, "0" & DeciSep() & "00000") & ListSep() & TEXT($Z97, "0" & DeciSep() & "00000") -> 0.26251,0.15102
N98: 0.2694863677 | O98: 0.1511173844 | P98: 8.620534897 | R98: 1.59646 | S98: 0.00361 | T98: -0.00009 | U98: 0.00361 | V98: OK | X98: 3.31613 | Y98: 0.2622903008 | Z98: 0.1507539432 | AB98: =TEXT($Y98, "0" & DeciSep() & "00000") & ListSep() & TEXT($Z98, "0" & DeciSep() & "00000") -> 0.26229,0.15075
N99: 0.2686991692 | O99: 0.1517293453 | P99: 8.636242867 | R99: 1.87183 | S99: 0.00365 | T99: -0.00108 | U99: 0.00348 | V99: OK | X99: 3.35103 | Y99: 0.2620715683 | Z99: 0.1504881163 | AB99: =TEXT($Y99, "0" & DeciSep() & "00000") & ListSep() & TEXT($Z99, "0" & DeciSep() & "00000") -> 0.26207,0.15049
N100: 0.2645075917 | O100: 0.1460834891 | P100: 8.389047623 | R100: -1.58626 | S100: 0.00347 | T100: -0.00005 | U100: -0.00347 | V100: OK | X100: 3.38594 | Y100: 0.2618588404 | Z100: 0.1502198673 | AB100: =TEXT($Y100, "0" & DeciSep() & "00000") & ListSep() & TEXT($Z100, "0" & DeciSep() & "00000") -> 0.26186,0.15022
N101: 0.2646483481 | O101: 0.1465517879 | P101: 8.457649231 | R101: -1.66435 | S101: 0.00305 | T101: -0.00029 | U101: -0.00304 | V101: OK | X101: 3.42085 | Y101: 0.2616523762 | Z101: 0.1499495229 | AB101: =TEXT($Y101, "0" & DeciSep() & "00000") & ListSep() & TEXT($Z101, "0" & DeciSep() & "00000") -> 0.26165,0.14995
N102: 0.2632367015 | O102: 0.1428629011 | P102: 8.287494659 | R102: -1.37404 | S102: 0.00678 | T102: 0.00132 | U102: -0.00665 | V102: OK | X102: 3.45575 | Y102: 0.2614524273 | Z102: 0.1496774124 | AB102: =TEXT($Y102, "0" & DeciSep() & "00000") & ListSep() & TEXT($Z102, "0" & DeciSep() & "00000") -> 0.26145,0.14968
N103: 0.268969804 | O103: 0.1456006169 | P103: 8.41100502 | R103: -0.18864 | S103: 0.00351 | T103: 0.00344 | U103: -0.00066 | V103: OK | X103: 3.49066 | Y103: 0.2612592373 | Z103: 0.1494038675 | AB103: =TEXT($Y103, "0" & DeciSep() & "00000") & ListSep() & TEXT($Z103, "0" & DeciSep() & "00000") -> 0.26126,0.14940
N104: 0.2633257508 | O104: 0.14596802 | P104: 8.312772751 | R104: -1.75281 | S104: 0.00446 | T104: -0.00081 | U104: -0.00439 | V104: OK | X104: 3.52557 | Y104: 0.2610730414 | Z104: 0.1491292213 | AB104: =TEXT($Y104, "0" & DeciSep() & "00000") & ListSep() & TEXT($Z104, "0" & DeciSep() & "00000") -> 0.26107,0.14913
N105: 0.2622489035 | O105: 0.1483892649 | P105: 8.404251099 | R105: -2.33289 | S105: 0.00475 | T105: -0.00328 | U105: -0.00344 | V105: OK | X105: 3.56047 | Y105: 0.2608940667 | Z105: 0.1488538086 | AB105: =TEXT($Y105, "0" & DeciSep() & "00000") & ListSep() & TEXT($Z105, "0" & DeciSep() & "00000") -> 0.26089,0.14885
N106: 0.2667699754 | O106: 0.1501835734 | P106: 8.571142197 | R106: 2.49198 | S106: 0.00170 | T106: -0.00135 | U106: 0.00103 | V106: OK | X106: 3.59538 | Y106: 0.2607225311 | Z106: 0.1485779647 | AB106: =TEXT($Y106, "0" & DeciSep() & "00000") & ListSep() & TEXT($Z106, "0" & DeciSep() & "00000") -> 0.26072,0.14858
N107: 0.2685538232 | O107: 0.1528432369 | P107: 8.700310707 | R107: 2.01263 | S107: 0.00461 | T107: -0.00197 | U107: 0.00417 | V107: OK | X107: 3.63028 | Y107: 0.2605586436 | Z107: 0.1483020259 | AB107: =TEXT($Y107, "0" & DeciSep() & "00000") & ListSep() & TEXT($Z107, "0" & DeciSep() & "00000") -> 0.26056,0.14830
N108: 0.262036562 | O108: 0.1440574229 | P108: 8.309268951 | R108: -1.62612 | S108: 0.00666 | T108: -0.00037 | U108: -0.00665 | V108: OK | X108: 3.66519 | Y108: 0.2604026039 | Z108: 0.1480263283 | AB108: =TEXT($Y108, "0" & DeciSep() & "00000") & ListSep() & TEXT($Z108, "0" & DeciSep() & "00000") -> 0.26040,0.14803
N109: 0.271368444 | O109: 0.1496564299 | P109: 8.577750206 | R109: 1.04419 | S109: 0.00452 | T109: 0.00227 | U109: 0.00391 | V109: OK | X109: 3.70010 | Y109: 0.2602546021 | Z109: 0.1477512077 | AB109: =TEXT($Y109, "0" & DeciSep() & "00000") & ListSep() & TEXT($Z109, "0" & DeciSep() & "00000") -> 0.26025,0.14775
N110: 0.2660496831 | O110: 0.1491342336 | P110: 8.547369003 | R110: 3.33849 | S110: 0.00114 | T110: -0.00112 | U110: -0.00022 | V110: OK | X110: 3.73500 | Y110: 0.2601148186 | Z110: 0.1474769995 | AB110: =TEXT($Y110, "0" & DeciSep() & "00000") & ListSep() & TEXT($Z110, "0" & DeciSep() & "00000") -> 0.26011,0.14748
N111: 0.2648378015 | O111: 0.1519417465 | P111: 8.593528748 | R111: 2.91711 | S111: 0.00406 | T111: -0.00396 | U111: 0.00090 | V111: OK | X111: 3.76991 | Y111: 0.2599834236 | Z111: 0.1472040376 | AB111: =TEXT($Y111, "0" & DeciSep() & "00000") & ListSep() & TEXT($Z111, "0" & DeciSep() & "00000") -> 0.25998,0.14720
N112: 0.2610493302 | O112: 0.1453765929 | P112: 8.303715706 | R112: -1.87284 | S112: 0.00672 | T112: -0.00200 | U112: -0.00642 | V112: OK | X112: 3.80482 | Y112: 0.2598605772 | Z112: 0.1469326547 | AB112: =TEXT($Y112, "0" & DeciSep() & "00000") & ListSep() & TEXT($Z112, "0" & DeciSep() & "00000") -> 0.25986,0.14693
N113: 0.2695954442 | O113: 0.1479148269 | P113: 8.487974167 | R113: 0.56364 | S113: 0.00266 | T113: 0.00225 | U113: 0.00142 | V113: OK | X113: 3.83972 | Y113: 0.2597464291 | Z113: 0.1466631813 | AB113: =TEXT($Y113, "0" & DeciSep() & "00000") & ListSep() & TEXT($Z113, "0" & DeciSep() & "00000") -> 0.25975,0.14666
N114: 0.2580305636 | O114: 0.14258717 | P114: 8.226714134 | R114: -1.77337 | S114: 0.01074 | T114: -0.00216 | U114: -0.01052 | V114: NG | X114: 3.87463 | Y114: 0.2596411184 | Z114: 0.1463959458 | AB114: =TEXT($Y114, "0" & DeciSep() & "00000") & ListSep() & TEXT($Z114, "0" & DeciSep() & "00000") -> 0.25964,0.14640
N115: 0.2713718414 | O115: 0.1527958959 | P115: 8.701229095 | R115: 1.56203 | S115: 0.00613 | T115: 0.00005 | U115: 0.00613 | V115: OK | X115: 3.90954 | Y115: 0.2595447733 | Z115: 0.1461312738 | AB115: =TEXT($Y115, "0" & DeciSep() & "00000") & ListSep() & TEXT($Z115, "0" & DeciSep() & "00000") -> 0.25954,0.14613
N116: 0.2688506544 | O116: 0.1463511437 | P116: 8.425785065 | R116: -0.07442 | S116: 0.00284 | T116: 0.00283 | U116: -0.00021 | V116: OK | X116: 3.94444 | Y116: 0.2594575113 | Z116: 0.1458694877 | AB116: =TEXT($Y116, "0" & DeciSep() & "00000") & ListSep() & TEXT($Z116, "0" & DeciSep() & "00000") -> 0.25946,0.14587
N117: 0.2646052539 | O117: 0.1479570866 | P117: 8.448935509 | R117: -2.13325 | S117: 0.00246 | T117: -0.00131 | U117: -0.00208 | V117: OK | X117: 3.97935 | Y117: 0.2593794386 | Z117: 0.1456109065 | AB117: =TEXT($Y117, "0" & DeciSep() & "00000") & ListSep() & TEXT($Z117, "0" & DeciSep() & "00000") -> 0.25938,0.14561
N118: 0.266877234 | O118: 0.1493590474 | P118: 8.567867279 | R118: 2.49814 | S118: 0.00087 | T118: -0.00069 | U118: 0.00052 | V118: OK | X118: 4.01426 | Y118: 0.2593106504 | Z118: 0.1453558452 | AB118: =TEXT($Y118, "0" & DeciSep() & "00000") & ListSep() & TEXT($Z118, "0" & DeciSep() & "00000") -> 0.25931,0.14536
N119: 0.2697402835 | O119: 0.1489298493 | P119: 8.615930557 | R119: 0.94099 | S119: 0.00277 | T119: 0.00163 | U119: 0.00224 | V119: OK | X119: 4.04916 | Y119: 0.2592512305 | Z119: 0.1451046145 | AB119: =TEXT($Y119, "0" & DeciSep() & "00000") & ListSep() & TEXT($Z119, "0" & DeciSep() & "00000") -> 0.25925,0.14510
N120: 0.2703034282 | O120: 0.150895685 | P120: 8.610989571 | R120: 1.41285 | S120: 0.00408 | T120: 0.00064 | U120: 0.00403 | V120: OK | X120: 4.08407 | Y120: 0.2592012513 | Z120: 0.1448575207 | AB120: =TEXT($Y120, "0" & DeciSep() & "00000") & ListSep() & TEXT($Z120, "0" & DeciSep() & "00000") -> 0.25920,0.14486
N121: 0.2722856998 | O121: 0.1506516486 | P121: 8.646149635 | R121: 1.17198 | S121: 0.00571 | T121: 0.00222 | U121: 0.00526 | V121: OK | X121: 4.11898 | Y121: 0.2591607736 | Z121: 0.1446148646 | AB121: =TEXT($Y121, "0" & DeciSep() & "00000") & ListSep() & TEXT($Z121, "0" & DeciSep() & "00000") -> 0.25916,0.14461
N122: 0.2646693587 | O122: 0.1457941532 | P122: 8.373188019 | R122: -1.49644 | S122: 0.00357 | T122: 0.00027 | U122: -0.00356 | V122: OK | X122: 4.15388 | Y122: 0.2591298469 | Z122: 0.1443769419 | AB122: =TEXT($Y122, "0" & DeciSep() & "00000") & ListSep() & TEXT($Z122, "0" & DeciSep() & "00000") -> 0.25913,0.14438
N123: 0.2643619776 | O123: 0.1498258412 | P123: 8.554527283 | R123: 3.46127 | S123: 0.00295 | T123: -0.00280 | U123: -0.00093 | V123: OK | X123: 4.18879 | Y123: 0.2591085087 | Z123: 0.1441440426 | AB123: =TEXT($Y123, "0" & DeciSep() & "00000") & ListSep() & TEXT($Z123, "0" & DeciSep() & "00000") -> 0.25911,0.14414
N124: 0.2654383481 | O124: 0.1476746798 | P124: 8.443351746 | R124: -1.87001 | S124: 0.00177 | T124: -0.00052 | U124: -0.00169 | V124: OK | X124: 4.22370 | Y124: 0.2590967851 | Z124: 0.1439164503 | AB124: =TEXT($Y124, "0" & DeciSep() & "00000") & ListSep() & TEXT($Z124, "0" & DeciSep() & "00000") -> 0.25910,0.14392
N125: 0.2690024376 | O125: 0.1479727626 | P125: 8.542495728 | R125: 0.52794 | S125: 0.00207 | T125: 0.00179 | U125: 0.00104 | V125: OK | X125: 4.25860 | Y125: 0.2590946903 | Z125: 0.1436944424 | AB125: =TEXT($Y125, "0" & DeciSep() & "00000") & ListSep() & TEXT($Z125, "0" & DeciSep() & "00000") -> 0.25909,0.14369
N126: 0.2699537873 | O126: 0.1490660459 | P126: 8.562685966 | R126: 0.97474 | S126: 0.00301 | T126: 0.00169 | U126: 0.00249 | V126: OK | X126: 4.29351 | Y126: 0.2591022269 | Z126: 0.1434782893 | AB126: =TEXT($Y126, "0" & DeciSep() & "00000") & ListSep() & TEXT($Z126, "0" & DeciSep() & "00000") -> 0.25910,0.14348
N127: 0.2691586316 | O127: 0.1536114961 | P127: 8.731219292 | R127: 1.95661 | S127: 0.00555 | T127: -0.00209 | U127: 0.00514 | V127: OK | X127: 4.32842 | Y127: 0.2591193858 | Z127: 0.1432682544 | AB127: =TEXT($Y127, "0" & DeciSep() & "00000") & ListSep() & TEXT($Z127, "0" & DeciSep() & "00000") -> 0.25912,0.14327
N128: 0.2656806409 | O128: 0.1481947899 | P128: 8.491023064 | R128: -2.12886 | S128: 0.00135 | T128: -0.00072 | U128: -0.00115 | V128: OK | X128: 4.36332 | Y128: 0.2591461459 | Z128: 0.1430645936 | AB128: =TEXT($Y128, "0" & DeciSep() & "00000") & ListSep() & TEXT($Z128, "0" & DeciSep() & "00000") -> 0.25915,0.14306
N129: 0.2669718862 | O129: 0.147955507 | P129: 8.504143715 | R129: -0.83699 | S129: 0.00055 | T129: 0.00037 | U129: -0.00040 | V129: OK | X129: 4.39823 | Y129: 0.2591824748 | Z129: 0.1428675549 | AB129: =TEXT($Y129, "0" & DeciSep() & "00000") & ListSep() & TEXT($Z129, "0" & DeciSep() & "00000") -> 0.25918,0.14287
N130: 0.2685685754 | O130: 0.1481401622 | P130: 8.481078148 | R130: 0.55990 | S130: 0.00161 | T130: 0.00136 | U130: 0.00085 | V130: OK | X130: 4.43314 | Y130: 0.2592283281 | Z130: 0.1426773786 | AB130: =TEXT($Y130, "0" & DeciSep() & "00000") & ListSep() & TEXT($Z130, "0" & DeciSep() & "00000") -> 0.25923,0.14268
N131: 0.2683104277 | O131: 0.1531043649 | P131: 8.629377365 | R131: =(ATAN2($N131-$A$3, $O131-$A$6))-$C$15 -> 2.07892 | S131: =SQRT(($N131-$A$3)^2+($O131-$A$6)^2) -> 0.00479 | T131: -0.00233 | U131: 0.00418 | V131: =IF(($T131/$A$9)^2 +($U131/$A$12)^2<=1, "OK", "NG") -> OK | X131: 4.46804 | Y131: =$A$3+$A$9*COS($X131)*COS($C$15)-$A$12*SIN($X131)*SIN($C$15) -> 0.2592836501 | Z131: =$A$6+$A$9*COS($X131)*SIN($C$15)+$A$12*SIN($X131)*COS($C$15) -> 0.1424942962 | AB131: =TEXT($Y131, "0" & DeciSep() & "00000") & ListSep() & TEXT($Z131, "0" & DeciSep() & "00000") -> 0.25928,0.14249
N132: 0.2691941857 | O132: 0.1493681818 | P132: 8.534059525 | R132: 1.16217 | S132: 0.00236 | T132: =$S132*COS($R132) -> 0.00094 | U132: =$S132*SIN($R132) -> 0.00217 | V132: OK | X132: 4.50295 | Y132: 0.2593483732 | Z132: 0.1423185308 | AB132: =TEXT($Y132, "0" & DeciSep() & "00000") & ListSep() & TEXT($Z132, "0" & DeciSep() & "00000") -> 0.25935,0.14232
N133: 0.2678534389 | O133: 0.1499276906 | P133: 8.564810753 | R133: 1.81741 | S133: 0.00166 | T133: -0.00041 | U133: 0.00161 | V133: OK | X133: 4.53786 | Y133: 0.2594224186 | Z133: 0.1421502966 | AB133: =TEXT($Y133, "0" & DeciSep() & "00000") & ListSep() & TEXT($Z133, "0" & DeciSep() & "00000") -> 0.25942,0.14215
N134: 0.2634774148 | O134: 0.1466943622 | P134: 8.348999977 | R134: -1.88253 | S134: 0.00396 | T134: -0.00121 | U134: -0.00377 | V134: OK | X134: 4.57276 | Y134: 0.2595056961 | Z134: 0.1419897986 | AB134: =TEXT($Y134, "0" & DeciSep() & "00000") & ListSep() & TEXT($Z134, "0" & DeciSep() & "00000") -> 0.25951,0.14199
N135: 0.2685281634 | O135: 0.1475670487 | P135: 8.496816635 | R135: 0.23729 | S135: 0.00179 | T135: 0.00174 | U135: 0.00042 | V135: OK | X135: 4.60767 | Y135: 0.2595981043 | Z135: 0.1418372322 | AB135: =TEXT($Y135, "0" & DeciSep() & "00000") & ListSep() & TEXT($Z135, "0" & DeciSep() & "00000") -> 0.25960,0.14184
N136: 0.2672412992 | O136: 0.147060737 | P136: 8.465270042 | R136: -0.61929 | S136: 0.00146 | T136: 0.00119 | U136: -0.00085 | V136: OK | X136: 4.64258 | Y136: 0.2596995306 | Z136: 0.1416927833 | AB136: =TEXT($Y136, "0" & DeciSep() & "00000") & ListSep() & TEXT($Z136, "0" & DeciSep() & "00000") -> 0.25970,0.14169
N137: 0.2698210478 | O137: 0.1480751038 | P137: 8.486083984 | R137: 0.63591 | S137: 0.00285 | T137: 0.00230 | U137: 0.00169 | V137: OK | X137: 4.67748 | Y137: 0.2598098513 | Z137: 0.141556628 | AB137: =TEXT($Y137, "0" & DeciSep() & "00000") & ListSep() & TEXT($Z137, "0" & DeciSep() & "00000") -> 0.25981,0.14156
N138: 0.2651965618 | O138: 0.145964399 | P138: 8.425796509 | R138: -1.40363 | S138: 0.00311 | T138: 0.00052 | U138: -0.00307 | V138: OK | X138: 4.71239 | Y138: 0.2599289322 | Z138: 0.1414289322 | AB138: =TEXT($Y138, "0" & DeciSep() & "00000") & ListSep() & TEXT($Z138, "0" & DeciSep() & "00000") -> 0.25993,0.14143
N139: 0.2679903507 | O139: 0.1495827585 | P139: 8.560884476 | R139: 1.61534 | S139: 0.00147 | T139: -0.00007 | U139: 0.00147 | V139: OK | X139: 4.74730 | Y139: 0.260056628 | Z139: 0.1413098513 | AB139: =TEXT($Y139, "0" & DeciSep() & "00000") & ListSep() & TEXT($Z139, "0" & DeciSep() & "00000") -> 0.26006,0.14131
N140: 0.2631263137 | O140: 0.1502804011 | P140: 8.538288116 | R140: 3.49617 | S140: 0.00426 | T140: -0.00400 | U140: -0.00148 | V140: OK | X140: 4.78220 | Y140: 0.2601927833 | Z140: 0.1411995306 | AB140: =TEXT($Y140, "0" & DeciSep() & "00000") & ListSep() & TEXT($Z140, "0" & DeciSep() & "00000") -> 0.26019,0.14120
N141: 0.2679278851 | O141: 0.1523807943 | P141: 8.643474579 | R141: 2.12150 | S141: 0.00399 | T141: -0.00209 | U141: 0.00340 | V141: OK | X141: 4.81711 | Y141: 0.2603372322 | Z141: 0.1410981043 | AB141: =TEXT($Y141, "0" & DeciSep() & "00000") & ListSep() & TEXT($Z141, "0" & DeciSep() & "00000") -> 0.26034,0.14110
N142: 0.2694270909 | O142: 0.151119858 | P142: 8.585783005 | R142: 1.60897 | S142: 0.00357 | T142: -0.00014 | U142: 0.00357 | V142: OK | X142: 4.85202 | Y142: 0.2604897986 | Z142: 0.1410056961 | AB142: =TEXT($Y142, "0" & DeciSep() & "00000") & ListSep() & TEXT($Z142, "0" & DeciSep() & "00000") -> 0.26049,0.14101
N143: 0.269136399 | O143: 0.1508013904 | P143: 8.586832047 | R143: 1.60796 | S143: 0.00314 | T143: -0.00012 | U143: 0.00314 | V143: OK | X143: 4.88692 | Y143: 0.2606502966 | Z143: 0.1409224186 | AB143: =TEXT($Y143, "0" & DeciSep() & "00000") & ListSep() & TEXT($Z143, "0" & DeciSep() & "00000") -> 0.26065,0.14092
N144: 0.2675340176 | O144: 0.1473735422 | P144: 8.483136177 | R144: -0.34271 | S144: 0.00125 | T144: 0.00117 | U144: -0.00042 | V144: OK | X144: 4.92183 | Y144: 0.2608185308 | Z144: 0.1408483732 | AB144: =TEXT($Y144, "0" & DeciSep() & "00000") & ListSep() & TEXT($Z144, "0" & DeciSep() & "00000") -> 0.26082,0.14085
N145: 0.2699665129 | O145: 0.1535328329 | P145: 8.639928818 | R145: 1.82358 | S145: 0.00584 | T145: -0.00146 | U145: 0.00566 | V145: OK | X145: 4.95674 | Y145: 0.2609942962 | Z145: 0.1407836501 | AB145: =TEXT($Y145, "0" & DeciSep() & "00000") & ListSep() & TEXT($Z145, "0" & DeciSep() & "00000") -> 0.26099,0.14078
N146: 0.2645455599 | O146: 0.1494176984 | P146: 8.513563156 | R146: 3.56919 | S146: 0.00262 | T146: -0.00238 | U146: -0.00109 | V146: OK | X146: 4.99164 | Y146: 0.2611773786 | Z146: 0.1407283281 | AB146: =TEXT($Y146, "0" & DeciSep() & "00000") & ListSep() & TEXT($Z146, "0" & DeciSep() & "00000") -> 0.26118,0.14073
N147: 0.2626333237 | O147: 0.1477093995 | P147: 8.435593605 | R147: -2.17708 | S147: 0.00444 | T147: -0.00253 | U147: -0.00365 | V147: OK | X147: 5.02655 | Y147: 0.2613675549 | Z147: 0.1406824748 | AB147: =TEXT($Y147, "0" & DeciSep() & "00000") & ListSep() & TEXT($Z147, "0" & DeciSep() & "00000") -> 0.26137,0.14068
N148: 0.2671867907 | O148: 0.1479246616 | P148: 8.523343086 | R148: -0.47147 | S148: 0.00060 | T148: 0.00054 | U148: -0.00027 | V148: OK | X148: 5.06145 | Y148: 0.2615645936 | Z148: 0.1406461459 | AB148: =TEXT($Y148, "0" & DeciSep() & "00000") & ListSep() & TEXT($Z148, "0" & DeciSep() & "00000") -> 0.26156,0.14065
N149: 0.2712154686 | O149: 0.150738433 | P149: 8.631502151 | R149: 1.27354 | S149: 0.00477 | T149: 0.00140 | U149: 0.00456 | V149: OK | X149: 5.09636 | Y149: 0.2617682544 | Z149: 0.1406193858 | AB149: =TEXT($Y149, "0" & DeciSep() & "00000") & ListSep() & TEXT($Z149, "0" & DeciSep() & "00000") -> 0.26177,0.14062
N150: 0.2718356252 | O150: 0.152098 | P150: 8.655119896 | R150: 1.42509 | S150: 0.00603 | T150: 0.00088 | U150: 0.00596 | V150: OK | X150: 5.13127 | Y150: 0.2619782893 | Z150: 0.1406022269 | AB150: =TEXT($Y150, "0" & DeciSep() & "00000") & ListSep() & TEXT($Z150, "0" & DeciSep() & "00000") -> 0.26198,0.14060
N151: 0.2621580958 | O151: 0.1453304142 | P151: 8.348952293 | R151: -1.77658 | S151: 0.00579 | T151: -0.00118 | U151: -0.00566 | V151: OK | X151: 5.16617 | Y151: 0.2621944424 | Z151: 0.1405946903 | AB151: =TEXT($Y151, "0" & DeciSep() & "00000") & ListSep() & TEXT($Z151, "0" & DeciSep() & "00000") -> 0.26219,0.14059
N152: 0.2667756081 | O152: 0.153344214 | P152: 8.694300652 | R152: 2.40248 | S152: 0.00485 | T152: -0.00358 | U152: 0.00327 | V152: OK | X152: 5.20108 | Y152: 0.2624164503 | Z152: 0.1405967851 | AB152: =TEXT($Y152, "0" & DeciSep() & "00000") & ListSep() & TEXT($Z152, "0" & DeciSep() & "00000") -> 0.26242,0.14060
N153: 0.2658717632 | O153: 0.148801893 | P153: 8.484355927 | R153: 3.66554 | S153: 0.00117 | T153: -0.00101 | U153: -0.00058 | V153: OK | X153: 5.23599 | Y153: 0.2626440426 | Z153: 0.1406085087 | AB153: =TEXT($Y153, "0" & DeciSep() & "00000") & ListSep() & TEXT($Z153, "0" & DeciSep() & "00000") -> 0.26264,0.14061
N154: 0.26239115 | O154: 0.1470961869 | P154: 8.387275696 | R154: -2.06053 | S154: 0.00482 | T154: -0.00227 | U154: -0.00425 | V154: OK | X154: 5.27089 | Y154: 0.2628769419 | Z154: 0.1406298469 | AB154: =TEXT($Y154, "0" & DeciSep() & "00000") & ListSep() & TEXT($Z154, "0" & DeciSep() & "00000") -> 0.26288,0.14063
N155: 0.2718735337 | O155: 0.1494204104 | P155: 8.558395386 | R155: 0.97206 | S155: 0.00496 | T155: 0.00280 | U155: 0.00410 | V155: OK | X155: 5.30580 | Y155: 0.2631148646 | Z155: 0.1406607736 | AB155: =TEXT($Y155, "0" & DeciSep() & "00000") & ListSep() & TEXT($Z155, "0" & DeciSep() & "00000") -> 0.26311,0.14066
N156: 0.2628166974 | O156: 0.1476026773 | P156: 8.433213234 | R156: -2.14490 | S156: 0.00428 | T156: -0.00232 | U156: -0.00359 | V156: OK | X156: 5.34071 | Y156: 0.2633575207 | Z156: 0.1407012513 | AB156: =TEXT($Y156, "0" & DeciSep() & "00000") & ListSep() & TEXT($Z156, "0" & DeciSep() & "00000") -> 0.26336,0.14070
N157: 0.2667679489 | O157: 0.14625673 | P157: 8.405733109 | R157: -0.88847 | S157: 0.00226 | T157: 0.00142 | U157: -0.00175 | V157: OK | X157: 5.37561 | Y157: 0.2636046145 | Z157: 0.1407512305 | AB157: =TEXT($Y157, "0" & DeciSep() & "00000") & ListSep() & TEXT($Z157, "0" & DeciSep() & "00000") -> 0.26360,0.14075
N158: 0.2688059211 | O158: 0.1472094953 | P158: 8.479800224 | R158: 0.16494 | S158: 0.00222 | T158: 0.00219 | U158: 0.00036 | V158: OK | X158: 5.41052 | Y158: 0.2638558452 | Z158: 0.1408106504 | AB158: =TEXT($Y158, "0" & DeciSep() & "00000") & ListSep() & TEXT($Z158, "0" & DeciSep() & "00000") -> 0.26386,0.14081
N159: 0.2648105919 | O159: 0.1484779865 | P159: 8.414551735 | R159: -2.34614 | S159: 0.00219 | T159: -0.00153 | U159: -0.00156 | V159: OK | X159: 5.44543 | Y159: 0.2641109065 | Z159: 0.1408794386 | AB159: =TEXT($Y159, "0" & DeciSep() & "00000") & ListSep() & TEXT($Z159, "0" & DeciSep() & "00000") -> 0.26411,0.14088
N160: 0.2641780674 | O160: 0.1452688128 | P160: 8.337224007 | R160: -1.50329 | S160: 0.00429 | T160: 0.00029 | U160: -0.00428 | V160: OK | X160: 5.48033 | Y160: 0.2643694877 | Z160: 0.1409575113 | AB160: =TEXT($Y160, "0" & DeciSep() & "00000") & ListSep() & TEXT($Z160, "0" & DeciSep() & "00000") -> 0.26437,0.14096
N161: 0.272254914 | O161: 0.1513817757 | P161: 8.683959007 | R161: 1.28701 | S161: 0.00599 | T161: 0.00168 | U161: 0.00575 | V161: OK | X161: 5.51524 | Y161: 0.2646312738 | Z161: 0.1410447733 | AB161: =TEXT($Y161, "0" & DeciSep() & "00000") & ListSep() & TEXT($Z161, "0" & DeciSep() & "00000") -> 0.26463,0.14104
N162: 0.2640713751 | O162: 0.1433631033 | P162: 8.275317192 | R162: -1.30355 | S162: 0.00591 | T162: 0.00156 | U162: -0.00570 | V162: OK | X162: 5.55015 | Y162: 0.2648959458 | Z162: 0.1411411184 | AB162: =TEXT($Y162, "0" & DeciSep() & "00000") & ListSep() & TEXT($Z162, "0" & DeciSep() & "00000") -> 0.26490,0.14114
N163: 0.2672695518 | O163: 0.1474342942 | P163: 8.511467934 | R163: -0.53766 | S163: 0.00110 | T163: 0.00094 | U163: -0.00056 | V163: OK | X163: 5.58505 | Y163: 0.2651631813 | Z163: 0.1412464291 | AB163: =TEXT($Y163, "0" & DeciSep() & "00000") & ListSep() & TEXT($Z163, "0" & DeciSep() & "00000") -> 0.26516,0.14125
N164: 0.2688466609 | O164: 0.1440529674 | P164: 8.344191551 | R164: -0.39181 | S164: 0.00482 | T164: 0.00445 | U164: -0.00184 | V164: OK | X164: 5.61996 | Y164: 0.2654326547 | Z164: 0.1413605772 | AB164: =TEXT($Y164, "0" & DeciSep() & "00000") & ListSep() & TEXT($Z164, "0" & DeciSep() & "00000") -> 0.26543,0.14136
N165: 0.2645199299 | O165: 0.1472326517 | P165: 8.405104637 | R165: -1.88378 | S165: 0.00279 | T165: -0.00086 | U165: -0.00265 | V165: OK | X165: 5.65487 | Y165: 0.2657040376 | Z165: 0.1414834236 | AB165: =TEXT($Y165, "0" & DeciSep() & "00000") & ListSep() & TEXT($Z165, "0" & DeciSep() & "00000") -> 0.26570,0.14148
N166: 0.2736157477 | O166: 0.153675884 | P166: 8.744761467 | R166: 1.44929 | S166: 0.00840 | T166: 0.00102 | U166: 0.00834 | V166: OK | X166: 5.68977 | Y166: 0.2659769995 | Z166: 0.1416148186 | AB166: =TEXT($Y166, "0" & DeciSep() & "00000") & ListSep() & TEXT($Z166, "0" & DeciSep() & "00000") -> 0.26598,0.14161
N167: 0.2688468397 | O167: 0.1486172974 | P167: 8.500631332 | R167: 0.84883 | S167: 0.00185 | T167: 0.00122 | U167: 0.00139 | V167: OK | X167: 5.72468 | Y167: 0.2662512077 | Z167: 0.1417546021 | AB167: =TEXT($Y167, "0" & DeciSep() & "00000") & ListSep() & TEXT($Z167, "0" & DeciSep() & "00000") -> 0.26625,0.14175
N168: 0.2686745524 | O168: 0.1467759758 | P168: 8.477945328 | R168: -0.01456 | S168: 0.00240 | T168: 0.00240 | U168: -0.00003 | V168: OK | X168: 5.75959 | Y168: 0.2665263283 | Z168: 0.1419026039 | AB168: =TEXT($Y168, "0" & DeciSep() & "00000") & ListSep() & TEXT($Z168, "0" & DeciSep() & "00000") -> 0.26653,0.14190
N169: 0.2678212523 | O169: 0.1483542621 | P169: 8.501342773 | R169: 0.60977 | S169: 0.00083 | T169: 0.00068 | U169: 0.00048 | V169: OK | X169: 5.79449 | Y169: 0.2668020259 | Z169: 0.1420586436 | AB169: =TEXT($Y169, "0" & DeciSep() & "00000") & ListSep() & TEXT($Z169, "0" & DeciSep() & "00000") -> 0.26680,0.14206
N170: 0.266775161 | O170: 0.1540209651 | P170: 8.732167244 | R170: 2.39690 | S170: 0.00553 | T170: -0.00406 | U170: 0.00374 | V170: OK | X170: 5.82940 | Y170: 0.2670779647 | Z170: 0.1422225311 | AB170: =TEXT($Y170, "0" & DeciSep() & "00000") & ListSep() & TEXT($Z170, "0" & DeciSep() & "00000") -> 0.26708,0.14222
N171: 0.2647616863 | O171: 0.1482942253 | P171: 8.491017342 | R171: -2.26452 | S171: 0.00225 | T171: -0.00144 | U171: -0.00173 | V171: OK | X171: 5.86431 | Y171: 0.2673538086 | Z171: 0.1423940667 | AB171: =TEXT($Y171, "0" & DeciSep() & "00000") & ListSep() & TEXT($Z171, "0" & DeciSep() & "00000") -> 0.26735,0.14239
N172: 0.268216759 | O172: 0.1521059126 | P172: 8.637696266 | R172: 2.03076 | S172: 0.00381 | T172: -0.00169 | U172: 0.00341 | V172: OK | X172: 5.89921 | Y172: 0.2676292213 | Z172: 0.1425730414 | AB172: =TEXT($Y172, "0" & DeciSep() & "00000") & ListSep() & TEXT($Z172, "0" & DeciSep() & "00000") -> 0.26763,0.14257
N173: 0.2650549412 | O173: 0.1457957774 | P173: 8.395882607 | R173: -1.40894 | S173: 0.00333 | T173: 0.00054 | U173: -0.00329 | V173: OK | X173: 5.93412 | Y173: 0.2679038675 | Z173: 0.1427592373 | AB173: =TEXT($Y173, "0" & DeciSep() & "00000") & ListSep() & TEXT($Z173, "0" & DeciSep() & "00000") -> 0.26790,0.14276
N174: 0.2706317008 | O174: 0.1544996351 | P174: 8.755723953 | R174: 1.81187 | S174: 0.00701 | T174: -0.00167 | U174: 0.00681 | V174: OK | X174: 5.96903 | Y174: 0.2681774124 | Z174: 0.1429524273 | AB174: =TEXT($Y174, "0" & DeciSep() & "00000") & ListSep() & TEXT($Z174, "0" & DeciSep() & "00000") -> 0.26818,0.14295
N175: 0.2680775821 | O175: 0.1515348256 | P175: 8.659369469 | R175: 2.01501 | S175: 0.00322 | T175: -0.00138 | U175: 0.00291 | V175: OK | X175: 6.00393 | Y175: 0.2684495229 | Z175: 0.1431523762 | AB175: =TEXT($Y175, "0" & DeciSep() & "00000") & ListSep() & TEXT($Z175, "0" & DeciSep() & "00000") -> 0.26845,0.14315
N176: 0.2701663375 | O176: 0.1490772665 | P176: 8.583474159 | R176: 0.96573 | S176: 0.00322 | T176: 0.00183 | U176: 0.00265 | V176: OK | X176: 6.03884 | Y176: 0.2687198673 | Z176: 0.1433588404 | AB176: =TEXT($Y176, "0" & DeciSep() & "00000") & ListSep() & TEXT($Z176, "0" & DeciSep() & "00000") -> 0.26872,0.14336
N177: 0.2714679241 | O177: 0.1510621905 | P177: 8.628908157 | R177: 1.30608 | S177: 0.00515 | T177: 0.00135 | U177: 0.00497 | V177: OK | X177: 6.07375 | Y177: 0.2689881163 | Z177: 0.1435715683 | AB177: =TEXT($Y177, "0" & DeciSep() & "00000") & ListSep() & TEXT($Z177, "0" & DeciSep() & "00000") -> 0.26899,0.14357
N178: 0.2698426843 | O178: 0.151301071 | P178: 8.658421516 | R178: 1.56342 | S178: 0.00399 | T178: 0.00003 | U178: 0.00399 | V178: OK | X178: 6.10865 | Y178: 0.2692539432 | Z178: 0.1437903008 | AB178: =TEXT($Y178, "0" & DeciSep() & "00000") & ListSep() & TEXT($Z178, "0" & DeciSep() & "00000") -> 0.26925,0.14379
N179: 0.2605242729 | O179: 0.147271201 | P179: 8.355260849 | R179: -2.16867 | S179: 0.00659 | T179: -0.00371 | U179: -0.00545 | V179: OK | X179: 6.14356 | Y179: 0.2695170239 | Z179: 0.1440147712 | AB179: =TEXT($Y179, "0" & DeciSep() & "00000") & ListSep() & TEXT($Z179, "0" & DeciSep() & "00000") -> 0.26952,0.14401
N180: 0.2606106997 | O180: 0.1471530497 | P180: 8.402047157 | R180: -2.14842 | S180: 0.00653 | T180: -0.00357 | U180: -0.00547 | V180: OK | X180: 6.17847 | Y180: 0.269777038 | Z180: 0.1442447063 | AB180: =TEXT($Y180, "0" & DeciSep() & "00000") & ListSep() & TEXT($Z180, "0" & DeciSep() & "00000") -> 0.26978,0.14424
N181: 0.2668703198 | O181: 0.149972558 | P181: 8.546113014 | R181: 2.44403 | S181: 0.00148 | T181: -0.00113 | U181: 0.00095 | V181: OK | X181: 6.21337 | Y181: 0.2700336688 | Z181: 0.1444798257 | AB181: =TEXT($Y181, "0" & DeciSep() & "00000") & ListSep() & TEXT($Z181, "0" & DeciSep() & "00000") -> 0.27003,0.14448
N182: 0.2624133527 | O182: 0.1428223252 | P182: 8.208584785 | R182: -1.46490 | S182: 0.00730 | T182: 0.00077 | U182: -0.00726 | V182: OK | X182: 6.24828 | Y182: 0.2702866034 | Z182: 0.1447198431 | AB182: =TEXT($Y182, "0" & DeciSep() & "00000") & ListSep() & TEXT($Z182, "0" & DeciSep() & "00000") -> 0.27029,0.14472
N183: 0.2661831975 | O183: 0.1499290615 | P183: 8.512550354 | R183: 2.87544 | S183: 0.00165 | T183: -0.00159 | U183: 0.00043 | V183: OK | X183: 6.28319 | Y183: 0.2705355339 | Z183: 0.1449644661 | AB183: =TEXT($Y183, "0" & DeciSep() & "00000") & ListSep() & TEXT($Z183, "0" & DeciSep() & "00000") -> 0.27054,0.14496
N184: 0.2695515752 | O184: 0.1541984677 | P184: 8.702181816 | R184: 1.93520 | S184: 0.00624 | T184: -0.00223 | U184: 0.00583 | V184: OK
N185: 0.2646033466 | O185: 0.145310387 | P185: 8.376187325 | R185: -1.42979 | S185: 0.00399 | T185: 0.00056 | U185: -0.00395 | V185: OK
N186: 0.2636079788 | O186: 0.1436972022 | P186: 8.281430244 | R186: -1.40031 | S186: 0.00588 | T186: 0.00100 | U186: -0.00579 | V186: OK
N187: 0.2717043459 | O187: 0.1511146277 | P187: 8.624408722 | R187: 1.29268 | S187: 0.00538 | T187: 0.00148 | U187: 0.00518 | V187: OK
N188: 0.2689003944 | O188: 0.146489352 | P188: 8.38554287 | R188: -0.02818 | S188: 0.00277 | T188: 0.00277 | U188: -0.00008 | V188: OK
N189: 0.2635492384 | O189: 0.1454999 | P189: 8.386609077 | R189: -1.64054 | S189: 0.00457 | T189: -0.00032 | U189: -0.00456 | V189: OK
N190: 0.2686353624 | O190: 0.1480911821 | P190: 8.474243164 | R190: 0.54043 | S190: 0.00169 | T190: 0.00145 | U190: 0.00087 | V190: OK
N191: 0.2647360563 | O191: 0.1509118527 | P191: 8.553390503 | R191: 3.10997 | S191: 0.00331 | T191: -0.00331 | U191: 0.00010 | V191: OK
N192: 0.2684800327 | O192: 0.1496908069 | P192: 8.492742538 | R192: 1.46293 | S192: 0.00190 | T192: 0.00020 | U192: 0.00189 | V192: OK
N193: 0.2709542811 | O193: 0.1557311863 | P193: 8.781273842 | R193: 1.85578 | S193: 0.00824 | T193: -0.00232 | U193: 0.00791 | V193: OK
N194: 0.2682698965 | O194: 0.1479624063 | P194: 8.459227562 | R194: 0.38494 | S194: 0.00138 | T194: 0.00128 | U194: 0.00052 | V194: OK
N195: 0.2695614696 | O195: 0.1499084234 | P195: 8.616122246 | R195: =(ATAN2($N195-$A$3, $O195-$A$6))-$C$15 -> 1.28813 | S195: =SQRT(($N195-$A$3)^2+($O195-$A$6)^2) -> 0.00292 | T195: 0.00082 | U195: 0.00281 | V195: =IF(($T195/$A$9)^2 +($U195/$A$12)^2<=1, "OK", "NG") -> OK
N196: 0.2665191293 | O196: 0.1491844207 | P196: 8.494544029 | R196: 2.96866 | S196: 0.00084 | T196: =$S196*COS($R196) -> -0.00082 | U196: =$S196*SIN($R196) -> 0.00014 | V196: OK
N197: 0.2630535066 | O197: 0.1436643153 | P197: 8.256015778 | R197: -1.46989 | S197: 0.00624 | T197: 0.00063 | U197: -0.00621 | V197: OK
N198: 0.2584581077 | O198: 0.1461745054 | P198: 8.33203125 | R198: -2.09039 | S198: 0.00885 | T198: -0.00440 | U198: -0.00768 | V198: NG
N199: 0.268437773 | O199: 0.1520196795 | P199: 8.614859581 | R199: 1.96839 | S199: 0.00380 | T199: -0.00147 | U199: 0.00351 | V199: OK
N200: 0.269040823 | O200: 0.1472948343 | P200: 8.553967476 | R200: 0.25197 | S200: 0.00237 | T200: 0.00230 | U200: 0.00059 | V200: OK
... 802 more rows

Sheet 1976 Lab
O1: DESIGN Data | T1: Transform and Calculate | Y1: Ellipse 0-360° x 2° | AB1: DESIGN CIE
A2: Center a* | F2: 1. Open FilmStar DESIGN, load a design, set tolerance values (<Ctrl+N>) | N2: a* | O2: b* | P2: L* | R2: Angle | S2: Radius | T2: X | U2: Y | V2: Pass | X2: Angle | Y2: X | Z2: Y | AB2: Tolerance Box
A3: 52 | F3: 2. Click [Calculate] to draw scatter plot (1000 iterations, so not instant) | N3: 51.41900635 | O3: -46.1350975 | P3: 35.16908264 | R3: =(ATAN2($N3-$A$3, $O3-$A$6))-$C$15 -> 2.77317 | S3: =SQRT(($N3-$A$3)^2+($O3-$A$6)^2) -> 1.04193 | T3: =$S3*COS($R3) -> -0.97201 | U3: =$S3*SIN($R3) -> 0.37524 | V3: =IF(($T3/$A$9)^2 +($U3/$A$12)^2<=1, "OK", "NG") -> OK | X3: 0.00000 | Y3: =$A$3+$A$9*COS($X3)*COS($C$15)-$A$12*SIN($X3)*SIN($C$15) -> 54.45745613 | Z3: =$A$6+$A$9*COS($X3)*SIN($C$15)+$A$12*SIN($X3)*COS($C$15) -> -48.72072931 | AB3: =TEXT($Y3, "0" & DeciSep() & "000") & ListSep() & TEXT($Z3, "0" & DeciSep() & "000") -> 54.457,-48.721
F4: 3. Click [Copy] to transfer ellipse to DESIGN or MEASURE Tolerance Box | N4: 52.80019379 | O4: -46.09437561 | P4: 35.33209229 | R4: 1.45799 | S4: 1.20850 | T4: =$S4*COS($R4) -> 0.13604 | U4: =$S4*SIN($R4) -> 1.20082 | V4: NG | X4: 0.03491 | Y4: 54.47597665 | Z4: -48.69109309 | AB4: =TEXT($Y4, "0" & DeciSep() & "000") & ListSep() & TEXT($Z4, "0" & DeciSep() & "000") -> 54.476,-48.691
A5: Center b* | N5: 53.36771774 | O5: -48.39038086 | P5: 34.75650024 | R5: -0.18275 | S5: 1.95034 | T5: 1.91786 | U5: -0.35444 | V5: OK | X5: 0.06981 | Y5: 54.49148056 | Z5: -48.65939654 | AB5: =TEXT($Y5, "0" & DeciSep() & "000") & ListSep() & TEXT($Z5, "0" & DeciSep() & "000") -> 54.491,-48.659
A6: -47 | N6: 53.06276703 | O6: -48.1688385 | P6: 34.72365189 | R6: -0.22203 | S6: 1.57976 | T6: 1.54099 | U6: -0.34788 | V6: OK | X6: 0.10472 | Y6: 54.50394899 | Z6: -48.62567827 | AB6: =TEXT($Y6, "0" & DeciSep() & "000") & ListSep() & TEXT($Z6, "0" & DeciSep() & "000") -> 54.504,-48.626
N7: 52.17502975 | O7: -49.01278687 | P7: 34.47009277 | R7: -0.87319 | S7: 2.02038 | T7: 1.29786 | U7: -1.54839 | V7: NG | X7: 0.13963 | Y7: 54.51336675 | Z7: -48.58997936 | AB7: =TEXT($Y7, "0" & DeciSep() & "000") & ListSep() & TEXT($Z7, "0" & DeciSep() & "000") -> 54.513,-48.590
A8: Radius a | N8: 55.07802963 | O8: -47.00988388 | P8: 34.95038986 | R8: 0.60765 | S8: 3.07805 | T8: 2.52704 | U8: 1.75739 | V8: NG | X8: 0.17453 | Y8: 54.51972236 | Z8: -48.5523433 | AB8: =TEXT($Y8, "0" & DeciSep() & "000") & ListSep() & TEXT($Z8, "0" & DeciSep() & "000") -> 54.520,-48.552
A9: 3 | N9: 51.83147049 | O9: -47.10763168 | P9: 35.04198837 | R9: -1.96237 | S9: 0.19997 | T9: -0.07632 | U9: -0.18483 | V9: OK | X9: 0.20944 | Y9: 54.52300807 | Z9: -48.51281596 | AB9: =TEXT($Y9, "0" & DeciSep() & "000") & ListSep() & TEXT($Z9, "0" & DeciSep() & "000") -> 54.523,-48.513
N10: 50.88204193 | O10: -47.21472168 | P10: 34.99733353 | R10: -2.34097 | S10: 1.13839 | T10: -0.79262 | U10: -0.81712 | V10: OK | X10: 0.24435 | Y10: 54.52321988 | Z10: -48.47144548 | AB10: =TEXT($Y10, "0" & DeciSep() & "000") & ListSep() & TEXT($Z10, "0" & DeciSep() & "000") -> 54.523,-48.471
A11: Radius b | N11: 52.72260284 | O11: -49.57917786 | P11: 34.50526047 | R11: -0.68677 | S11: 2.67849 | T11: 2.07128 | U11: -1.69827 | V11: NG | X11: 0.27925 | Y11: 54.52035754 | Z11: -48.42828227 | AB11: =TEXT($Y11, "0" & DeciSep() & "000") & ListSep() & TEXT($Z11, "0" & DeciSep() & "000") -> 54.520,-48.428
A12: 1 | N12: 50.7290802 | O12: -48.6696434 | P12: 34.5195694 | R12: -1.61056 | S12: 2.09832 | T12: -0.08341 | U12: -2.09666 | V12: NG | X12: 0.31416 | Y12: 54.51442454 | Z12: -48.38337892 | AB12: =TEXT($Y12, "0" & DeciSep() & "000") & ListSep() & TEXT($Z12, "0" & DeciSep() & "000") -> 54.514,-48.383
N13: 50.35056305 | O13: -45.68044662 | P13: 35.20924759 | R13: 3.07772 | S13: 2.11231 | T13: -2.10800 | U13: 0.13484 | V13: OK | X13: 0.34907 | Y13: 54.50542809 | Z13: -48.33679013 | AB13: =TEXT($Y13, "0" & DeciSep() & "000") & ListSep() & TEXT($Z13, "0" & DeciSep() & "000") -> 54.505,-48.337
A14: Tilt (deg) | N14: 51.79259109 | O14: -46.65663147 | P14: 35.10445404 | R14: 2.72505 | S14: 0.40115 | T14: -0.36685 | U14: 0.16231 | V14: OK | X14: 0.38397 | Y14: 54.49337916 | Z14: -48.28857268 | AB14: =TEXT($Y14, "0" & DeciSep() & "000") & ListSep() & TEXT($Z14, "0" & DeciSep() & "000") -> 54.493,-48.289
A15: -35 | C15: =$A$15*PI()/180 -> -0.6109 | N15: 54.22292709 | O15: -47.80560303 | P15: 34.89680481 | R15: 0.26318 | S15: 2.36440 | T15: 2.28299 | U15: 0.61511 | V15: OK | X15: 0.41888 | Y15: 54.47829244 | Z15: -48.23878529 | AB15: =TEXT($Y15, "0" & DeciSep() & "000") & ListSep() & TEXT($Z15, "0" & DeciSep() & "000") -> 54.478,-48.239
N16: 51.22697449 | O16: -45.89356232 | P16: 35.33081055 | R16: 2.79149 | S16: 1.34973 | T16: -1.26785 | U16: 0.46295 | V16: OK | X16: 0.45379 | Y16: 54.4601863 | Z16: -48.18748864 | AB16: =TEXT($Y16, "0" & DeciSep() & "000") & ListSep() & TEXT($Z16, "0" & DeciSep() & "000") -> 54.460,-48.187
A17: Yield | N17: 53.00800323 | O17: -49.25640106 | P17: 34.34497833 | R17: -0.53980 | S17: 2.47132 | T17: 2.11993 | U17: -1.27017 | V17: NG | X17: 0.48869 | Y17: 54.4390828 | Z17: -48.13474521 | AB17: =TEXT($Y17, "0" & DeciSep() & "000") & ListSep() & TEXT($Z17, "0" & DeciSep() & "000") -> 54.439,-48.135
A18: 75.0% | N18: 52.11962891 | O18: -46.21637344 | P18: 35.20618439 | R18: 2.03017 | S18: 0.79271 | T18: -0.35148 | U18: 0.71053 | V18: OK | X18: 0.52360 | Y18: 54.41500766 | Z18: -48.08061927 | AB18: =TEXT($Y18, "0" & DeciSep() & "000") & ListSep() & TEXT($Z18, "0" & DeciSep() & "000") -> 54.415,-48.081
N19: 50.84228516 | O19: -47.21196747 | P19: 34.90525818 | R19: -2.34964 | S19: 1.17696 | T19: -0.82676 | U19: -0.83767 | V19: OK | X19: 0.55851 | Y19: 54.3879902 | Z19: -48.02517677 | AB19: =TEXT($Y19, "0" & DeciSep() & "000") & ListSep() & TEXT($Z19, "0" & DeciSep() & "000") -> 54.388,-48.025
N20: 52.2926445 | O20: -47.40170288 | P20: 34.84797668 | R20: -0.33033 | S20: 0.49700 | T20: 0.47013 | U20: -0.16120 | V20: OK | X20: 0.59341 | Y20: 54.35806334 | Z20: -47.96848524 | AB20: =TEXT($Y20, "0" & DeciSep() & "000") & ListSep() & TEXT($Z20, "0" & DeciSep() & "000") -> 54.358,-47.968
N21: 50.61048126 | O21: -46.01631165 | P21: 35.16760635 | R21: 3.13643 | S21: 1.70247 | T21: -1.70245 | U21: 0.00880 | V21: OK | X21: 0.62832 | Y21: 54.32526354 | Z21: -47.91061376 | AB21: =TEXT($Y21, "0" & DeciSep() & "000") & ListSep() & TEXT($Z21, "0" & DeciSep() & "000") -> 54.325,-47.911
N22: 49.26277542 | O22: -46.03583145 | P22: 35.23218918 | R22: 3.41379 | S22: 2.90207 | T22: -2.79523 | U22: -0.78021 | V22: NG | X22: 0.66323 | Y22: 54.28963077 | Z22: -47.85163284 | AB22: =TEXT($Y22, "0" & DeciSep() & "000") & ListSep() & TEXT($Z22, "0" & DeciSep() & "000") -> 54.290,-47.852
N23: 51.27300262 | O23: -48.13657379 | P23: 34.68840027 | R23: -1.52899 | S23: 1.34919 | T23: 0.05639 | U23: -1.34802 | V23: NG | X23: 0.69813 | Y23: 54.25120844 | Z23: -47.79161434 | AB23: =TEXT($Y23, "0" & DeciSep() & "000") & ListSep() & TEXT($Z23, "0" & DeciSep() & "000") -> 54.251,-47.792
N24: 51.8938446 | O24: -46.79624557 | P24: 35.08337021 | R24: 2.66197 | S24: 0.22975 | T24: -0.20383 | U24: 0.10602 | V24: OK | X24: 0.73304 | Y24: 54.21004336 | Z24: -47.73063138 | AB24: =TEXT($Y24, "0" & DeciSep() & "000") & ListSep() & TEXT($Z24, "0" & DeciSep() & "000") -> 54.210,-47.731
N25: 54.30996323 | O25: -48.68302155 | P25: 34.49839401 | R25: -0.01879 | S25: 2.85806 | T25: 2.85755 | U25: -0.05371 | V25: OK | X25: 0.76794 | Y25: 54.16618568 | Z25: -47.66875825 | AB25: =TEXT($Y25, "0" & DeciSep() & "000") & ListSep() & TEXT($Z25, "0" & DeciSep() & "000") -> 54.166,-47.669
N26: 50.64620209 | O26: -46.81853485 | P26: 34.9104805 | R26: 3.61921 | S26: 1.36591 | T26: -1.21305 | U26: -0.62786 | V26: OK | X26: 0.80285 | Y26: 54.11968883 | Z26: -47.60607035 | AB26: =TEXT($Y26, "0" & DeciSep() & "000") & ListSep() & TEXT($Z26, "0" & DeciSep() & "000") -> 54.120,-47.606
N27: 52.73221588 | O27: -47.38059616 | P27: 34.80482483 | R27: 0.13151 | S27: 0.82522 | T27: 0.81810 | U27: 0.10822 | V27: OK | X27: 0.83776 | Y27: 54.07060947 | Z27: -47.54264404 | AB27: =TEXT($Y27, "0" & DeciSep() & "000") & ListSep() & TEXT($Z27, "0" & DeciSep() & "000") -> 54.071,-47.543
N28: 53.18488312 | O28: -46.29431534 | P28: 35.09986496 | R28: 1.14802 | S28: 1.37911 | T28: 0.56584 | U28: 1.25768 | V28: NG | X28: 0.87266 | Y28: 54.0190074 | Z28: -47.47855661 | AB28: =TEXT($Y28, "0" & DeciSep() & "000") & ListSep() & TEXT($Z28, "0" & DeciSep() & "000") -> 54.019,-47.479
N29: 50.8279953 | O29: -48.18943024 | P29: 34.66253281 | R29: -1.73795 | S29: 1.66983 | T29: -0.27782 | U29: -1.64656 | V29: NG | X29: 0.90757 | Y29: 53.96494547 | Z29: -47.41388613 | AB29: =TEXT($Y29, "0" & DeciSep() & "000") & ListSep() & TEXT($Z29, "0" & DeciSep() & "000") -> 53.965,-47.414
N30: 52.35873032 | O30: -46.83024216 | P30: 35.02381134 | R30: 1.05286 | S30: 0.39687 | T30: 0.19649 | U30: 0.34482 | V30: OK | X30: 0.94248 | Y30: 53.90848956 | Z30: -47.34871139 | AB30: =TEXT($Y30, "0" & DeciSep() & "000") & ListSep() & TEXT($Z30, "0" & DeciSep() & "000") -> 53.908,-47.349
N31: 51.45041656 | O31: -46.64789963 | P31: 35.08633423 | R31: 3.18267 | S31: 0.65270 | T31: -0.65215 | U31: -0.02680 | V31: OK | X31: 0.97738 | Y31: 53.84970845 | Z31: -47.2831118 | AB31: =TEXT($Y31, "0" & DeciSep() & "000") & ListSep() & TEXT($Z31, "0" & DeciSep() & "000") -> 53.850,-47.283
N32: 51.98390961 | O32: -47.87001038 | P32: 34.73635101 | R32: -0.97842 | S32: 0.87016 | T32: 0.48584 | U32: -0.72190 | V32: OK | X32: 1.01229 | Y32: 53.78867375 | Z32: -47.21716728 | AB32: =TEXT($Y32, "0" & DeciSep() & "000") & ListSep() & TEXT($Z32, "0" & DeciSep() & "000") -> 53.789,-47.217
N33: 51.68148804 | O33: -48.86039352 | P33: 34.47703552 | R33: -1.12949 | S33: 1.88746 | T33: 0.80617 | U33: -1.70664 | V33: NG | X33: 1.04720 | Y33: 53.72545983 | Z33: -47.15095817 | AB33: =TEXT($Y33, "0" & DeciSep() & "000") & ListSep() & TEXT($Z33, "0" & DeciSep() & "000") -> 53.725,-47.151
N34: 53.14122009 | O34: -46.15198898 | P34: 35.28601456 | R34: 1.24992 | S34: 1.42180 | T34: 0.44843 | U34: 1.34923 | V34: NG | X34: 1.08210 | Y34: 53.6601437 | Z34: -47.08456515 | AB34: =TEXT($Y34, "0" & DeciSep() & "000") & ListSep() & TEXT($Z34, "0" & DeciSep() & "000") -> 53.660,-47.085
N35: 51.49549103 | O35: -46.95428467 | P35: 34.94658279 | R35: 3.66209 | S35: 0.50658 | T35: -0.43949 | U35: -0.25193 | V35: OK | X35: 1.11701 | Y35: =$A$3+$A$9*COS($X35)*COS($C$15)-$A$12*SIN($X35)*SIN($C$15) -> 53.59280495 | Z35: =$A$6+$A$9*COS($X35)*SIN($C$15)+$A$12*SIN($X35)*COS($C$15) -> -47.0180691 | AB35: =TEXT($Y35, "0" & DeciSep() & "000") & ListSep() & TEXT($Z35, "0" & DeciSep() & "000") -> 53.593,-47.018
N36: 52.68697357 | O36: -47.26801682 | P36: 35.07130051 | R36: 0.23889 | S36: 0.73740 | T36: 0.71646 | U36: 0.17449 | V36: OK | X36: 1.15192 | Y36: 53.52352561 | Z36: -46.95155103 | AB36: =TEXT($Y36, "0" & DeciSep() & "000") & ListSep() & TEXT($Z36, "0" & DeciSep() & "000") -> 53.524,-46.952
N37: 52.49287033 | O37: -46.49315643 | P37: 35.16409683 | R37: 1.41024 | S37: 0.70697 | T37: 0.11302 | U37: 0.69788 | V37: OK | X37: 1.18682 | Y37: 53.45239008 | Z37: -46.88509199 | AB37: =TEXT($Y37, "0" & DeciSep() & "000") & ListSep() & TEXT($Z37, "0" & DeciSep() & "000") -> 53.452,-46.885
N38: 52.46137238 | O38: -46.80486298 | P38: 35.13911057 | R38: 1.01100 | S38: 0.50094 | T38: 0.26601 | U38: 0.42448 | V38: OK | X38: 1.22173 | Y38: 53.37948504 | Z38: -46.81877295 | AB38: =TEXT($Y38, "0" & DeciSep() & "000") & ListSep() & TEXT($Z38, "0" & DeciSep() & "000") -> 53.379,-46.819
N39: 52.19906616 | O39: -48.47869873 | P39: 34.697258 | R39: -0.82611 | S39: 1.49204 | T39: 1.01121 | U39: -1.09710 | V39: NG | X39: 1.25664 | Y39: 53.30489932 | Z39: -46.75267471 | AB39: =TEXT($Y39, "0" & DeciSep() & "000") & ListSep() & TEXT($Z39, "0" & DeciSep() & "000") -> 53.305,-46.753
N40: 52.8070488 | O40: -46.40505981 | P40: 35.16009521 | R40: 1.24611 | S40: 1.00264 | T40: 0.31985 | U40: 0.95025 | V40: OK | X40: 1.29154 | Y40: 53.22872377 | Z40: -46.68687779 | AB40: =TEXT($Y40, "0" & DeciSep() & "000") & ListSep() & TEXT($Z40, "0" & DeciSep() & "000") -> 53.229,-46.687
N41: 51.73469925 | O41: -47.5488472 | P41: 34.76993561 | R41: -1.41019 | S41: 0.60960 | T41: 0.09748 | U41: -0.60176 | V41: OK | X41: 1.32645 | Y41: 53.15105121 | Z41: -46.62146237 | AB41: =TEXT($Y41, "0" & DeciSep() & "000") & ListSep() & TEXT($Z41, "0" & DeciSep() & "000") -> 53.151,-46.621
N42: 50.01898193 | O42: -45.40557098 | P42: 35.33742523 | R42: 3.07476 | S42: 2.54296 | T42: -2.53728 | U42: 0.16981 | V42: OK | X42: 1.36136 | Y42: 53.07197627 | Z42: -46.55650813 | AB42: =TEXT($Y42, "0" & DeciSep() & "000") & ListSep() & TEXT($Z42, "0" & DeciSep() & "000") -> 53.072,-46.557
N43: 53.59563065 | O43: -46.48932266 | P43: 35.11725998 | R43: 0.92061 | S43: 1.67536 | T43: 1.01415 | U43: 1.33354 | V43: NG | X43: 1.39626 | Y43: 52.9915953 | Z43: -46.49209422 | AB43: =TEXT($Y43, "0" & DeciSep() & "000") & ListSep() & TEXT($Z43, "0" & DeciSep() & "000") -> 52.992,-46.492
N44: 49.83255386 | O44: -46.3946228 | P44: 35.17443085 | R44: 3.48009 | S44: 2.25040 | T44: -2.12270 | U44: -0.74730 | V44: NG | X44: 1.43117 | Y44: 52.91000622 | Z44: -46.42829912 | AB44: =TEXT($Y44, "0" & DeciSep() & "000") & ListSep() & TEXT($Z44, "0" & DeciSep() & "000") -> 52.910,-46.428
N45: 52.86399841 | O45: -48.22413254 | P45: 34.71809006 | R45: -0.34532 | S45: 1.49833 | T45: 1.40988 | U45: -0.50718 | V45: OK | X45: 1.46608 | Y45: 52.82730844 | Z45: -46.36520055 | AB45: =TEXT($Y45, "0" & DeciSep() & "000") & ListSep() & TEXT($Z45, "0" & DeciSep() & "000") -> 52.827,-46.365
N46: 53.31534195 | O46: -48.221241 | P46: 34.75814438 | R46: -0.13745 | S46: 1.79487 | T46: 1.77794 | U46: -0.24593 | V46: OK | X46: 1.50098 | Y46: 52.74360271 | Z46: -46.30287538 | AB46: =TEXT($Y46, "0" & DeciSep() & "000") & ListSep() & TEXT($Z46, "0" & DeciSep() & "000") -> 52.744,-46.303
N47: 51.44800186 | O47: -45.9825325 | P47: 35.21298981 | R47: 2.67875 | S47: 1.15756 | T47: -1.03577 | U47: 0.51685 | V47: OK | X47: 1.53589 | Y47: 52.65899101 | Z47: -46.24139955 | AB47: =TEXT($Y47, "0" & DeciSep() & "000") & ListSep() & TEXT($Z47, "0" & DeciSep() & "000") -> 52.659,-46.241
N48: 52.32161331 | O48: -47.17875671 | P48: 34.97530365 | R48: 0.10357 | S48: 0.36795 | T48: 0.36598 | U48: 0.03804 | V48: OK | X48: 1.57080 | Y48: 52.57357644 | Z48: -46.18084796 | AB48: =TEXT($Y48, "0" & DeciSep() & "000") & ListSep() & TEXT($Z48, "0" & DeciSep() & "000") -> 52.574,-46.181
N49: 51.38197708 | O49: -46.84869003 | P49: 35.0350914 | R49: 3.51235 | S49: 0.63628 | T49: -0.59304 | U49: -0.23054 | V49: OK | X49: 1.60570 | Y49: 52.48746305 | Z49: -46.12129437 | AB49: =TEXT($Y49, "0" & DeciSep() & "000") & ListSep() & TEXT($Z49, "0" & DeciSep() & "000") -> 52.487,-46.121
N50: 51.73745728 | O50: -48.47400284 | P50: 34.58980179 | R50: -1.13620 | S50: 1.49720 | T50: 0.63039 | U50: -1.35802 | V50: NG | X50: 1.64061 | Y50: 52.40075576 | Z50: -46.06281136 | AB50: =TEXT($Y50, "0" & DeciSep() & "000") & ListSep() & TEXT($Z50, "0" & DeciSep() & "000") -> 52.401,-46.063
N51: 50.20585632 | O51: -44.90219498 | P51: 35.35886383 | R51: 2.88919 | S51: 2.76039 | T51: -2.67293 | U51: 0.68934 | V51: NG | X51: 1.67552 | Y51: 52.31356021 | Z51: -46.00547017 | AB51: =TEXT($Y51, "0" & DeciSep() & "000") & ListSep() & TEXT($Z51, "0" & DeciSep() & "000") -> 52.314,-46.005
N52: 51.47248459 | O52: -46.97002029 | P52: 35.00409317 | R52: 3.69569 | S52: 0.52837 | T52: -0.44931 | U52: -0.27801 | V52: OK | X52: 1.71042 | Y52: 52.22598264 | Z52: -45.94934065 | AB52: =TEXT($Y52, "0" & DeciSep() & "000") & ListSep() & TEXT($Z52, "0" & DeciSep() & "000") -> 52.226,-45.949
N53: 53.75967789 | O53: -47.02523422 | P53: 35.14561081 | R53: 0.59653 | S53: 1.75986 | T53: 1.45592 | U53: 0.98864 | V53: NG | X53: 1.74533 | Y53: 52.13812974 | Z53: -45.89449121 | AB53: =TEXT($Y53, "0" & DeciSep() & "000") & ListSep() & TEXT($Z53, "0" & DeciSep() & "000") -> 52.138,-45.894
N54: 53.62302017 | O54: -47.81565857 | P54: 34.78963089 | R54: 0.14517 | S54: 1.81645 | T54: 1.79734 | U54: 0.26278 | V54: OK | X54: 1.78024 | Y54: 52.05010856 | Z54: -45.84098865 | AB54: =TEXT($Y54, "0" & DeciSep() & "000") & ListSep() & TEXT($Z54, "0" & DeciSep() & "000") -> 52.050,-45.841
N55: 53.13010406 | O55: -46.56900787 | P55: 35.22890472 | R55: 0.97521 | S55: 1.20950 | T55: 0.67852 | U55: 1.00125 | V55: NG | X55: 1.81514 | Y55: 51.96202632 | Z55: -45.78889818 | AB55: =TEXT($Y55, "0" & DeciSep() & "000") & ListSep() & TEXT($Z55, "0" & DeciSep() & "000") -> 51.962,-45.789
N56: 53.71320343 | O56: -48.26403809 | P56: 34.58472443 | R56: -0.02480 | S56: 2.12905 | T56: 2.12840 | U56: -0.05279 | V56: OK | X56: 1.85005 | Y56: 51.87399035 | Z56: -45.73828324 | AB56: =TEXT($Y56, "0" & DeciSep() & "000") & ListSep() & TEXT($Z56, "0" & DeciSep() & "000") -> 51.874,-45.738
N57: 52.42544556 | O57: -47.3460083 | P57: 34.93013382 | R57: -0.07192 | S57: 0.54838 | T57: 0.54697 | U57: -0.03941 | V57: OK | X57: 1.88496 | Y57: 51.7861079 | Z57: -45.68920551 | AB57: =TEXT($Y57, "0" & DeciSep() & "000") & ListSep() & TEXT($Z57, "0" & DeciSep() & "000") -> 51.786,-45.689
N58: 52.4609375 | O58: -47.19054794 | P58: 35.02236176 | R58: 0.21887 | S58: 0.49877 | T58: 0.48687 | U58: 0.10830 | V58: OK | X58: 1.91986 | Y58: 51.69848605 | Z58: -45.64172478 | AB58: =TEXT($Y58, "0" & DeciSep() & "000") & ListSep() & TEXT($Z58, "0" & DeciSep() & "000") -> 51.698,-45.642
N59: 51.90016174 | O59: -45.73956299 | P59: 35.39297867 | R59: 2.26071 | S59: 1.26438 | T59: -0.80474 | U59: 0.97522 | V59: NG | X59: 1.95477 | Y59: 51.61123154 | Z59: -45.59589891 | AB59: =TEXT($Y59, "0" & DeciSep() & "000") & ListSep() & TEXT($Z59, "0" & DeciSep() & "000") -> 51.611,-45.596
N60: 53.56009293 | O60: -47.29487228 | P60: 34.9897995 | R60: 0.42406 | S60: 1.58772 | T60: 1.44709 | U60: 0.65329 | V60: OK | X60: 1.98968 | Y60: 51.52445069 | Z60: -45.55178371 | AB60: =TEXT($Y60, "0" & DeciSep() & "000") & ListSep() & TEXT($Z60, "0" & DeciSep() & "000") -> 51.524,-45.552
N61: 51.40496826 | O61: -47.46869278 | P61: 34.91014099 | R61: -1.86355 | S61: 0.75745 | T61: -0.21859 | U61: -0.72523 | V61: OK | X61: 2.02458 | Y61: 51.43824922 | Z61: -45.50943294 | AB61: =TEXT($Y61, "0" & DeciSep() & "000") & ListSep() & TEXT($Z61, "0" & DeciSep() & "000") -> 51.438,-45.509
N62: 53.87197495 | O62: -48.02915573 | P62: 34.79222107 | R62: 0.10820 | S62: 2.13622 | T62: 2.12373 | U62: 0.23069 | V62: OK | X62: 2.05949 | Y62: 51.35273216 | Z62: -45.4688982 | AB62: =TEXT($Y62, "0" & DeciSep() & "000") & ListSep() & TEXT($Z62, "0" & DeciSep() & "000") -> 51.353,-45.469
N63: 51.30966187 | O63: -46.36322784 | P63: 35.15874481 | R63: 3.00740 | S63: 0.93917 | T63: -0.93073 | U63: 0.12565 | V63: OK | X63: 2.09440 | Y63: 51.2680037 | Z63: -45.43022887 | AB63: =TEXT($Y63, "0" & DeciSep() & "000") & ListSep() & TEXT($Z63, "0" & DeciSep() & "000") -> 51.268,-45.430
N64: 53.97297287 | O64: -49.74769974 | P64: 34.35152054 | R64: -0.33720 | S64: 3.38267 | T64: 3.19218 | U64: -1.11913 | V64: NG | X64: 2.12930 | Y64: 51.18416706 | Z64: -45.39347206 | AB64: =TEXT($Y64, "0" & DeciSep() & "000") & ListSep() & TEXT($Z64, "0" & DeciSep() & "000") -> 51.184,-45.393
N65: 52.63887405 | O65: -46.86645889 | P65: 35.0246315 | R65: 0.81692 | S65: 0.65268 | T65: 0.44674 | U65: 0.47583 | V65: OK | X65: 2.16421 | Y65: 51.10132439 | Z65: -45.35867256 | AB65: =TEXT($Y65, "0" & DeciSep() & "000") & ListSep() & TEXT($Z65, "0" & DeciSep() & "000") -> 51.101,-45.359
N66: 50.02683258 | O66: -47.03359604 | P66: 34.88151169 | R66: -2.51370 | S66: 1.97345 | T66: -1.59705 | U66: -1.15928 | V66: NG | X66: 2.19911 | Y66: 51.01957661 | Z66: -45.32587276 | AB66: =TEXT($Y66, "0" & DeciSep() & "000") & ListSep() & TEXT($Z66, "0" & DeciSep() & "000") -> 51.020,-45.326
N67: 51.58845901 | O67: -46.23664093 | P67: 35.26200485 | R67: =(ATAN2($N67-$A$3, $O67-$A$6))-$C$15 -> 2.67611 | S67: =SQRT(($N67-$A$3)^2+($O67-$A$6)^2) -> 0.86723 | T67: -0.77496 | U67: 0.38926 | V67: =IF(($T67/$A$9)^2 +($U67/$A$12)^2<=1, "OK", "NG") -> OK | X67: 2.23402 | Y67: =$A$3+$A$9*COS($X67)*COS($C$15)-$A$12*SIN($X67)*SIN($C$15) -> 50.93902333 | Z67: =$A$6+$A$9*COS($X67)*SIN($C$15)+$A$12*SIN($X67)*COS($C$15) -> -45.29511264 | AB67: =TEXT($Y67, "0" & DeciSep() & "000") & ListSep() & TEXT($Z67, "0" & DeciSep() & "000") -> 50.939,-45.295
N68: 51.75495148 | O68: -45.33511353 | P68: 35.43533707 | R68: 2.32780 | S68: 1.68282 | T68: =$S68*COS($R68) -> -1.15567 | U68: =$S68*SIN($R68) -> 1.22324 | V68: NG | X68: 2.26893 | Y68: 50.85976269 | Z68: -45.26642965 | AB68: =TEXT($Y68, "0" & DeciSep() & "000") & ListSep() & TEXT($Z68, "0" & DeciSep() & "000") -> 50.860,-45.266
N69: 51.99147797 | O69: -45.07908249 | P69: 35.55433655 | R69: 2.18610 | S69: 1.92094 | T69: -1.10877 | U69: 1.56864 | V69: NG | X69: 2.30383 | Y69: 50.78189125 | Z69: -45.23985875 | AB69: =TEXT($Y69, "0" & DeciSep() & "000") & ListSep() & TEXT($Z69, "0" & DeciSep() & "000") -> 50.782,-45.240
N70: 51.7990303 | O70: -47.48424149 | P70: 34.87515259 | R70: -1.35332 | S70: 0.52429 | T70: 0.11312 | U70: -0.51194 | V70: OK | X70: 2.33874 | Y70: 50.70550389 | Z70: -45.21543231 | AB70: =TEXT($Y70, "0" & DeciSep() & "000") & ListSep() & TEXT($Z70, "0" & DeciSep() & "000") -> 50.706,-45.215
N71: 51.59972763 | O71: -47.43518066 | P71: 34.72648239 | R71: -1.70357 | S71: 0.59127 | T71: -0.07827 | U71: -0.58607 | V71: OK | X71: 2.37365 | Y71: 50.63069367 | Z71: -45.1931801 | AB71: =TEXT($Y71, "0" & DeciSep() & "000") & ListSep() & TEXT($Z71, "0" & DeciSep() & "000") -> 50.631,-45.193
N72: 51.06457901 | O72: -47.74740982 | P72: 34.91891098 | R72: -1.85659 | S72: 1.19734 | T72: -0.33756 | U72: -1.14878 | V72: NG | X72: 2.40855 | Y72: 50.55755174 | Z72: -45.17312921 | AB72: =TEXT($Y72, "0" & DeciSep() & "000") & ListSep() & TEXT($Z72, "0" & DeciSep() & "000") -> 50.558,-45.173
N73: 51.71273804 | O73: -45.93746185 | P73: 35.31108093 | R73: 2.44570 | S73: 1.10068 | T73: -0.84476 | U73: 0.70561 | V73: OK | X73: 2.44346 | Y73: 50.48616721 | Z73: -45.15530409 | AB73: =TEXT($Y73, "0" & DeciSep() & "000") & ListSep() & TEXT($Z73, "0" & DeciSep() & "000") -> 50.486,-45.155
N74: 50.33106995 | O74: -46.07093811 | P74: 35.22698212 | R74: 3.24450 | S74: 1.91010 | T74: -1.90000 | U74: -0.19622 | V74: OK | X74: 2.47837 | Y74: 50.41662706 | Z74: -45.13972644 | AB74: =TEXT($Y74, "0" & DeciSep() & "000") & ListSep() & TEXT($Z74, "0" & DeciSep() & "000") -> 50.417,-45.140
N75: 51.19910812 | O75: -47.29082489 | P75: 34.92412567 | R75: -2.18241 | S75: 0.85206 | T75: -0.48924 | U75: -0.69760 | V75: OK | X75: 2.51327 | Y75: 50.349016 | Z75: -45.12641526 | AB75: =TEXT($Y75, "0" & DeciSep() & "000") & ListSep() & TEXT($Z75, "0" & DeciSep() & "000") -> 50.349,-45.126
N76: 52.82001114 | O76: -48.10377884 | P76: 34.58342743 | R76: -0.32098 | S76: 1.37504 | T76: 1.30482 | U76: -0.43382 | V76: OK | X76: 2.54818 | Y76: 50.28341641 | Z76: -45.11538674 | AB76: =TEXT($Y76, "0" & DeciSep() & "000") & ListSep() & TEXT($Z76, "0" & DeciSep() & "000") -> 50.283,-45.115
N77: 51.47540665 | O77: -47.12356186 | P77: 34.96059036 | R77: -2.29941 | S77: 0.53895 | T77: -0.35885 | U77: -0.40211 | V77: OK | X77: 2.58309 | Y77: 50.21990821 | Z77: -45.10665434 | AB77: =TEXT($Y77, "0" & DeciSep() & "000") & ListSep() & TEXT($Z77, "0" & DeciSep() & "000") -> 50.220,-45.107
N78: 51.8351059 | O78: -49.1947937 | P78: 34.38890457 | R78: -1.03492 | S78: 2.20098 | T78: 1.12381 | U78: -1.89245 | V78: NG | X78: 2.61799 | Y78: 50.15856878 | Z78: -45.10022868 | AB78: =TEXT($Y78, "0" & DeciSep() & "000") & ListSep() & TEXT($Z78, "0" & DeciSep() & "000") -> 50.159,-45.100
N79: 51.83273697 | O79: -47.31942368 | P79: 34.78022385 | R79: -1.44231 | S79: 0.36057 | T79: 0.04620 | U79: -0.35759 | V79: OK | X79: 2.65290 | Y79: 50.09947285 | Z79: -45.09611761 | AB79: =TEXT($Y79, "0" & DeciSep() & "000") & ListSep() & TEXT($Z79, "0" & DeciSep() & "000") -> 50.099,-45.096
N80: 51.65022659 | O80: -45.62739182 | P80: 35.33094025 | R80: 2.43118 | S80: 1.41647 | T80: -1.07381 | U80: 0.92375 | V80: OK | X80: 2.68781 | Y80: 50.04269242 | Z80: -45.09432612 | AB80: =TEXT($Y80, "0" & DeciSep() & "000") & ListSep() & TEXT($Z80, "0" & DeciSep() & "000") -> 50.043,-45.094
N81: 53.62166595 | O81: -47.94668579 | P81: 34.73098373 | R81: 0.08246 | S81: 1.87777 | T81: 1.87139 | U81: 0.15467 | V81: OK | X81: 2.72271 | Y81: 49.98829667 | Z81: -45.0948564 | AB81: =TEXT($Y81, "0" & DeciSep() & "000") & ListSep() & TEXT($Z81, "0" & DeciSep() & "000") -> 49.988,-45.095
N82: 52.88964462 | O82: -47.52050781 | P82: 34.82286835 | R82: 0.08149 | S82: 1.03073 | T82: 1.02731 | U82: 0.08390 | V82: OK | X82: 2.75762 | Y82: 49.93635187 | Z82: -45.09770781 | AB82: =TEXT($Y82, "0" & DeciSep() & "000") & ListSep() & TEXT($Z82, "0" & DeciSep() & "000") -> 49.936,-45.098
N83: 53.16600037 | O83: -47.50839615 | P83: 34.98189163 | R83: 0.19970 | S83: 1.27202 | T83: 1.24674 | U83: 0.25234 | V83: OK | X83: 2.79253 | Y83: 49.8869213 | Z83: -45.10287687 | AB83: =TEXT($Y83, "0" & DeciSep() & "000") & ListSep() & TEXT($Z83, "0" & DeciSep() & "000") -> 49.887,-45.103
N84: 51.85113907 | O84: -47.01593399 | P84: 35.06180191 | R84: -2.42409 | S84: 0.14971 | T84: -0.11280 | U84: -0.09844 | V84: OK | X84: 2.82743 | Y84: 49.8400652 | Z84: -45.11035728 | AB84: =TEXT($Y84, "0" & DeciSep() & "000") & ListSep() & TEXT($Z84, "0" & DeciSep() & "000") -> 49.840,-45.110
N85: 51.31196976 | O85: -47.07830048 | P85: 34.97697067 | R85: -2.41741 | S85: 0.69247 | T85: -0.51869 | U85: -0.45878 | V85: OK | X85: 2.86234 | Y85: 49.79584064 | Z85: -45.12013992 | AB85: =TEXT($Y85, "0" & DeciSep() & "000") & ListSep() & TEXT($Z85, "0" & DeciSep() & "000") -> 49.796,-45.120
N86: 50.66884995 | O86: -47.26160049 | P86: 34.9671402 | R86: -2.33668 | S86: 1.35661 | T86: -0.94037 | U86: -0.97781 | V86: NG | X86: 2.89725 | Y86: 49.75430152 | Z86: -45.13221289 | AB86: =TEXT($Y86, "0" & DeciSep() & "000") & ListSep() & TEXT($Z86, "0" & DeciSep() & "000") -> 49.754,-45.132
N87: 52.6035881 | O87: -47.25785828 | P87: 34.86948013 | R87: 0.20713 | S87: 0.65636 | T87: 0.64233 | U87: 0.13498 | V87: OK | X87: 2.93215 | Y87: 49.71549843 | Z87: -45.14656147 | AB87: =TEXT($Y87, "0" & DeciSep() & "000") & ListSep() & TEXT($Z87, "0" & DeciSep() & "000") -> 49.715,-45.147
N88: 54.59582901 | O88: -50.01091766 | P88: 34.24257278 | R88: -0.24843 | S88: 3.97542 | T88: 3.85337 | U88: -0.97749 | V88: NG | X88: 2.96706 | Y88: 49.67947865 | Z88: -45.16316818 | AB88: =TEXT($Y88, "0" & DeciSep() & "000") & ListSep() & TEXT($Z88, "0" & DeciSep() & "000") -> 49.679,-45.163
N89: 52.41285324 | O89: -46.86734009 | P89: 35.06121826 | R89: 0.92177 | S89: 0.43364 | T89: 0.26210 | U89: 0.34547 | V89: OK | X89: 3.00197 | Y89: 49.64628607 | Z89: -45.18201278 | AB89: =TEXT($Y89, "0" & DeciSep() & "000") & ListSep() & TEXT($Z89, "0" & DeciSep() & "000") -> 49.646,-45.182
N90: 52.06154251 | O90: -46.19522858 | P90: 35.15534973 | R90: 2.10534 | S90: 0.80712 | T90: -0.41119 | U90: 0.69453 | V90: OK | X90: 3.03687 | Y90: 49.61596113 | Z90: -45.20307232 | AB90: =TEXT($Y90, "0" & DeciSep() & "000") & ListSep() & TEXT($Z90, "0" & DeciSep() & "000") -> 49.616,-45.203
N91: 52.86711502 | O91: -47.59693146 | P91: 34.95088959 | R91: 0.00796 | S91: 1.05272 | T91: 1.05268 | U91: 0.00838 | V91: OK | X91: 3.07178 | Y91: 49.58854078 | Z91: -45.22632114 | AB91: =TEXT($Y91, "0" & DeciSep() & "000") & ListSep() & TEXT($Z91, "0" & DeciSep() & "000") -> 49.589,-45.226
N92: 50.75043488 | O92: -46.09016037 | P92: 35.17077255 | R92: 3.12310 | S92: 1.54571 | T92: -1.54545 | U92: 0.02858 | V92: OK | X92: 3.10669 | Y92: 49.56405841 | Z92: -45.25173092 | AB92: =TEXT($Y92, "0" & DeciSep() & "000") & ListSep() & TEXT($Z92, "0" & DeciSep() & "000") -> 49.564,-45.252
N93: 50.71459579 | O93: -46.37518692 | P93: 35.05701828 | R93: 3.30001 | S93: 1.42921 | T93: -1.41132 | U93: -0.22546 | V93: OK | X93: 3.14159 | Y93: 49.54254387 | Z93: -45.27927069 | AB93: =TEXT($Y93, "0" & DeciSep() & "000") & ListSep() & TEXT($Z93, "0" & DeciSep() & "000") -> 49.543,-45.279
N94: 50.31755447 | O94: -47.08787155 | P94: 34.9998436 | R94: -2.47855 | S94: 1.68474 | T94: -1.32778 | U94: -1.03699 | V94: NG | X94: 3.17650 | Y94: 49.52402335 | Z94: -45.30890691 | AB94: =TEXT($Y94, "0" & DeciSep() & "000") & ListSep() & TEXT($Z94, "0" & DeciSep() & "000") -> 49.524,-45.309
N95: 52.22590256 | O95: -46.3053627 | P95: 35.14420319 | R95: 1.86724 | S95: 0.73045 | T95: -0.21338 | U95: 0.69859 | V95: OK | X95: 3.21141 | Y95: 49.50851944 | Z95: -45.34060346 | AB95: =TEXT($Y95, "0" & DeciSep() & "000") & ListSep() & TEXT($Z95, "0" & DeciSep() & "000") -> 49.509,-45.341
N96: 52.14050293 | O96: -47.69614792 | P96: 34.84480667 | R96: -0.76078 | S96: 0.71019 | T96: 0.51439 | U96: -0.48966 | V96: OK | X96: 3.24631 | Y96: 49.49605101 | Z96: -45.37432173 | AB96: =TEXT($Y96, "0" & DeciSep() & "000") & ListSep() & TEXT($Z96, "0" & DeciSep() & "000") -> 49.496,-45.374
N97: 52.81174088 | O97: -46.10976028 | P97: 35.28994751 | R97: 1.44235 | S97: 1.20476 | T97: 0.15432 | U97: 1.19484 | V97: NG | X97: 3.28122 | Y97: 49.48663325 | Z97: -45.41002064 | AB97: =TEXT($Y97, "0" & DeciSep() & "000") & ListSep() & TEXT($Z97, "0" & DeciSep() & "000") -> 49.487,-45.410
N98: 53.66928864 | O98: -48.15142822 | P98: 34.73155212 | R98: 0.00704 | S98: 2.02788 | T98: 2.02783 | U98: 0.01427 | V98: OK | X98: 3.31613 | Y98: 49.48027764 | Z98: -45.4476567 | AB98: =TEXT($Y98, "0" & DeciSep() & "000") & ListSep() & TEXT($Z98, "0" & DeciSep() & "000") -> 49.480,-45.448
N99: 51.46709061 | O99: -46.79431915 | P99: 35.0858345 | R99: 3.38411 | S99: 0.57122 | T99: -0.55451 | U99: -0.13718 | V99: OK | X99: 3.35103 | Y99: =$A$3+$A$9*COS($X99)*COS($C$15)-$A$12*SIN($X99)*SIN($C$15) -> 49.47699193 | Z99: =$A$6+$A$9*COS($X99)*SIN($C$15)+$A$12*SIN($X99)*COS($C$15) -> -45.48718404 | AB99: =TEXT($Y99, "0" & DeciSep() & "000") & ListSep() & TEXT($Z99, "0" & DeciSep() & "000") -> 49.477,-45.487
N100: 51.56160736 | O100: -45.64769745 | P100: 35.35432053 | R100: 2.49515 | S100: 1.42159 | T100: -1.13476 | U100: 0.85629 | V100: OK | X100: 3.38594 | Y100: 49.47678012 | Z100: -45.52855452 | AB100: =TEXT($Y100, "0" & DeciSep() & "000") & ListSep() & TEXT($Z100, "0" & DeciSep() & "000") -> 49.477,-45.529
N101: 51.69744873 | O101: -47.09289551 | P101: 34.99275208 | R101: -2.23282 | S101: 0.31649 | T101: -0.19455 | U101: -0.24963 | V101: OK | X101: 3.42085 | Y101: 49.47964246 | Z101: -45.57171773 | AB101: =TEXT($Y101, "0" & DeciSep() & "000") & ListSep() & TEXT($Z101, "0" & DeciSep() & "000") -> 49.480,-45.572
N102: 52.09270096 | O102: -47.25990295 | P102: 34.71625137 | R102: -0.61732 | S102: 0.27594 | T102: 0.22501 | U102: -0.15973 | V102: OK | X102: 3.45575 | Y102: 49.48557546 | Z102: -45.61662108 | AB102: =TEXT($Y102, "0" & DeciSep() & "000") & ListSep() & TEXT($Z102, "0" & DeciSep() & "000") -> 49.486,-45.617
N103: 50.0389328 | O103: -46.38999557 | P103: 35.12397385 | R103: 3.45089 | S103: 2.05375 | T103: -1.95630 | U103: -0.62514 | V103: OK | X103: 3.49066 | Y103: 49.49457191 | Z103: -45.66320987 | AB103: =TEXT($Y103, "0" & DeciSep() & "000") & ListSep() & TEXT($Z103, "0" & DeciSep() & "000") -> 49.495,-45.663
N104: 54.15209961 | O104: -47.56597137 | P104: 35.00170135 | R104: 0.35370 | S104: 2.22528 | T104: 2.08752 | U104: 0.77078 | V104: NG | X104: 3.52557 | Y104: 49.50662084 | Z104: -45.71142732 | AB104: =TEXT($Y104, "0" & DeciSep() & "000") & ListSep() & TEXT($Z104, "0" & DeciSep() & "000") -> 49.507,-45.711
N105: 54.45373154 | O105: -47.44837189 | P105: 35.05851364 | R105: 0.43013 | S105: 2.49436 | T105: 2.26715 | U105: 1.04012 | V105: NG | X105: 3.56047 | Y105: 49.52170756 | Z105: -45.76121471 | AB105: =TEXT($Y105, "0" & DeciSep() & "000") & ListSep() & TEXT($Z105, "0" & DeciSep() & "000") -> 49.522,-45.761
N106: 53.57162476 | O106: -45.94542313 | P106: 35.30195999 | R106: 1.20187 | S106: 1.89265 | T106: 0.68252 | U106: 1.76531 | V106: NG | X106: 3.59538 | Y106: 49.5398137 | Z106: -45.81251136 | AB106: =TEXT($Y106, "0" & DeciSep() & "000") & ListSep() & TEXT($Z106, "0" & DeciSep() & "000") -> 49.540,-45.813
N107: 52.23944855 | O107: -46.86864471 | P107: 35.12384415 | R107: 1.11261 | S107: 0.27311 | T107: 0.12080 | U107: 0.24494 | V107: OK | X107: 3.63028 | Y107: 49.5609172 | Z107: -45.86525479 | AB107: =TEXT($Y107, "0" & DeciSep() & "000") & ListSep() & TEXT($Z107, "0" & DeciSep() & "000") -> 49.561,-45.865
N108: 54.33023071 | O108: -48.05425262 | P108: 34.7664299 | R108: 0.18600 | S108: 2.55762 | T108: 2.51351 | U108: 0.47297 | V108: OK | X108: 3.66519 | Y108: 49.58499234 | Z108: -45.91938073 | AB108: =TEXT($Y108, "0" & DeciSep() & "000") & ListSep() & TEXT($Z108, "0" & DeciSep() & "000") -> 49.585,-45.919
N109: 51.75492096 | O109: -47.77908325 | P109: 34.66884232 | R109: -1.26470 | S109: 0.81672 | T109: 0.24611 | U109: -0.77876 | V109: OK | X109: 3.70010 | Y109: 49.6120098 | Z109: -45.97482323 | AB109: =TEXT($Y109, "0" & DeciSep() & "000") & ListSep() & TEXT($Z109, "0" & DeciSep() & "000") -> 49.612,-45.975
N110: 52.04480743 | O110: -46.70449448 | P110: 35.04450226 | R110: 2.03118 | S110: 0.29888 | T110: -0.13279 | U110: 0.26776 | V110: OK | X110: 3.73500 | Y110: 49.64193666 | Z110: -46.03151476 | AB110: =TEXT($Y110, "0" & DeciSep() & "000") & ListSep() & TEXT($Z110, "0" & DeciSep() & "000") -> 49.642,-46.032
N111: 52.70191956 | O111: -46.80994797 | P111: 35.15141296 | R111: 0.87529 | S111: 0.72719 | T111: 0.46597 | U111: 0.55829 | V111: OK | X111: 3.76991 | Y111: 49.67473646 | Z111: -46.08938624 | AB111: =TEXT($Y111, "0" & DeciSep() & "000") & ListSep() & TEXT($Z111, "0" & DeciSep() & "000") -> 49.675,-46.089
N112: 51.67137146 | O112: -48.40307999 | P112: 34.56030655 | R112: -1.19000 | S112: 1.44105 | T112: 0.53558 | U112: -1.33783 | V112: NG | X112: 3.80482 | Y112: 49.71036923 | Z112: -46.14836716 | AB112: =TEXT($Y112, "0" & DeciSep() & "000") & ListSep() & TEXT($Z112, "0" & DeciSep() & "000") -> 49.710,-46.148
N113: 49.25759125 | O113: -46.34857941 | P113: 35.13882446 | R113: 3.51924 | S113: 2.81872 | T113: -2.62009 | U113: -1.03937 | V113: NG | X113: 3.83972 | Y113: 49.74879156 | Z113: -46.20838566 | AB113: =TEXT($Y113, "0" & DeciSep() & "000") & ListSep() & TEXT($Z113, "0" & DeciSep() & "000") -> 49.749,-46.208
N114: 52.31452179 | O114: -47.03887558 | P114: 34.94026947 | R114: 0.48789 | S114: 0.31692 | T114: 0.27994 | U114: 0.14856 | V114: OK | X114: 3.87463 | Y114: 49.78995664 | Z114: -46.26936862 | AB114: =TEXT($Y114, "0" & DeciSep() & "000") & ListSep() & TEXT($Z114, "0" & DeciSep() & "000") -> 49.790,-46.269
N115: 50.29737854 | O115: -47.18508911 | P115: 34.96694565 | R115: -2.42244 | S115: 1.71265 | T115: -1.28854 | U115: -1.12820 | V115: NG | X115: 3.90954 | Y115: 49.83381432 | Z115: -46.33124175 | AB115: =TEXT($Y115, "0" & DeciSep() & "000") & ListSep() & TEXT($Z115, "0" & DeciSep() & "000") -> 49.834,-46.331
N116: 51.81510925 | O116: -46.30083466 | P116: 35.17897797 | R116: 2.44019 | S116: 0.72320 | T116: -0.55248 | U116: 0.46667 | V116: OK | X116: 3.94444 | Y116: 49.88031117 | Z116: -46.39392965 | AB116: =TEXT($Y116, "0" & DeciSep() & "000") & ListSep() & TEXT($Z116, "0" & DeciSep() & "000") -> 49.880,-46.394
N117: 51.86933136 | O117: -46.52539444 | P117: 35.2134819 | R117: 2.45033 | S117: 0.49226 | T117: -0.37926 | U117: 0.31383 | V117: OK | X117: 3.97935 | Y117: 49.92939053 | Z117: -46.45735596 | AB117: =TEXT($Y117, "0" & DeciSep() & "000") & ListSep() & TEXT($Z117, "0" & DeciSep() & "000") -> 49.929,-46.457
N118: 51.19293976 | O118: -47.48492432 | P118: 34.89796066 | R118: -1.98968 | S118: 0.94154 | T118: -0.38296 | U118: -0.86014 | V118: OK | X118: 4.01426 | Y118: 49.9809926 | Z118: -46.52144339 | AB118: =TEXT($Y118, "0" & DeciSep() & "000") & ListSep() & TEXT($Z118, "0" & DeciSep() & "000") -> 49.981,-46.521
N119: 52.46040344 | O119: -45.61978531 | P119: 35.29668427 | R119: 1.85969 | S119: 1.45498 | T119: -0.41452 | U119: 1.39468 | V119: NG | X119: 4.04916 | Y119: 50.03505453 | Z119: -46.58611387 | AB119: =TEXT($Y119, "0" & DeciSep() & "000") & ListSep() & TEXT($Z119, "0" & DeciSep() & "000") -> 50.035,-46.586
N120: 50.33233643 | O120: -45.88708878 | P120: 35.21576691 | R120: 3.16398 | S120: 2.00491 | T120: -2.00441 | U120: -0.04489 | V120: OK | X120: 4.08407 | Y120: 50.09151044 | Z120: -46.65128861 | AB120: =TEXT($Y120, "0" & DeciSep() & "000") & ListSep() & TEXT($Z120, "0" & DeciSep() & "000") -> 50.092,-46.651
N121: 52.58333588 | O121: -48.16238785 | P121: 34.68468094 | R121: -0.49481 | S121: 1.30055 | T121: 1.14456 | U121: -0.61758 | V121: OK | X121: 4.11898 | Y121: 50.15029155 | Z121: -46.7168882 | AB121: =TEXT($Y121, "0" & DeciSep() & "000") & ListSep() & TEXT($Z121, "0" & DeciSep() & "000") -> 50.150,-46.717
N122: 53.66033173 | O122: -49.35480499 | P122: 34.36730194 | R122: -0.34580 | S122: 2.88129 | T122: 2.71072 | U122: -0.97662 | V122: NG | X122: 4.15388 | Y122: 50.21132625 | Z122: -46.78283272 | AB122: =TEXT($Y122, "0" & DeciSep() & "000") & ListSep() & TEXT($Z122, "0" & DeciSep() & "000") -> 50.211,-46.783
N123: 53.25113297 | O123: -46.87833023 | P123: 35.08755112 | R123: 0.70781 | S123: 1.25704 | T123: 0.95508 | U123: 0.81729 | V123: OK | X123: 4.18879 | Y123: 50.27454017 | Z123: -46.84904183 | AB123: =TEXT($Y123, "0" & DeciSep() & "000") & ListSep() & TEXT($Z123, "0" & DeciSep() & "000") -> 50.275,-46.849
N124: 53.12911987 | O124: -45.13338089 | P124: 35.56944656 | R124: 1.63765 | S124: 2.18155 | T124: -0.14573 | U124: 2.17668 | V124: NG | X124: 4.22370 | Y124: 50.3398563 | Z124: -46.91543485 | AB124: =TEXT($Y124, "0" & DeciSep() & "000") & ListSep() & TEXT($Z124, "0" & DeciSep() & "000") -> 50.340,-46.915
N125: 54.18542099 | O125: -47.72770309 | P125: 34.89167023 | R125: 0.28943 | S125: 2.30339 | T125: 2.20759 | U125: 0.65741 | V125: OK | X125: 4.25860 | Y125: 50.40719505 | Z125: -46.9819309 | AB125: =TEXT($Y125, "0" & DeciSep() & "000") & ListSep() & TEXT($Z125, "0" & DeciSep() & "000") -> 50.407,-46.982
N126: 52.00102997 | O126: -46.94275665 | P126: 35.05170441 | R126: 2.16367 | S126: 0.05725 | T126: -0.03199 | U126: 0.04748 | V126: OK | X126: 4.29351 | Y126: 50.47647439 | Z126: -47.04844897 | AB126: =TEXT($Y126, "0" & DeciSep() & "000") & ListSep() & TEXT($Z126, "0" & DeciSep() & "000") -> 50.476,-47.048
N127: 52.36043167 | O127: -48.14497757 | P127: 34.80739212 | R127: -0.65496 | S127: 1.20037 | T127: 0.95198 | U127: -0.73118 | V127: OK | X127: 4.32842 | Y127: 50.54760992 | Z127: -47.11490801 | AB127: =TEXT($Y127, "0" & DeciSep() & "000") & ListSep() & TEXT($Z127, "0" & DeciSep() & "000") -> 50.548,-47.115
N128: 53.26239777 | O128: -48.31887054 | P128: 34.67334747 | R128: -0.19641 | S128: 1.82567 | T128: 1.79057 | U128: -0.35627 | V128: OK | X128: 4.36332 | Y128: 50.62051496 | Z128: -47.18122705 | AB128: =TEXT($Y128, "0" & DeciSep() & "000") & ListSep() & TEXT($Z128, "0" & DeciSep() & "000") -> 50.621,-47.181
N129: 52.73561096 | O129: -47.75624847 | P129: 34.8196907 | R129: -0.18837 | S129: 1.05500 | T129: 1.03634 | U129: -0.19755 | V129: OK | X129: 4.39823 | Y129: 50.69510068 | Z129: -47.24732529 | AB129: =TEXT($Y129, "0" & DeciSep() & "000") & ListSep() & TEXT($Z129, "0" & DeciSep() & "000") -> 50.695,-47.247
N130: 50.97500992 | O130: -47.08384705 | P130: 35.00442886 | R130: -2.44911 | S130: 1.02841 | T130: -0.79153 | U130: -0.65659 | V130: OK | X130: 4.43314 | Y130: 50.77127623 | Z130: -47.31312221 | AB130: =TEXT($Y130, "0" & DeciSep() & "000") & ListSep() & TEXT($Z130, "0" & DeciSep() & "000") -> 50.771,-47.313
N131: 51.16439056 | O131: -45.50244904 | P131: 35.40752029 | R131: =(ATAN2($N131-$A$3, $O131-$A$6))-$C$15 -> 2.69061 | S131: =SQRT(($N131-$A$3)^2+($O131-$A$6)^2) -> 1.71491 | T131: -1.54345 | U131: 0.74744 | V131: =IF(($T131/$A$9)^2 +($U131/$A$12)^2<=1, "OK", "NG") -> OK | X131: 4.46804 | Y131: =$A$3+$A$9*COS($X131)*COS($C$15)-$A$12*SIN($X131)*SIN($C$15) -> 50.84894879 | Z131: =$A$6+$A$9*COS($X131)*SIN($C$15)+$A$12*SIN($X131)*COS($C$15) -> -47.37853763 | AB131: =TEXT($Y131, "0" & DeciSep() & "000") & ListSep() & TEXT($Z131, "0" & DeciSep() & "000") -> 50.849,-47.379
N132: 51.5114212 | O132: -46.47015762 | P132: 35.1551857 | R132: 2.92656 | S132: 0.72072 | T132: =$S132*COS($R132) -> -0.70413 | U132: =$S132*SIN($R132) -> 0.15378 | V132: OK | X132: 4.50295 | Y132: 50.92802373 | Z132: -47.44349187 | AB132: =TEXT($Y132, "0" & DeciSep() & "000") & ListSep() & TEXT($Z132, "0" & DeciSep() & "000") -> 50.928,-47.443
N133: 52.08408737 | O133: -47.77648544 | P133: 34.91602325 | R133: -0.85206 | S133: 0.78103 | T133: 0.51425 | U133: -0.58783 | V133: OK | X133: 4.53786 | Y133: 51.0084047 | Z133: -47.50790578 | AB133: =TEXT($Y133, "0" & DeciSep() & "000") & ListSep() & TEXT($Z133, "0" & DeciSep() & "000") -> 51.008,-47.508
N134: 52.23099899 | O134: -48.122509 | P134: 34.63301849 | R134: -0.75698 | S134: 1.14603 | T134: 0.83307 | U134: -0.78701 | V134: OK | X134: 4.57276 | Y134: 51.08999378 | Z134: -47.57170088 | AB134: =TEXT($Y134, "0" & DeciSep() & "000") & ListSep() & TEXT($Z134, "0" & DeciSep() & "000") -> 51.090,-47.572
N135: 51.80469131 | O135: -47.4929924 | P135: 34.90729523 | R135: -1.33713 | S135: 0.53027 | T135: 0.12278 | U135: -0.51586 | V135: OK | X135: 4.60767 | Y135: 51.17269156 | Z135: -47.63479945 | AB135: =TEXT($Y135, "0" & DeciSep() & "000") & ListSep() & TEXT($Z135, "0" & DeciSep() & "000") -> 51.173,-47.635
N136: 52.70129395 | O136: -47.30978012 | P136: 34.97934723 | R136: 0.19491 | S136: 0.76667 | T136: 0.75215 | U136: 0.14849 | V136: OK | X136: 4.64258 | Y136: 51.25639729 | Z136: -47.69712462 | AB136: =TEXT($Y136, "0" & DeciSep() & "000") & ListSep() & TEXT($Z136, "0" & DeciSep() & "000") -> 51.256,-47.697
N137: 54.3772583 | O137: -48.01860046 | P137: 34.7621994 | R137: 0.20605 | S137: 2.58629 | T137: 2.53158 | U137: 0.52915 | V137: OK | X137: 4.67748 | Y137: 51.34100899 | Z137: -47.75860045 | AB137: =TEXT($Y137, "0" & DeciSep() & "000") & ListSep() & TEXT($Z137, "0" & DeciSep() & "000") -> 51.341,-47.759
N138: 51.53562164 | O138: -47.07500458 | P138: 35.03894806 | R138: -2.37059 | S138: 0.47040 | T138: -0.33738 | U138: -0.32780 | V138: OK | X138: 4.71239 | Y138: 51.42642356 | Z138: -47.81915204 | AB138: =TEXT($Y138, "0" & DeciSep() & "000") & ListSep() & TEXT($Z138, "0" & DeciSep() & "000") -> 51.426,-47.819
N139: 53.0792923 | O139: -47.08439636 | P139: 35.05728149 | R139: 0.53283 | S139: 1.08259 | T139: 0.93251 | U139: 0.54992 | V139: OK | X139: 4.74730 | Y139: 51.51253695 | Z139: -47.87870563 | AB139: =TEXT($Y139, "0" & DeciSep() & "000") & ListSep() & TEXT($Z139, "0" & DeciSep() & "000") -> 51.513,-47.879
N140: 52.58265305 | O140: -45.63645172 | P140: 35.34575653 | R140: 1.77784 | S140: 1.48282 | T140: -0.30482 | U140: 1.45115 | V140: NG | X140: 4.78220 | Y140: 51.59924424 | Z140: -47.93718864 | AB140: =TEXT($Y140, "0" & DeciSep() & "000") & ListSep() & TEXT($Z140, "0" & DeciSep() & "000") -> 51.599,-47.937
N141: 52.74345016 | O141: -47.29130936 | P141: 34.89930344 | R141: 0.23742 | S141: 0.79849 | T141: 0.77609 | U141: 0.18780 | V141: OK | X141: 4.81711 | Y141: 51.68643979 | Z141: -47.99452983 | AB141: =TEXT($Y141, "0" & DeciSep() & "000") & ListSep() & TEXT($Z141, "0" & DeciSep() & "000") -> 51.686,-47.995
N142: 50.36447906 | O142: -47.06919861 | P142: 34.82424164 | R142: -2.48844 | S142: 1.63698 | T142: -1.30005 | U142: -0.99478 | V142: NG | X142: 4.85202 | Y142: 51.77401736 | Z142: -48.05065935 | AB142: =TEXT($Y142, "0" & DeciSep() & "000") & ListSep() & TEXT($Z142, "0" & DeciSep() & "000") -> 51.774,-48.051
N143: 53.58517075 | O143: -46.72612 | P143: 35.15306473 | R143: 0.78195 | S143: 1.60866 | T143: 1.14140 | U143: 1.13357 | V143: NG | X143: 4.88692 | Y143: 51.86187026 | Z143: -48.10550879 | AB143: =TEXT($Y143, "0" & DeciSep() & "000") & ListSep() & TEXT($Z143, "0" & DeciSep() & "000") -> 51.862,-48.106
N144: 51.01069641 | O144: -47.72248077 | P144: 34.77407837 | R144: -1.89996 | S144: 1.22503 | T144: -0.39599 | U144: -1.15926 | V144: NG | X144: 4.92183 | Y144: 51.94989144 | Z144: -48.15901135 | AB144: =TEXT($Y144, "0" & DeciSep() & "000") & ListSep() & TEXT($Z144, "0" & DeciSep() & "000") -> 51.950,-48.159
N145: 52.91759872 | O145: -48.29415131 | P145: 34.75204468 | R145: -0.34317 | S145: 1.58645 | T145: 1.49395 | U145: -0.53379 | V145: OK | X145: 4.95674 | Y145: 52.03797368 | Z145: -48.21110182 | AB145: =TEXT($Y145, "0" & DeciSep() & "000") & ListSep() & TEXT($Z145, "0" & DeciSep() & "000") -> 52.038,-48.211
N146: 51.83544922 | O146: -47.16608429 | P146: 34.98082352 | R146: -1.74069 | S146: 0.23380 | T146: -0.03953 | U146: -0.23043 | V146: OK | X146: 4.99164 | Y146: 52.12600965 | Z146: -48.26171676 | AB146: =TEXT($Y146, "0" & DeciSep() & "000") & ListSep() & TEXT($Z146, "0" & DeciSep() & "000") -> 52.126,-48.262
N147: 48.86130905 | O147: -46.56323624 | P147: 35.06489944 | R147: 3.61419 | S147: 3.16893 | T147: -2.82158 | U147: -1.44250 | V147: NG | X147: 5.02655 | Y147: 52.2138921 | Z147: -48.31079449 | AB147: =TEXT($Y147, "0" & DeciSep() & "000") & ListSep() & TEXT($Z147, "0" & DeciSep() & "000") -> 52.214,-48.311
N148: 53.38758087 | O148: -47.82011414 | P148: 34.78572464 | R148: 0.07706 | S148: 1.61182 | T148: 1.60704 | U148: 0.12409 | V148: OK | X148: 5.06145 | Y148: 52.30151395 | Z148: -48.35827522 | AB148: =TEXT($Y148, "0" & DeciSep() & "000") & ListSep() & TEXT($Z148, "0" & DeciSep() & "000") -> 52.302,-48.358
N149: 51.36907196 | O149: -47.08919525 | P149: 34.8870163 | R149: -2.39029 | S149: 0.63720 | T149: -0.46567 | U149: -0.43495 | V149: OK | X149: 5.09636 | Y149: 52.38876846 | Z149: -48.40410109 | AB149: =TEXT($Y149, "0" & DeciSep() & "000") & ListSep() & TEXT($Z149, "0" & DeciSep() & "000") -> 52.389,-48.404
N150: 51.38119888 | O150: -46.7427597 | P150: 34.97518539 | R150: 3.35848 | S150: 0.67014 | T150: -0.65444 | U150: -0.14421 | V150: OK | X150: 5.13127 | Y150: 52.47554931 | Z150: -48.44821629 | AB150: =TEXT($Y150, "0" & DeciSep() & "000") & ListSep() & TEXT($Z150, "0" & DeciSep() & "000") -> 52.476,-48.448
N151: 52.33773422 | O151: -46.68903351 | P151: 35.04852676 | R151: 1.35502 | S151: 0.45909 | T151: 0.09829 | U151: 0.44845 | V151: OK | X151: 5.16617 | Y151: 52.56175078 | Z151: -48.49056706 | AB151: =TEXT($Y151, "0" & DeciSep() & "000") & ListSep() & TEXT($Z151, "0" & DeciSep() & "000") -> 52.562,-48.491
N152: 53.00611115 | O152: -47.06506729 | P152: 35.01238632 | R152: 0.54628 | S152: 1.00821 | T152: 0.86148 | U152: 0.52378 | V152: OK | X152: 5.20108 | Y152: 52.64726784 | Z152: -48.5311018 | AB152: =TEXT($Y152, "0" & DeciSep() & "000") & ListSep() & TEXT($Z152, "0" & DeciSep() & "000") -> 52.647,-48.531
N153: 52.6174469 | O153: -48.3657074 | P153: 34.61388016 | R153: -0.53533 | S153: 1.49880 | T153: 1.28912 | U153: -0.76457 | V153: OK | X153: 5.23599 | Y153: 52.7319963 | Z153: -48.56977113 | AB153: =TEXT($Y153, "0" & DeciSep() & "000") & ListSep() & TEXT($Z153, "0" & DeciSep() & "000") -> 52.732,-48.570
N154: 51.69111633 | O154: -46.15238953 | P154: 35.10361099 | R154: 2.53112 | S154: 0.90214 | T154: -0.73919 | U154: 0.51715 | V154: OK | X154: 5.27089 | Y154: 52.81583294 | Z154: -48.60652794 | AB154: =TEXT($Y154, "0" & DeciSep() & "000") & ListSep() & TEXT($Z154, "0" & DeciSep() & "000") -> 52.816,-48.607
N155: 51.89740753 | O155: -47.54997635 | P155: 35.03395081 | R155: -1.14435 | S155: 0.55946 | T155: 0.23141 | U155: -0.50936 | V155: OK | X155: 5.30580 | Y155: 52.89867561 | Z155: -48.64132744 | AB155: =TEXT($Y155, "0" & DeciSep() & "000") & ListSep() & TEXT($Z155, "0" & DeciSep() & "000") -> 52.899,-48.641
N156: 52.5703125 | O156: -45.9580307 | P156: 35.14653397 | R156: 1.68086 | S156: 1.18784 | T156: -0.13048 | U156: 1.18065 | V156: NG | X156: 5.34071 | Y156: 52.98042339 | Z156: -48.67412724 | AB156: =TEXT($Y156, "0" & DeciSep() & "000") & ListSep() & TEXT($Z156, "0" & DeciSep() & "000") -> 52.980,-48.674
N157: 52.10968781 | O157: -46.33636475 | P157: 35.313591 | R157: 2.01786 | S157: 0.67264 | T157: -0.29079 | U157: 0.60653 | V157: OK | X157: 5.37561 | Y157: 53.06097667 | Z157: -48.70488736 | AB157: =TEXT($Y157, "0" & DeciSep() & "000") & ListSep() & TEXT($Z157, "0" & DeciSep() & "000") -> 53.061,-48.705
N158: 52.43460846 | O158: -46.84716034 | P158: 35.14442825 | R158: 0.94903 | S158: 0.46070 | T158: 0.26835 | U158: 0.37448 | V158: OK | X158: 5.41052 | Y158: 53.14023731 | Z158: -48.73357035 | AB158: =TEXT($Y158, "0" & DeciSep() & "000") & ListSep() & TEXT($Z158, "0" & DeciSep() & "000") -> 53.140,-48.734
N159: 52.90481567 | O159: -48.11238098 | P159: 34.80331421 | R159: -0.27707 | S159: 1.43390 | T159: 1.37922 | U159: -0.39223 | V159: OK | X159: 5.44543 | Y159: 53.21810875 | Z159: -48.76014125 | AB159: =TEXT($Y159, "0" & DeciSep() & "000") & ListSep() & TEXT($Z159, "0" & DeciSep() & "000") -> 53.218,-48.760
N160: 51.46059418 | O160: -47.31416702 | P160: 34.81587982 | R160: -2.00333 | S160: 0.62423 | T160: -0.26166 | U160: -0.56674 | V160: OK | X160: 5.48033 | Y160: 53.29449611 | Z160: -48.78456769 | AB160: =TEXT($Y160, "0" & DeciSep() & "000") & ListSep() & TEXT($Z160, "0" & DeciSep() & "000") -> 53.294,-48.785
N161: 52.15175629 | O161: -46.39083862 | P161: 35.13010025 | R161: 1.93751 | S161: 0.62778 | T161: -0.22509 | U161: 0.58604 | V161: OK | X161: 5.51524 | Y161: 53.36930633 | Z161: -48.8068199 | AB161: =TEXT($Y161, "0" & DeciSep() & "000") & ListSep() & TEXT($Z161, "0" & DeciSep() & "000") -> 53.369,-48.807
N162: 52.04704285 | O162: -47.82403564 | P162: 34.79636002 | R162: -0.90290 | S162: 0.82538 | T162: 0.51118 | U162: -0.64803 | V162: OK | X162: 5.55015 | Y162: 53.44244826 | Z162: -48.82687079 | AB162: =TEXT($Y162, "0" & DeciSep() & "000") & ListSep() & TEXT($Z162, "0" & DeciSep() & "000") -> 53.442,-48.827
N163: 52.99209213 | O163: -46.95302963 | P163: 34.89400482 | R163: 0.65817 | S163: 0.99320 | T163: 0.78573 | U163: 0.60752 | V163: OK | X163: 5.58505 | Y163: =$A$3+$A$9*COS($X163)*COS($C$15)-$A$12*SIN($X163)*SIN($C$15) -> 53.51383279 | Z163: =$A$6+$A$9*COS($X163)*SIN($C$15)+$A$12*SIN($X163)*COS($C$15) -> -48.84469591 | AB163: =TEXT($Y163, "0" & DeciSep() & "000") & ListSep() & TEXT($Z163, "0" & DeciSep() & "000") -> 53.514,-48.845
N164: 52.51346588 | O164: -47.55920792 | P164: 34.85283661 | R164: -0.21715 | S164: 0.75918 | T164: 0.74136 | U164: -0.16356 | V164: OK | X164: 5.61996 | Y164: 53.58337294 | Z164: -48.86027356 | AB164: =TEXT($Y164, "0" & DeciSep() & "000") & ListSep() & TEXT($Z164, "0" & DeciSep() & "000") -> 53.583,-48.860
N165: 51.06388092 | O165: -45.68533325 | P165: 35.29421616 | R165: 2.80043 | S165: 1.61390 | T165: -1.52089 | U165: 0.53998 | V165: OK | X165: 5.65487 | Y165: 53.650984 | Z165: -48.87358474 | AB165: =TEXT($Y165, "0" & DeciSep() & "000") & ListSep() & TEXT($Z165, "0" & DeciSep() & "000") -> 53.651,-48.874
N166: 53.02192307 | O166: -47.02456665 | P166: 34.99826431 | R166: 0.58683 | S166: 1.02222 | T166: 0.85120 | U166: 0.56603 | V166: OK | X166: 5.68977 | Y166: 53.71658359 | Z166: -48.88461326 | AB166: =TEXT($Y166, "0" & DeciSep() & "000") & ListSep() & TEXT($Z166, "0" & DeciSep() & "000") -> 53.717,-48.885
N167: 50.1983757 | O167: -46.07137299 | P167: 35.17825317 | R167: 3.27654 | S167: 2.02687 | T167: -2.00844 | U167: -0.27268 | V167: OK | X167: 5.72468 | Y167: 53.78009179 | Z167: -48.89334566 | AB167: =TEXT($Y167, "0" & DeciSep() & "000") & ListSep() & TEXT($Z167, "0" & DeciSep() & "000") -> 53.780,-48.893
N168: 50.87518692 | O168: -45.69842911 | P168: 35.37713623 | R168: 2.89434 | S168: 1.72026 | T168: -1.66794 | U168: 0.42102 | V168: OK | X168: 5.75959 | Y168: 53.84143122 | Z168: -48.89977132 | AB168: =TEXT($Y168, "0" & DeciSep() & "000") & ListSep() & TEXT($Z168, "0" & DeciSep() & "000") -> 53.841,-48.900
N169: 50.55303955 | O169: -48.2858963 | P169: 34.69937134 | R169: -1.80420 | S169: 1.93577 | T169: -0.44772 | U169: -1.88329 | V169: NG | X169: 5.79449 | Y169: 53.90052715 | Z169: -48.90388239 | AB169: =TEXT($Y169, "0" & DeciSep() & "000") & ListSep() & TEXT($Z169, "0" & DeciSep() & "000") -> 53.901,-48.904
N170: 53.46620178 | O170: -47.46878052 | P170: 34.79985809 | R170: 0.30141 | S170: 1.53932 | T170: 1.46992 | U170: 0.45698 | V170: OK | X170: 5.82940 | Y170: 53.95730758 | Z170: -48.90567388 | AB170: =TEXT($Y170, "0" & DeciSep() & "000") & ListSep() & TEXT($Z170, "0" & DeciSep() & "000") -> 53.957,-48.906
N171: 52.62331772 | O171: -46.5308609 | P171: 35.1327095 | R171: 1.25606 | S171: 0.78014 | T171: 0.24150 | U171: 0.74182 | V171: OK | X171: 5.86431 | Y171: 54.01170333 | Z171: -48.9051436 | AB171: =TEXT($Y171, "0" & DeciSep() & "000") & ListSep() & TEXT($Z171, "0" & DeciSep() & "000") -> 54.012,-48.905
N172: 53.06689453 | O172: -48.17603302 | P172: 34.88529968 | R172: -0.22315 | S172: 1.58787 | T172: 1.54849 | U172: -0.35140 | V172: OK | X172: 5.89921 | Y172: 54.06364813 | Z172: -48.90229219 | AB172: =TEXT($Y172, "0" & DeciSep() & "000") & ListSep() & TEXT($Z172, "0" & DeciSep() & "000") -> 54.064,-48.902
N173: 52.15986252 | O173: -46.67860794 | P173: 35.17580414 | R173: 1.72009 | S173: 0.35896 | T173: -0.05339 | U173: 0.35496 | V173: OK | X173: 5.93412 | Y173: 54.1130787 | Z173: -48.89712313 | AB173: =TEXT($Y173, "0" & DeciSep() & "000") & ListSep() & TEXT($Z173, "0" & DeciSep() & "000") -> 54.113,-48.897
N174: 52.10852814 | O174: -47.96745682 | P174: 34.79868317 | R174: -0.84822 | S174: 0.97353 | T174: 0.64381 | U174: -0.73025 | V174: OK | X174: 5.96903 | Y174: 54.1599348 | Z174: -48.88964272 | AB174: =TEXT($Y174, "0" & DeciSep() & "000") & ListSep() & TEXT($Z174, "0" & DeciSep() & "000") -> 54.160,-48.890
N175: 51.94968033 | O175: -47.50379181 | P175: 34.85400772 | R175: -1.05948 | S175: 0.50630 | T175: 0.24774 | U175: -0.44154 | V175: OK | X175: 6.00393 | Y175: 54.20415936 | Z175: -48.87986008 | AB175: =TEXT($Y175, "0" & DeciSep() & "000") & ListSep() & TEXT($Z175, "0" & DeciSep() & "000") -> 54.204,-48.880
N176: 50.56001282 | O176: -47.04977798 | P176: 34.88993073 | R176: -2.49617 | S176: 1.44085 | T176: -1.15102 | U176: -0.86672 | V176: OK | X176: 6.03884 | Y176: 54.24569848 | Z176: -48.86778711 | AB176: =TEXT($Y176, "0" & DeciSep() & "000") & ListSep() & TEXT($Z176, "0" & DeciSep() & "000") -> 54.246,-48.868
N177: 50.26021576 | O177: -46.73297501 | P177: 35.13122177 | R177: 3.60016 | S177: 1.76016 | T177: -1.57831 | U177: -0.77917 | V177: OK | X177: 6.07375 | Y177: 54.28450157 | Z177: -48.85343853 | AB177: =TEXT($Y177, "0" & DeciSep() & "000") & ListSep() & TEXT($Z177, "0" & DeciSep() & "000") -> 54.285,-48.853
N178: 52.43954086 | O178: -46.91792679 | P178: 35.10393524 | R178: 0.79546 | S178: 0.44714 | T178: 0.31298 | U178: 0.31934 | V178: OK | X178: 6.10865 | Y178: 54.32052135 | Z178: -48.83683182 | AB178: =TEXT($Y178, "0" & DeciSep() & "000") & ListSep() & TEXT($Z178, "0" & DeciSep() & "000") -> 54.321,-48.837
N179: 52.57686996 | O179: -46.72145844 | P179: 35.14146423 | R179: 1.06070 | S179: 0.64060 | T179: 0.31278 | U179: 0.55905 | V179: OK | X179: 6.14356 | Y179: 54.35371393 | Z179: -48.81798722 | AB179: =TEXT($Y179, "0" & DeciSep() & "000") & ListSep() & TEXT($Z179, "0" & DeciSep() & "000") -> 54.354,-48.818
N180: 52.03860855 | O180: -47.72070694 | P180: 34.71829987 | R180: -0.90641 | S180: 0.72174 | T180: 0.44501 | U180: -0.56822 | V180: OK | X180: 6.17847 | Y180: 54.38403887 | Z180: -48.79692768 | AB180: =TEXT($Y180, "0" & DeciSep() & "000") & ListSep() & TEXT($Z180, "0" & DeciSep() & "000") -> 54.384,-48.797
N181: 52.10085297 | O181: -48.34362793 | P181: 34.68194199 | R181: -0.88501 | S181: 1.34741 | T181: 0.85329 | U181: -1.04279 | V181: NG | X181: 6.21337 | Y181: 54.41145922 | Z181: -48.77367886 | AB181: =TEXT($Y181, "0" & DeciSep() & "000") & ListSep() & TEXT($Z181, "0" & DeciSep() & "000") -> 54.411,-48.774
N182: 50.84015274 | O182: -48.49721909 | P182: 34.52657318 | R182: -1.61903 | S182: 1.89391 | T182: -0.09132 | U182: -1.89171 | V182: NG | X182: 6.24828 | Y182: 54.43594159 | Z182: -48.74826908 | AB182: =TEXT($Y182, "0" & DeciSep() & "000") & ListSep() & TEXT($Z182, "0" & DeciSep() & "000") -> 54.436,-48.748
N183: 51.76377106 | O183: -46.19339752 | P183: 35.10548401 | R183: 2.46656 | S183: 0.84048 | T183: -0.65616 | U183: 0.52523 | V183: OK | X183: 6.28319 | Y183: 54.45745613 | Z183: -48.72072931 | AB183: =TEXT($Y183, "0" & DeciSep() & "000") & ListSep() & TEXT($Z183, "0" & DeciSep() & "000") -> 54.457,-48.721
N184: 54.1810112 | O184: -46.63858414 | P184: 35.0771904 | R184: 0.77508 | S184: 2.21075 | T184: 1.57928 | U184: 1.54703 | V184: NG
N185: 54.90891647 | O185: -47.25279236 | P185: 35.09671402 | R185: 0.52418 | S185: 2.91988 | T185: 2.52784 | U185: 1.46141 | V185: NG
N186: 50.09502029 | O186: -45.81809235 | P186: 35.33128357 | R186: 3.19715 | S186: 2.24184 | T186: -2.23838 | U186: -0.12449 | V186: OK
N187: 52.31170273 | O187: -47.63782501 | P187: 34.90199661 | R187: -0.50537 | S187: 0.70992 | T187: 0.62117 | U187: -0.34369 | V187: OK
N188: 52.47780609 | O188: -45.56526947 | P188: 35.50709152 | R188: 1.86019 | S188: 1.51220 | T188: -0.43153 | U188: 1.44932 | V188: NG
N189: 54.30723572 | O189: -45.69112778 | P189: 35.40385056 | R189: 1.12689 | S189: 2.65264 | T189: 1.13924 | U189: 2.39554 | V189: NG
N190: 53.59912109 | O190: -48.03843689 | P190: 34.79903793 | R190: 0.03493 | S190: 1.90671 | T190: 1.90555 | U190: 0.06658 | V190: OK
N191: 50.86360931 | O191: -44.89309311 | P191: 35.47182846 | R191: 2.67630 | S191: 2.39383 | T191: -2.13935 | U191: 1.07407 | V191: NG
N192: 53.4504509 | O192: -47.61054993 | P192: 34.77840805 | R192: 0.21244 | S192: 1.57372 | T192: 1.53834 | U192: 0.33181 | V192: OK
N193: 49.69793701 | O193: -45.82964325 | P193: 35.22446823 | R193: 3.28212 | S193: 2.58249 | T193: -2.55703 | U193: -0.36171 | V193: OK
N194: 51.90826797 | O194: -47.00278473 | P194: 34.95662308 | R194: -2.50038 | S194: 0.09177 | T194: -0.07355 | U194: -0.05490 | V194: OK
N195: 52.44807816 | O195: -47.33763504 | P195: 34.94691849 | R195: =(ATAN2($N195-$A$3, $O195-$A$6))-$C$15 -> -0.03488 | S195: =SQRT(($N195-$A$3)^2+($O195-$A$6)^2) -> 0.56104 | T195: 0.56070 | U195: -0.01957 | V195: =IF(($T195/$A$9)^2 +($U195/$A$12)^2<=1, "OK", "NG") -> OK
N196: 52.92630005 | O196: -46.23682404 | P196: 35.18925476 | R196: 1.30001 | S196: 1.20020 | T196: =$S196*COS($R196) -> 0.32104 | U196: =$S196*SIN($R196) -> 1.15646 | V196: NG
N197: 53.48379898 | O197: -46.79195404 | P197: 35.05677032 | R197: 0.75017 | S197: 1.49831 | T197: 1.09613 | U197: 1.02149 | V197: NG
N198: 51.87034607 | O198: -47.03323746 | P198: 35.02336884 | R198: -2.27978 | S198: 0.13385 | T198: -0.08714 | U198: -0.10159 | V198: OK
N199: 52.74333191 | O199: -46.63309479 | P199: 35.11680603 | R199: 1.06938 | S199: 0.82895 | T199: 0.39845 | U199: 0.72691 | V199: OK
N200: 52.76021194 | O200: -47.91166687 | P200: 34.81394196 | R200: -0.26488 | S200: 1.18704 | T200: 1.14564 | U200: -0.31075 | V200: OK
... 802 more rows

Sheet 1976 uv
O1: DESIGN Data | T1: Transform and Calculate | Y1: Ellipse 0-360° x 2° | AB1: DESIGN CIE
A2: Center u' | F2: 1. Open FilmStar DESIGN, load a design, set tolerance values (<Ctrl+N>) | N2: u' | O2: v' | P2: Y | R2: Angle | S2: Radius | T2: X | U2: Y | V2: Pass | X2: Angle | Y2: X | Z2: Y | AB2: Tolerance Box
A3: 0.2513 | F3: 2. Click [Calculate] to draw scatter plot (1000 iterations, so not instant) | N3: 0.2508444488 | O3: 0.3156411946 | P3: 8.526120186 | R3: =(ATAN2($N3-$A$3, $O3-$A$6))-$C$15 -> 1.98323 | S3: =SQRT(($N3-$A$3)^2+($O3-$A$6)^2) -> 0.00114 | T3: =$S3*COS($R3) -> -0.00046 | U3: =$S3*SIN($R3) -> 0.00104 | V3: =IF(($T3/$A$9)^2 +($U3/$A$12)^2<=1, "OK", "NG") -> OK | X3: 0.00000 | Y3: =$A$3+$A$9*COS($X3)*COS($C$15)-$A$12*SIN($X3)*SIN($C$15) -> 0.2583 | Z3: =$A$6+$A$9*COS($X3)*SIN($C$15)+$A$12*SIN($X3)*COS($C$15) -> 0.3146 | AB3: =TEXT($Y3, "0" & DeciSep() & "00000") & ListSep() & TEXT($Z3, "0" & DeciSep() & "00000") -> 0.25830,0.31460
F4: 3. Click [Copy] to transfer ellipse to DESIGN or MEASURE Tolerance Box | N4: 0.2516255379 | O4: 0.3103606403 | P4: 8.303204536 | R4: -1.49416 | S4: 0.00425 | T4: =$S4*COS($R4) -> 0.00033 | U4: =$S4*SIN($R4) -> -0.00424 | V4: OK | X4: 0.03491 | Y4: 0.2582957358 | Z4: 0.3148442965 | AB4: =TEXT($Y4, "0" & DeciSep() & "00000") & ListSep() & TEXT($Z4, "0" & DeciSep() & "00000") -> 0.25830,0.31484
A5: Center v' | N5: 0.2481364757 | O5: 0.3134255409 | P5: 8.430860519 | R5: -2.78611 | S5: 0.00337 | T5: -0.00316 | U5: -0.00117 | V5: OK | X5: 0.06981 | Y5: 0.2582829484 | Z5: 0.3150882953 | AB5: =TEXT($Y5, "0" & DeciSep() & "00000") & ListSep() & TEXT($Z5, "0" & DeciSep() & "00000") -> 0.25828,0.31509
A6: 0.3146 | N6: 0.2488850653 | O6: 0.3139473796 | P6: 8.400476456 | R6: -2.87765 | S6: 0.00250 | T6: -0.00241 | U6: -0.00065 | V6: OK | X6: 0.10472 | Y6: 0.2582616533 | Z6: 0.3153316992 | AB6: =TEXT($Y6, "0" & DeciSep() & "00000") & ListSep() & TEXT($Z6, "0" & DeciSep() & "00000") -> 0.25826,0.31533
N7: 0.2463506013 | O7: 0.3161492944 | P7: 8.483139038 | R7: 2.83823 | S7: 0.00519 | T7: -0.00495 | U7: 0.00155 | V7: OK | X7: 0.13963 | Y7: 0.2582318765 | Z7: 0.3155742117 | AB7: =TEXT($Y7, "0" & DeciSep() & "00000") & ListSep() & TEXT($Z7, "0" & DeciSep() & "00000") -> 0.25823,0.31557
A8: Radius a | N8: 0.2497659922 | O8: 0.3149000704 | P8: 8.500179291 | R8: 2.94842 | S8: 0.00156 | T8: -0.00153 | U8: 0.00030 | V8: OK | X8: 0.17453 | Y8: 0.2581936543 | Z8: 0.3158155372 | AB8: =TEXT($Y8, "0" & DeciSep() & "00000") & ListSep() & TEXT($Z8, "0" & DeciSep() & "00000") -> 0.25819,0.31582
A9: 0.007 | N9: 0.2483329922 | O9: 0.3068222106 | P9: 8.234663963 | R9: -1.93523 | S9: 0.00832 | T9: -0.00297 | U9: -0.00778 | V9: NG | X9: 0.20944 | Y9: 0.2581470332 | Z9: 0.3160553818 | AB9: =TEXT($Y9, "0" & DeciSep() & "00000") & ListSep() & TEXT($Z9, "0" & DeciSep() & "00000") -> 0.25815,0.31606
N10: 0.251473248 | O10: 0.3166750669 | P10: 8.560282707 | R10: 1.48750 | S10: 0.00208 | T10: 0.00017 | U10: 0.00208 | V10: OK | X10: 0.24435 | Y10: 0.2580920701 | Z10: 0.3162934533 | AB10: =TEXT($Y10, "0" & DeciSep() & "00000") & ListSep() & TEXT($Z10, "0" & DeciSep() & "00000") -> 0.25809,0.31629
A11: Radius b | N11: 0.2495707422 | O11: 0.3185159266 | P11: 8.599128723 | R11: 1.98664 | S11: 0.00428 | T11: -0.00173 | U11: 0.00392 | V11: OK | X11: 0.27925 | Y11: 0.2580288319 | Z11: 0.3165294615 | AB11: =TEXT($Y11, "0" & DeciSep() & "00000") & ListSep() & TEXT($Z11, "0" & DeciSep() & "00000") -> 0.25803,0.31653
A12: 0.007 | N12: 0.2522274852 | O12: 0.3154320717 | P12: 8.565467834 | R12: 0.73123 | S12: 0.00125 | T12: 0.00093 | U12: 0.00083 | V12: OK | X12: 0.31416 | Y12: 0.2579573956 | Z12: 0.316763119 | AB12: =TEXT($Y12, "0" & DeciSep() & "00000") & ListSep() & TEXT($Z12, "0" & DeciSep() & "00000") -> 0.25796,0.31676
N13: 0.2546752095 | O13: 0.3188483715 | P13: 8.634936333 | R13: 0.89944 | S13: 0.00543 | T13: 0.00338 | U13: 0.00425 | V13: OK | X13: 0.34907 | Y13: 0.2578778483 | Z13: 0.316994141 | AB13: =TEXT($Y13, "0" & DeciSep() & "00000") & ListSep() & TEXT($Z13, "0" & DeciSep() & "00000") -> 0.25788,0.31699
A14: Tilt (deg) | N14: 0.2491962016 | O14: 0.3111991584 | P14: 8.405680656 | R14: -2.12479 | S14: 0.00400 | T14: -0.00210 | U14: -0.00340 | V14: OK | X14: 0.38397 | Y14: 0.257790287 | Z14: 0.3172222462 | AB14: =TEXT($Y14, "0" & DeciSep() & "00000") & ListSep() & TEXT($Z14, "0" & DeciSep() & "00000") -> 0.25779,0.31722
A15: 0 | C15: =$A$15*PI()/180 -> 0.0000 | N15: 0.2551693916 | O15: 0.3186116517 | P15: 8.675749779 | R15: 0.80345 | S15: 0.00557 | T15: 0.00387 | U15: 0.00401 | V15: OK | X15: 0.41888 | Y15: 0.2576948182 | Z15: 0.3174471565 | AB15: =TEXT($Y15, "0" & DeciSep() & "00000") & ListSep() & TEXT($Z15, "0" & DeciSep() & "00000") -> 0.25769,0.31745
N16: 0.2540159822 | O16: 0.313806504 | P16: 8.534451485 | R16: -0.28425 | S16: 0.00283 | T16: 0.00272 | U16: -0.00079 | V16: OK | X16: 0.45379 | Y16: 0.2575915583 | Z16: 0.317668598 | AB16: =TEXT($Y16, "0" & DeciSep() & "00000") & ListSep() & TEXT($Z16, "0" & DeciSep() & "00000") -> 0.25759,0.31767
A17: Yield | N17: 0.2461116463 | O17: 0.3147488534 | P17: 8.488775253 | R17: 3.11291 | S17: 0.00519 | T17: -0.00519 | U17: 0.00015 | V17: OK | X17: 0.48869 | Y17: 0.2574806332 | Z17: 0.3178863009 | AB17: =TEXT($Y17, "0" & DeciSep() & "00000") & ListSep() & TEXT($Z17, "0" & DeciSep() & "00000") -> 0.25748,0.31789
A18: 89.6% | N18: 0.2485159487 | O18: 0.3137818575 | P18: 8.425730705 | R18: -2.85577 | S18: 0.00290 | T18: -0.00278 | U18: -0.00082 | V18: OK | X18: 0.52360 | Y18: 0.2573621778 | Z18: 0.3181 | AB18: =TEXT($Y18, "0" & DeciSep() & "00000") & ListSep() & TEXT($Z18, "0" & DeciSep() & "00000") -> 0.25736,0.31810
N19: 0.2545126677 | O19: 0.3085407913 | P19: 8.326334 | R19: -1.08327 | S19: 0.00686 | T19: 0.00321 | U19: -0.00606 | V19: OK | X19: 0.55851 | Y19: 0.2572363367 | Z19: 0.3183094348 | AB19: =TEXT($Y19, "0" & DeciSep() & "00000") & ListSep() & TEXT($Z19, "0" & DeciSep() & "00000") -> 0.25724,0.31831
N20: 0.2541128993 | O20: 0.3179755509 | P20: 8.645494461 | R20: 0.87607 | S20: 0.00439 | T20: 0.00281 | U20: 0.00338 | V20: OK | X20: 0.59341 | Y20: 0.257103263 | Z20: 0.3185143503 | AB20: =TEXT($Y20, "0" & DeciSep() & "00000") & ListSep() & TEXT($Z20, "0" & DeciSep() & "00000") -> 0.25710,0.31851
N21: 0.253949523 | O21: 0.3170883954 | P21: 8.61051178 | R21: 0.75405 | S21: 0.00363 | T21: 0.00265 | U21: 0.00249 | V21: OK | X21: 0.62832 | Y21: 0.256963119 | Z21: 0.3187144968 | AB21: =TEXT($Y21, "0" & DeciSep() & "00000") & ListSep() & TEXT($Z21, "0" & DeciSep() & "00000") -> 0.25696,0.31871
N22: 0.2546086013 | O22: 0.3152433932 | P22: 8.55694294 | R22: 0.19206 | S22: 0.00337 | T22: 0.00331 | U22: 0.00064 | V22: OK | X22: 0.66323 | Y22: 0.2568160753 | Z22: 0.3189096303 | AB22: =TEXT($Y22, "0" & DeciSep() & "00000") & ListSep() & TEXT($Z22, "0" & DeciSep() & "00000") -> 0.25682,0.31891
N23: 0.2548333108 | O23: 0.3133080006 | P23: 8.486888885 | R23: -0.35056 | S23: 0.00376 | T23: 0.00353 | U23: -0.00129 | V23: OK | X23: 0.69813 | Y23: 0.2566623111 | Z23: 0.3190995133 | AB23: =TEXT($Y23, "0" & DeciSep() & "00000") & ListSep() & TEXT($Z23, "0" & DeciSep() & "00000") -> 0.25666,0.31910
N24: 0.2568050325 | O24: 0.3203041553 | P24: 8.750377655 | R24: 0.80316 | S24: 0.00793 | T24: 0.00551 | U24: 0.00570 | V24: NG | X24: 0.73304 | Y24: 0.2565020138 | Z24: 0.3192839142 | AB24: =TEXT($Y24, "0" & DeciSep() & "00000") & ListSep() & TEXT($Z24, "0" & DeciSep() & "00000") -> 0.25650,0.31928
N25: 0.2512052357 | O25: 0.3160154819 | P25: 8.556394577 | R25: 1.63764 | S25: 0.00142 | T25: -0.00009 | U25: 0.00142 | V25: OK | X25: 0.76794 | Y25: 0.2563353786 | Z25: 0.3194626086 | AB25: =TEXT($Y25, "0" & DeciSep() & "00000") & ListSep() & TEXT($Z25, "0" & DeciSep() & "00000") -> 0.25634,0.31946
N26: 0.2480767071 | O26: 0.3136764169 | P26: 8.447662354 | R26: -2.86254 | S26: 0.00335 | T26: -0.00322 | U26: -0.00092 | V26: OK | X26: 0.80285 | Y26: 0.2561626086 | Z26: 0.3196353786 | AB26: =TEXT($Y26, "0" & DeciSep() & "00000") & ListSep() & TEXT($Z26, "0" & DeciSep() & "00000") -> 0.25616,0.31964
N27: 0.2506999969 | O27: 0.3140666485 | P27: 8.41646862 | R27: -2.41494 | S27: 0.00080 | T27: -0.00060 | U27: -0.00053 | V27: OK | X27: 0.83776 | Y27: 0.2559839142 | Z27: 0.3198020138 | AB27: =TEXT($Y27, "0" & DeciSep() & "00000") & ListSep() & TEXT($Z27, "0" & DeciSep() & "00000") -> 0.25598,0.31980
N28: 0.2515925467 | O28: 0.3197472095 | P28: 8.660447121 | R28: 1.51402 | S28: 0.00516 | T28: 0.00029 | U28: 0.00515 | V28: OK | X28: 0.87266 | Y28: 0.2557995133 | Z28: 0.3199623111 | AB28: =TEXT($Y28, "0" & DeciSep() & "00000") & ListSep() & TEXT($Z28, "0" & DeciSep() & "00000") -> 0.25580,0.31996
N29: 0.2515455782 | O29: 0.3136491776 | P29: 8.467104912 | R29: -1.31804 | S29: 0.00098 | T29: 0.00025 | U29: -0.00095 | V29: OK | X29: 0.90757 | Y29: 0.2556096303 | Z29: 0.3201160753 | AB29: =TEXT($Y29, "0" & DeciSep() & "00000") & ListSep() & TEXT($Z29, "0" & DeciSep() & "00000") -> 0.25561,0.32012
N30: 0.2450805157 | O30: 0.3139193356 | P30: 8.441801071 | R30: -3.03259 | S30: 0.00626 | T30: -0.00622 | U30: -0.00068 | V30: OK | X30: 0.94248 | Y30: 0.2554144968 | Z30: 0.320263119 | AB30: =TEXT($Y30, "0" & DeciSep() & "00000") & ListSep() & TEXT($Z30, "0" & DeciSep() & "00000") -> 0.25541,0.32026
N31: 0.2493927777 | O31: 0.3208331466 | P31: 8.681120872 | R31: 1.86773 | S31: 0.00652 | T31: -0.00191 | U31: 0.00623 | V31: OK | X31: 0.97738 | Y31: 0.2552143503 | Z31: 0.320403263 | AB31: =TEXT($Y31, "0" & DeciSep() & "00000") & ListSep() & TEXT($Z31, "0" & DeciSep() & "00000") -> 0.25521,0.32040
N32: 0.2509311736 | O32: 0.3078932166 | P32: 8.289430618 | R32: -1.62573 | S32: 0.00672 | T32: -0.00037 | U32: -0.00671 | V32: OK | X32: 1.01229 | Y32: 0.2550094348 | Z32: 0.3205363367 | AB32: =TEXT($Y32, "0" & DeciSep() & "00000") & ListSep() & TEXT($Z32, "0" & DeciSep() & "00000") -> 0.25501,0.32054
N33: 0.2506222427 | O33: 0.3135370016 | P33: 8.442119598 | R33: -2.13840 | S33: 0.00126 | T33: -0.00068 | U33: -0.00106 | V33: OK | X33: 1.04720 | Y33: 0.2548 | Z33: 0.3206621778 | AB33: =TEXT($Y33, "0" & DeciSep() & "00000") & ListSep() & TEXT($Z33, "0" & DeciSep() & "00000") -> 0.25480,0.32066
N34: 0.2487652153 | O34: 0.3150507808 | P34: 8.460124969 | R34: 2.96559 | S34: 0.00257 | T34: -0.00253 | U34: 0.00045 | V34: OK | X34: 1.08210 | Y34: 0.2545863009 | Z34: 0.3207806332 | AB34: =TEXT($Y34, "0" & DeciSep() & "00000") & ListSep() & TEXT($Z34, "0" & DeciSep() & "00000") -> 0.25459,0.32078
N35: 0.2555461228 | O35: 0.3122022748 | P35: 8.445335388 | R35: -0.51405 | S35: 0.00488 | T35: 0.00425 | U35: -0.00240 | V35: OK | X35: 1.11701 | Y35: 0.254368598 | Z35: 0.3208915583 | AB35: =TEXT($Y35, "0" & DeciSep() & "00000") & ListSep() & TEXT($Z35, "0" & DeciSep() & "00000") -> 0.25437,0.32089
N36: 0.2535381913 | O36: 0.312903285 | P36: 8.460186005 | R36: -0.64865 | S36: 0.00281 | T36: 0.00224 | U36: -0.00170 | V36: OK | X36: 1.15192 | Y36: 0.2541471565 | Z36: 0.3209948182 | AB36: =TEXT($Y36, "0" & DeciSep() & "00000") & ListSep() & TEXT($Z36, "0" & DeciSep() & "00000") -> 0.25415,0.32099
N37: 0.2476791888 | O37: 0.315838933 | P37: 8.497384071 | R37: 2.81191 | S37: 0.00383 | T37: -0.00362 | U37: 0.00124 | V37: OK | X37: 1.18682 | Y37: 0.2539222462 | Z37: 0.321090287 | AB37: =TEXT($Y37, "0" & DeciSep() & "00000") & ListSep() & TEXT($Z37, "0" & DeciSep() & "00000") -> 0.25392,0.32109
N38: 0.2540041208 | O38: 0.3155800402 | P38: 8.511588097 | R38: 0.34770 | S38: 0.00288 | T38: 0.00270 | U38: 0.00098 | V38: OK | X38: 1.22173 | Y38: 0.253694141 | Z38: 0.3211778483 | AB38: =TEXT($Y38, "0" & DeciSep() & "00000") & ListSep() & TEXT($Z38, "0" & DeciSep() & "00000") -> 0.25369,0.32118
N39: 0.2535718381 | O39: 0.3147772253 | P39: 8.488528252 | R39: 0.07785 | S39: 0.00228 | T39: 0.00227 | U39: 0.00018 | V39: OK | X39: 1.25664 | Y39: 0.253463119 | Z39: 0.3212573956 | AB39: =TEXT($Y39, "0" & DeciSep() & "00000") & ListSep() & TEXT($Z39, "0" & DeciSep() & "00000") -> 0.25346,0.32126
N40: 0.2491637021 | O40: 0.3166005611 | P40: 8.498848915 | R40: 2.38899 | S40: 0.00293 | T40: -0.00214 | U40: 0.00200 | V40: OK | X40: 1.29154 | Y40: 0.2532294615 | Z40: 0.3213288319 | AB40: =TEXT($Y40, "0" & DeciSep() & "00000") & ListSep() & TEXT($Z40, "0" & DeciSep() & "00000") -> 0.25323,0.32133
N41: 0.2475839406 | O41: 0.3116733134 | P41: 8.399287224 | R41: -2.47447 | S41: 0.00473 | T41: -0.00372 | U41: -0.00293 | V41: OK | X41: 1.32645 | Y41: 0.2529934533 | Z41: 0.3213920701 | AB41: =TEXT($Y41, "0" & DeciSep() & "00000") & ListSep() & TEXT($Z41, "0" & DeciSep() & "00000") -> 0.25299,0.32139
N42: 0.2491743118 | O42: 0.3152077198 | P42: 8.528903961 | R42: 2.86313 | S42: 0.00221 | T42: -0.00213 | U42: 0.00061 | V42: OK | X42: 1.36136 | Y42: 0.2527553818 | Z42: 0.3214470332 | AB42: =TEXT($Y42, "0" & DeciSep() & "00000") & ListSep() & TEXT($Z42, "0" & DeciSep() & "00000") -> 0.25276,0.32145
N43: 0.2479797304 | O43: 0.3171956837 | P43: 8.572394371 | R43: 2.47807 | S43: 0.00421 | T43: -0.00332 | U43: 0.00260 | V43: OK | X43: 1.39626 | Y43: 0.2525155372 | Z43: 0.3214936543 | AB43: =TEXT($Y43, "0" & DeciSep() & "00000") & ListSep() & TEXT($Z43, "0" & DeciSep() & "00000") -> 0.25252,0.32149
N44: 0.2497685403 | O44: 0.3134989738 | P44: 8.473929405 | R44: -2.51827 | S44: 0.00189 | T44: -0.00153 | U44: -0.00110 | V44: OK | X44: 1.43117 | Y44: 0.2522742117 | Z44: 0.3215318765 | AB44: =TEXT($Y44, "0" & DeciSep() & "00000") & ListSep() & TEXT($Z44, "0" & DeciSep() & "00000") -> 0.25227,0.32153
N45: 0.2485838979 | O45: 0.318636626 | P45: 8.611623764 | R45: 2.16308 | S45: 0.00487 | T45: -0.00272 | U45: 0.00404 | V45: OK | X45: 1.46608 | Y45: 0.2520316992 | Z45: 0.3215616533 | AB45: =TEXT($Y45, "0" & DeciSep() & "00000") & ListSep() & TEXT($Z45, "0" & DeciSep() & "00000") -> 0.25203,0.32156
N46: 0.2523448765 | O46: 0.3124039173 | P46: 8.437561989 | R46: -1.12670 | S46: 0.00243 | T46: 0.00104 | U46: -0.00220 | V46: OK | X46: 1.50098 | Y46: 0.2517882953 | Z46: 0.3215829484 | AB46: =TEXT($Y46, "0" & DeciSep() & "00000") & ListSep() & TEXT($Z46, "0" & DeciSep() & "00000") -> 0.25179,0.32158
N47: 0.2514726818 | O47: 0.3206150532 | P47: 8.700377464 | R47: 1.54210 | S47: 0.00602 | T47: 0.00017 | U47: 0.00602 | V47: OK | X47: 1.53589 | Y47: 0.2515442965 | Z47: 0.3215957358 | AB47: =TEXT($Y47, "0" & DeciSep() & "00000") & ListSep() & TEXT($Z47, "0" & DeciSep() & "00000") -> 0.25154,0.32160
N48: 0.2528445721 | O48: 0.3156147897 | P48: 8.496976852 | R48: 0.58128 | S48: 0.00185 | T48: 0.00154 | U48: 0.00101 | V48: OK | X48: 1.57080 | Y48: 0.2513 | Z48: 0.3216 | AB48: =TEXT($Y48, "0" & DeciSep() & "00000") & ListSep() & TEXT($Z48, "0" & DeciSep() & "00000") -> 0.25130,0.32160
N49: 0.2508346438 | O49: 0.3133172691 | P49: 8.385335922 | R49: -1.91882 | S49: 0.00136 | T49: -0.00047 | U49: -0.00128 | V49: OK | X49: 1.60570 | Y49: 0.2510557035 | Z49: 0.3215957358 | AB49: =TEXT($Y49, "0" & DeciSep() & "00000") & ListSep() & TEXT($Z49, "0" & DeciSep() & "00000") -> 0.25106,0.32160
N50: 0.2511475086 | O50: 0.3159245849 | P50: 8.536460876 | R50: 1.68542 | S50: 0.00133 | T50: -0.00015 | U50: 0.00132 | V50: OK | X50: 1.64061 | Y50: 0.2508117047 | Z50: 0.3215829484 | AB50: =TEXT($Y50, "0" & DeciSep() & "00000") & ListSep() & TEXT($Z50, "0" & DeciSep() & "00000") -> 0.25081,0.32158
N51: 0.2540687323 | O51: 0.318423599 | P51: 8.586187363 | R51: 0.94407 | S51: 0.00472 | T51: 0.00277 | U51: 0.00382 | V51: OK | X51: 1.67552 | Y51: 0.2505683008 | Z51: 0.3215616533 | AB51: =TEXT($Y51, "0" & DeciSep() & "00000") & ListSep() & TEXT($Z51, "0" & DeciSep() & "00000") -> 0.25057,0.32156
N52: 0.2538116276 | O52: 0.3131680787 | P52: 8.44752121 | R52: -0.51816 | S52: 0.00289 | T52: 0.00251 | U52: -0.00143 | V52: OK | X52: 1.71042 | Y52: 0.2503257883 | Z52: 0.3215318765 | AB52: =TEXT($Y52, "0" & DeciSep() & "00000") & ListSep() & TEXT($Z52, "0" & DeciSep() & "00000") -> 0.25033,0.32153
N53: 0.2490742803 | O53: 0.3130540848 | P53: 8.44707489 | R53: -2.53452 | S53: 0.00271 | T53: -0.00223 | U53: -0.00155 | V53: OK | X53: 1.74533 | Y53: 0.2500844628 | Z53: 0.3214936543 | AB53: =TEXT($Y53, "0" & DeciSep() & "00000") & ListSep() & TEXT($Z53, "0" & DeciSep() & "00000") -> 0.25008,0.32149
N54: 0.2473652363 | O54: 0.3189559281 | P54: 8.617195129 | R54: 2.30544 | S54: 0.00587 | T54: -0.00393 | U54: 0.00436 | V54: OK | X54: 1.78024 | Y54: 0.2498446182 | Z54: 0.3214470332 | AB54: =TEXT($Y54, "0" & DeciSep() & "00000") & ListSep() & TEXT($Z54, "0" & DeciSep() & "00000") -> 0.24984,0.32145
N55: 0.2513868809 | O55: 0.3176663518 | P55: 8.564080238 | R55: 1.54247 | S55: 0.00307 | T55: 0.00009 | U55: 0.00307 | V55: OK | X55: 1.81514 | Y55: 0.2496065467 | Z55: 0.3213920701 | AB55: =TEXT($Y55, "0" & DeciSep() & "00000") & ListSep() & TEXT($Z55, "0" & DeciSep() & "00000") -> 0.24961,0.32139
N56: 0.2508876324 | O56: 0.3133703172 | P56: 8.428586006 | R56: -1.89436 | S56: 0.00130 | T56: -0.00041 | U56: -0.00123 | V56: OK | X56: 1.85005 | Y56: 0.2493705385 | Z56: 0.3213288319 | AB56: =TEXT($Y56, "0" & DeciSep() & "00000") & ListSep() & TEXT($Z56, "0" & DeciSep() & "00000") -> 0.24937,0.32133
N57: 0.2551192045 | O57: 0.3099241555 | P57: 8.326155663 | R57: -0.88590 | S57: 0.00604 | T57: 0.00382 | U57: -0.00468 | V57: OK | X57: 1.88496 | Y57: 0.249136881 | Z57: 0.3212573956 | AB57: =TEXT($Y57, "0" & DeciSep() & "00000") & ListSep() & TEXT($Z57, "0" & DeciSep() & "00000") -> 0.24914,0.32126
N58: 0.2531115711 | O58: 0.3126097918 | P58: 8.436819077 | R58: -0.83235 | S58: 0.00269 | T58: 0.00181 | U58: -0.00199 | V58: OK | X58: 1.91986 | Y58: 0.248905859 | Z58: 0.3211778483 | AB58: =TEXT($Y58, "0" & DeciSep() & "00000") & ListSep() & TEXT($Z58, "0" & DeciSep() & "00000") -> 0.24891,0.32118
N59: 0.2515458167 | O59: 0.3196830451 | P59: 8.681260109 | R59: 1.52247 | S59: 0.00509 | T59: 0.00025 | U59: 0.00508 | V59: OK | X59: 1.95477 | Y59: 0.2486777538 | Z59: 0.321090287 | AB59: =TEXT($Y59, "0" & DeciSep() & "00000") & ListSep() & TEXT($Z59, "0" & DeciSep() & "00000") -> 0.24868,0.32109
N60: 0.2543126047 | O60: 0.3168838322 | P60: 8.660675049 | R60: 0.64866 | S60: 0.00378 | T60: 0.00301 | U60: 0.00228 | V60: OK | X60: 1.98968 | Y60: 0.2484528435 | Z60: 0.3209948182 | AB60: =TEXT($Y60, "0" & DeciSep() & "00000") & ListSep() & TEXT($Z60, "0" & DeciSep() & "00000") -> 0.24845,0.32099
N61: 0.2529609203 | O61: 0.3172533214 | P61: 8.608364105 | R61: 1.01149 | S61: 0.00313 | T61: 0.00166 | U61: 0.00265 | V61: OK | X61: 2.02458 | Y61: 0.248231402 | Z61: 0.3208915583 | AB61: =TEXT($Y61, "0" & DeciSep() & "00000") & ListSep() & TEXT($Z61, "0" & DeciSep() & "00000") -> 0.24823,0.32089
N62: 0.2472893894 | O62: 0.3124395907 | P62: 8.403303146 | R62: -2.64749 | S62: 0.00456 | T62: -0.00401 | U62: -0.00216 | V62: OK | X62: 2.05949 | Y62: 0.2480136991 | Z62: 0.3207806332 | AB62: =TEXT($Y62, "0" & DeciSep() & "00000") & ListSep() & TEXT($Z62, "0" & DeciSep() & "00000") -> 0.24801,0.32078
N63: 0.2542256117 | O63: 0.3198781013 | P63: 8.693918228 | R63: 1.06466 | S63: 0.00603 | T63: 0.00293 | U63: 0.00528 | V63: OK | X63: 2.09440 | Y63: 0.2478 | Z63: 0.3206621778 | AB63: =TEXT($Y63, "0" & DeciSep() & "00000") & ListSep() & TEXT($Z63, "0" & DeciSep() & "00000") -> 0.24780,0.32066
N64: 0.2510883808 | O64: 0.3172547519 | P64: 8.572973251 | R64: 1.65034 | S64: 0.00266 | T64: -0.00021 | U64: 0.00265 | V64: OK | X64: 2.12930 | Y64: 0.2475905652 | Z64: 0.3205363367 | AB64: =TEXT($Y64, "0" & DeciSep() & "00000") & ListSep() & TEXT($Z64, "0" & DeciSep() & "00000") -> 0.24759,0.32054
N65: 0.2551602721 | O65: 0.3208596408 | P65: 8.743811607 | R65: 1.01819 | S65: 0.00735 | T65: 0.00386 | U65: 0.00626 | V65: NG | X65: 2.16421 | Y65: 0.2473856497 | Z65: 0.320403263 | AB65: =TEXT($Y65, "0" & DeciSep() & "00000") & ListSep() & TEXT($Z65, "0" & DeciSep() & "00000") -> 0.24739,0.32040
N66: 0.2538270652 | O66: 0.3101463914 | P66: 8.360032082 | R66: -1.05468 | S66: 0.00512 | T66: 0.00253 | U66: -0.00445 | V66: OK | X66: 2.19911 | Y66: 0.2471855032 | Z66: 0.320263119 | AB66: =TEXT($Y66, "0" & DeciSep() & "00000") & ListSep() & TEXT($Z66, "0" & DeciSep() & "00000") -> 0.24719,0.32026
N67: 0.2471413165 | O67: 0.3116379678 | P67: 8.41539669 | R67: =(ATAN2($N67-$A$3, $O67-$A$6))-$C$15 -> -2.52269 | S67: =SQRT(($N67-$A$3)^2+($O67-$A$6)^2) -> 0.00511 | T67: -0.00416 | U67: -0.00296 | V67: =IF(($T67/$A$9)^2 +($U67/$A$12)^2<=1, "OK", "NG") -> OK | X67: 2.23402 | Y67: =$A$3+$A$9*COS($X67)*COS($C$15)-$A$12*SIN($X67)*SIN($C$15) -> 0.2469903697 | Z67: =$A$6+$A$9*COS($X67)*SIN($C$15)+$A$12*SIN($X67)*COS($C$15) -> 0.3201160753 | AB67: =TEXT($Y67, "0" & DeciSep() & "00000") & ListSep() & TEXT($Z67, "0" & DeciSep() & "00000") -> 0.24699,0.32012
N68: 0.2535842955 | O68: 0.3161391616 | P68: 8.501476288 | R68: 0.59293 | S68: 0.00275 | T68: =$S68*COS($R68) -> 0.00228 | U68: =$S68*SIN($R68) -> 0.00154 | V68: OK | X68: 2.26893 | Y68: 0.2468004867 | Z68: 0.3199623111 | AB68: =TEXT($Y68, "0" & DeciSep() & "00000") & ListSep() & TEXT($Z68, "0" & DeciSep() & "00000") -> 0.24680,0.31996
N69: 0.2471630126 | O69: 0.3145833611 | P69: 8.462862968 | R69: -3.13757 | S69: 0.00414 | T69: -0.00414 | U69: -0.00002 | V69: OK | X69: 2.30383 | Y69: 0.2466160858 | Z69: 0.3198020138 | AB69: =TEXT($Y69, "0" & DeciSep() & "00000") & ListSep() & TEXT($Z69, "0" & DeciSep() & "00000") -> 0.24662,0.31980
N70: 0.2505895793 | O70: 0.3141188622 | P70: 8.466878891 | R70: -2.54629 | S70: 0.00086 | T70: -0.00071 | U70: -0.00048 | V70: OK | X70: 2.33874 | Y70: 0.2464373914 | Z70: 0.3196353786 | AB70: =TEXT($Y70, "0" & DeciSep() & "00000") & ListSep() & TEXT($Z70, "0" & DeciSep() & "00000") -> 0.24644,0.31964
N71: 0.2498963624 | O71: 0.3083871603 | P71: 8.284809113 | R71: -1.79299 | S71: 0.00637 | T71: -0.00140 | U71: -0.00621 | V71: OK | X71: 2.37365 | Y71: 0.2462646214 | Z71: 0.3194626086 | AB71: =TEXT($Y71, "0" & DeciSep() & "00000") & ListSep() & TEXT($Z71, "0" & DeciSep() & "00000") -> 0.24626,0.31946
N72: 0.2511028945 | O72: 0.3138621747 | P72: 8.447458267 | R72: -1.83184 | S72: 0.00076 | T72: -0.00020 | U72: -0.00074 | V72: OK | X72: 2.40855 | Y72: 0.2460979862 | Z72: 0.3192839142 | AB72: =TEXT($Y72, "0" & DeciSep() & "00000") & ListSep() & TEXT($Z72, "0" & DeciSep() & "00000") -> 0.24610,0.31928
N73: 0.2496024966 | O73: 0.3159920871 | P73: 8.527151108 | R73: 2.45473 | S73: 0.00220 | T73: -0.00170 | U73: 0.00139 | V73: OK | X73: 2.44346 | Y73: 0.2459376889 | Z73: 0.3190995133 | AB73: =TEXT($Y73, "0" & DeciSep() & "00000") & ListSep() & TEXT($Z73, "0" & DeciSep() & "00000") -> 0.24594,0.31910
N74: 0.2496982217 | O74: 0.3122583032 | P74: 8.418608665 | R74: -2.17072 | S74: 0.00284 | T74: -0.00160 | U74: -0.00234 | V74: OK | X74: 2.47837 | Y74: 0.2457839247 | Z74: 0.3189096303 | AB74: =TEXT($Y74, "0" & DeciSep() & "00000") & ListSep() & TEXT($Z74, "0" & DeciSep() & "00000") -> 0.24578,0.31891
N75: 0.2509437203 | O75: 0.3151881695 | P75: 8.489186287 | R75: 2.11543 | S75: 0.00069 | T75: -0.00036 | U75: 0.00059 | V75: OK | X75: 2.51327 | Y75: 0.245636881 | Z75: 0.3187144968 | AB75: =TEXT($Y75, "0" & DeciSep() & "00000") & ListSep() & TEXT($Z75, "0" & DeciSep() & "00000") -> 0.24564,0.31871
N76: 0.2491776496 | O76: 0.3213606775 | P76: 8.704628944 | R76: 1.87498 | S76: 0.00709 | T76: -0.00212 | U76: 0.00676 | V76: NG | X76: 2.54818 | Y76: 0.245496737 | Z76: 0.3185143503 | AB76: =TEXT($Y76, "0" & DeciSep() & "00000") & ListSep() & TEXT($Z76, "0" & DeciSep() & "00000") -> 0.24550,0.31851
N77: 0.2500626743 | O77: 0.3202350438 | P77: 8.626111031 | R77: 1.78694 | S77: 0.00577 | T77: -0.00124 | U77: 0.00564 | V77: OK | X77: 2.58309 | Y77: 0.2453636633 | Z77: 0.3183094348 | AB77: =TEXT($Y77, "0" & DeciSep() & "00000") & ListSep() & TEXT($Z77, "0" & DeciSep() & "00000") -> 0.24536,0.31831
N78: 0.2446673214 | O78: 0.3174332976 | P78: 8.538491249 | R78: 2.73788 | S78: 0.00721 | T78: -0.00663 | U78: 0.00283 | V78: NG | X78: 2.61799 | Y78: 0.2452378222 | Z78: 0.3181 | AB78: =TEXT($Y78, "0" & DeciSep() & "00000") & ListSep() & TEXT($Z78, "0" & DeciSep() & "00000") -> 0.24524,0.31810
N79: 0.2513920665 | O79: 0.3151706159 | P79: 8.495820999 | R79: 1.41083 | S79: 0.00058 | T79: 0.00009 | U79: 0.00057 | V79: OK | X79: 2.65290 | Y79: 0.2451193668 | Z79: 0.3178863009 | AB79: =TEXT($Y79, "0" & DeciSep() & "00000") & ListSep() & TEXT($Z79, "0" & DeciSep() & "00000") -> 0.24512,0.31789
N80: 0.2578319907 | O80: 0.3244933784 | P80: 8.87639904 | R80: 0.98726 | S80: 0.01186 | T80: 0.00653 | U80: 0.00989 | V80: NG | X80: 2.68781 | Y80: 0.2450084417 | Z80: 0.317668598 | AB80: =TEXT($Y80, "0" & DeciSep() & "00000") & ListSep() & TEXT($Z80, "0" & DeciSep() & "00000") -> 0.24501,0.31767
N81: 0.2545969188 | O81: 0.3113435209 | P81: 8.38117218 | R81: -0.77923 | S81: 0.00463 | T81: 0.00330 | U81: -0.00326 | V81: OK | X81: 2.72271 | Y81: 0.2449051818 | Z81: 0.3174471565 | AB81: =TEXT($Y81, "0" & DeciSep() & "00000") & ListSep() & TEXT($Z81, "0" & DeciSep() & "00000") -> 0.24491,0.31745
N82: 0.2473405898 | O82: 0.3140747547 | P82: 8.483373642 | R82: -3.00971 | S82: 0.00399 | T82: -0.00396 | U82: -0.00053 | V82: OK | X82: 2.75762 | Y82: 0.244809713 | Z82: 0.3172222462 | AB82: =TEXT($Y82, "0" & DeciSep() & "00000") & ListSep() & TEXT($Z82, "0" & DeciSep() & "00000") -> 0.24481,0.31722
N83: 0.2525449395 | O83: 0.3142811954 | P83: 8.496007919 | R83: -0.25069 | S83: 0.00129 | T83: 0.00124 | U83: -0.00032 | V83: OK | X83: 2.79253 | Y83: 0.2447221517 | Z83: 0.316994141 | AB83: =TEXT($Y83, "0" & DeciSep() & "00000") & ListSep() & TEXT($Z83, "0" & DeciSep() & "00000") -> 0.24472,0.31699
N84: 0.2455808073 | O84: 0.3169760108 | P84: 8.55592823 | R84: 2.74784 | S84: 0.00619 | T84: -0.00572 | U84: 0.00238 | V84: OK | X84: 2.82743 | Y84: 0.2446426044 | Z84: 0.316763119 | AB84: =TEXT($Y84, "0" & DeciSep() & "00000") & ListSep() & TEXT($Z84, "0" & DeciSep() & "00000") -> 0.24464,0.31676
N85: 0.2544068694 | O85: 0.3160001934 | P85: 8.549036026 | R85: 0.42342 | S85: 0.00341 | T85: 0.00311 | U85: 0.00140 | V85: OK | X85: 2.86234 | Y85: 0.2445711681 | Z85: 0.3165294615 | AB85: =TEXT($Y85, "0" & DeciSep() & "00000") & ListSep() & TEXT($Z85, "0" & DeciSep() & "00000") -> 0.24457,0.31653
N86: 0.249402985 | O86: 0.3178604543 | P86: 8.572762489 | R86: 2.09774 | S86: 0.00377 | T86: -0.00190 | U86: 0.00326 | V86: OK | X86: 2.89725 | Y86: 0.2445079299 | Z86: 0.3162934533 | AB86: =TEXT($Y86, "0" & DeciSep() & "00000") & ListSep() & TEXT($Z86, "0" & DeciSep() & "00000") -> 0.24451,0.31629
N87: 0.2484091669 | O87: 0.311721772 | P87: 8.39166069 | R87: -2.35838 | S87: 0.00408 | T87: -0.00289 | U87: -0.00288 | V87: OK | X87: 2.93215 | Y87: 0.2444529668 | Z87: 0.3160553818 | AB87: =TEXT($Y87, "0" & DeciSep() & "00000") & ListSep() & TEXT($Z87, "0" & DeciSep() & "00000") -> 0.24445,0.31606
N88: 0.2473279387 | O88: 0.3133629262 | P88: 8.428565979 | R88: -2.83967 | S88: 0.00416 | T88: -0.00397 | U88: -0.00124 | V88: OK | X88: 2.96706 | Y88: 0.2444063457 | Z88: 0.3158155372 | AB88: =TEXT($Y88, "0" & DeciSep() & "00000") & ListSep() & TEXT($Z88, "0" & DeciSep() & "00000") -> 0.24441,0.31582
N89: 0.2530425787 | O89: 0.3090372682 | P89: 8.347234726 | R89: -1.26722 | S89: 0.00583 | T89: 0.00174 | U89: -0.00556 | V89: OK | X89: 3.00197 | Y89: 0.2443681235 | Z89: 0.3155742117 | AB89: =TEXT($Y89, "0" & DeciSep() & "00000") & ListSep() & TEXT($Z89, "0" & DeciSep() & "00000") -> 0.24437,0.31557
N90: 0.2574840188 | O90: 0.3206426501 | P90: 8.786897659 | R90: 0.77384 | S90: 0.00865 | T90: 0.00618 | U90: 0.00604 | V90: NG | X90: 3.03687 | Y90: 0.2443383467 | Z90: 0.3153316992 | AB90: =TEXT($Y90, "0" & DeciSep() & "00000") & ListSep() & TEXT($Z90, "0" & DeciSep() & "00000") -> 0.24434,0.31533
N91: 0.2520545125 | O91: 0.3164581656 | P91: 8.616014481 | R91: 1.18508 | S91: 0.00201 | T91: 0.00075 | U91: 0.00186 | V91: OK | X91: 3.07178 | Y91: 0.2443170516 | Z91: 0.3150882953 | AB91: =TEXT($Y91, "0" & DeciSep() & "00000") & ListSep() & TEXT($Z91, "0" & DeciSep() & "00000") -> 0.24432,0.31509
N92: 0.2477746457 | O92: 0.3164615631 | P92: 8.546617508 | R92: 2.65576 | S92: 0.00399 | T92: -0.00353 | U92: 0.00186 | V92: OK | X92: 3.10669 | Y92: 0.2443042642 | Z92: 0.3148442965 | AB92: =TEXT($Y92, "0" & DeciSep() & "00000") & ListSep() & TEXT($Z92, "0" & DeciSep() & "00000") -> 0.24430,0.31484
N93: 0.2521992028 | O93: 0.3217770159 | P93: 8.71967411 | R93: 1.44616 | S93: 0.00723 | T93: 0.00090 | U93: 0.00718 | V93: NG | X93: 3.14159 | Y93: 0.2443 | Z93: 0.3146 | AB93: =TEXT($Y93, "0" & DeciSep() & "00000") & ListSep() & TEXT($Z93, "0" & DeciSep() & "00000") -> 0.24430,0.31460
N94: 0.2555084527 | O94: 0.3162203133 | P94: 8.55046463 | R94: 0.36752 | S94: 0.00451 | T94: 0.00421 | U94: 0.00162 | V94: OK | X94: 3.17650 | Y94: 0.2443042642 | Z94: 0.3143557035 | AB94: =TEXT($Y94, "0" & DeciSep() & "00000") & ListSep() & TEXT($Z94, "0" & DeciSep() & "00000") -> 0.24430,0.31436
N95: 0.2506251931 | O95: 0.3091986775 | P95: 8.346921921 | R95: -1.69509 | S95: 0.00544 | T95: -0.00067 | U95: -0.00540 | V95: OK | X95: 3.21141 | Y95: 0.2443170516 | Z95: 0.3141117047 | AB95: =TEXT($Y95, "0" & DeciSep() & "00000") & ListSep() & TEXT($Z95, "0" & DeciSep() & "00000") -> 0.24432,0.31411
N96: 0.2468347549 | O96: 0.3167113662 | P96: 8.516735077 | R96: 2.69990 | S96: 0.00494 | T96: -0.00447 | U96: 0.00211 | V96: OK | X96: 3.24631 | Y96: 0.2443383467 | Z96: 0.3138683008 | AB96: =TEXT($Y96, "0" & DeciSep() & "00000") & ListSep() & TEXT($Z96, "0" & DeciSep() & "00000") -> 0.24434,0.31387
N97: 0.2494529784 | O97: 0.317878902 | P97: 8.525052071 | R97: 2.08380 | S97: 0.00376 | T97: -0.00185 | U97: 0.00328 | V97: OK | X97: 3.28122 | Y97: 0.2443681235 | Z97: 0.3136257883 | AB97: =TEXT($Y97, "0" & DeciSep() & "00000") & ListSep() & TEXT($Z97, "0" & DeciSep() & "00000") -> 0.24437,0.31363
N98: 0.2500437796 | O98: 0.3132823408 | P98: 8.408916473 | R98: -2.33233 | S98: 0.00182 | T98: -0.00126 | U98: -0.00132 | V98: OK | X98: 3.31613 | Y98: 0.2444063457 | Z98: 0.3133844628 | AB98: =TEXT($Y98, "0" & DeciSep() & "00000") & ListSep() & TEXT($Z98, "0" & DeciSep() & "00000") -> 0.24441,0.31338
N99: 0.2519719005 | O99: 0.3131399155 | P99: 8.408594131 | R99: -1.13951 | S99: 0.00161 | T99: 0.00067 | U99: -0.00146 | V99: OK | X99: 3.35103 | Y99: 0.2444529668 | Z99: 0.3131446182 | AB99: =TEXT($Y99, "0" & DeciSep() & "00000") & ListSep() & TEXT($Z99, "0" & DeciSep() & "00000") -> 0.24445,0.31314
N100: 0.2497080564 | O100: 0.3136969209 | P100: 8.450678825 | R100: -2.62558 | S100: 0.00183 | T100: -0.00159 | U100: -0.00090 | V100: OK | X100: 3.38594 | Y100: 0.2445079299 | Z100: 0.3129065467 | AB100: =TEXT($Y100, "0" & DeciSep() & "00000") & ListSep() & TEXT($Z100, "0" & DeciSep() & "00000") -> 0.24451,0.31291
N101: 0.2482705414 | O101: 0.3166602552 | P101: 8.517821312 | R101: 2.54437 | S101: 0.00366 | T101: -0.00303 | U101: 0.00206 | V101: OK | X101: 3.42085 | Y101: 0.2445711681 | Z101: 0.3126705385 | AB101: =TEXT($Y101, "0" & DeciSep() & "00000") & ListSep() & TEXT($Z101, "0" & DeciSep() & "00000") -> 0.24457,0.31267
N102: 0.2490062714 | O102: 0.314562887 | P102: 8.467292786 | R102: -3.12541 | S102: 0.00229 | T102: -0.00229 | U102: -0.00004 | V102: OK | X102: 3.45575 | Y102: 0.2446426044 | Z102: 0.312436881 | AB102: =TEXT($Y102, "0" & DeciSep() & "00000") & ListSep() & TEXT($Z102, "0" & DeciSep() & "00000") -> 0.24464,0.31244
N103: 0.2499243766 | O103: 0.306283772 | P103: 8.268033981 | R103: -1.73473 | S103: 0.00843 | T103: -0.00138 | U103: -0.00832 | V103: NG | X103: 3.49066 | Y103: 0.2447221517 | Z103: 0.312205859 | AB103: =TEXT($Y103, "0" & DeciSep() & "00000") & ListSep() & TEXT($Z103, "0" & DeciSep() & "00000") -> 0.24472,0.31221
N104: 0.2478045672 | O104: 0.3152109683 | P104: 8.521759987 | R104: 2.96855 | S104: 0.00355 | T104: -0.00350 | U104: 0.00061 | V104: OK | X104: 3.52557 | Y104: 0.244809713 | Z104: 0.3119777538 | AB104: =TEXT($Y104, "0" & DeciSep() & "00000") & ListSep() & TEXT($Z104, "0" & DeciSep() & "00000") -> 0.24481,0.31198
N105: 0.2514491677 | O105: 0.3152295351 | P105: 8.527179718 | R105: 1.33814 | S105: 0.00065 | T105: 0.00015 | U105: 0.00063 | V105: OK | X105: 3.56047 | Y105: 0.2449051818 | Z105: 0.3117528435 | AB105: =TEXT($Y105, "0" & DeciSep() & "00000") & ListSep() & TEXT($Z105, "0" & DeciSep() & "00000") -> 0.24491,0.31175
N106: 0.2463307083 | O106: 0.3112895191 | P106: 8.382813454 | R106: -2.55392 | S106: 0.00597 | T106: -0.00497 | U106: -0.00331 | V106: OK | X106: 3.59538 | Y106: 0.2450084417 | Z106: 0.311531402 | AB106: =TEXT($Y106, "0" & DeciSep() & "00000") & ListSep() & TEXT($Z106, "0" & DeciSep() & "00000") -> 0.24501,0.31153
N107: 0.2505917847 | O107: 0.3168560266 | P107: 8.609827995 | R107: 1.87498 | S107: 0.00236 | T107: -0.00071 | U107: 0.00226 | V107: OK | X107: 3.63028 | Y107: 0.2451193668 | Z107: 0.3113136991 | AB107: =TEXT($Y107, "0" & DeciSep() & "00000") & ListSep() & TEXT($Z107, "0" & DeciSep() & "00000") -> 0.24512,0.31131
N108: 0.2506075203 | O108: 0.3169949651 | P108: 8.549559593 | R108: 1.85226 | S108: 0.00249 | T108: -0.00069 | U108: 0.00239 | V108: OK | X108: 3.66519 | Y108: 0.2452378222 | Z108: 0.3111 | AB108: =TEXT($Y108, "0" & DeciSep() & "00000") & ListSep() & TEXT($Z108, "0" & DeciSep() & "00000") -> 0.24524,0.31110
N109: 0.2512995005 | O109: 0.3110562265 | P109: 8.442769051 | R109: -1.57094 | S109: 0.00354 | T109: -0.00000 | U109: -0.00354 | V109: OK | X109: 3.70010 | Y109: 0.2453636633 | Z109: 0.3108905652 | AB109: =TEXT($Y109, "0" & DeciSep() & "00000") & ListSep() & TEXT($Z109, "0" & DeciSep() & "00000") -> 0.24536,0.31089
N110: 0.2584344745 | O110: 0.3146237135 | P110: 8.458415031 | R110: 0.00332 | S110: 0.00713 | T110: 0.00713 | U110: 0.00002 | V110: NG | X110: 3.73500 | Y110: 0.245496737 | Z110: 0.3106856497 | AB110: =TEXT($Y110, "0" & DeciSep() & "00000") & ListSep() & TEXT($Z110, "0" & DeciSep() & "00000") -> 0.24550,0.31069
N111: 0.2488271743 | O111: 0.3118892014 | P111: 8.420258522 | R111: -2.31032 | S111: 0.00367 | T111: -0.00247 | U111: -0.00271 | V111: OK | X111: 3.76991 | Y111: 0.245636881 | Z111: 0.3104855032 | AB111: =TEXT($Y111, "0" & DeciSep() & "00000") & ListSep() & TEXT($Z111, "0" & DeciSep() & "00000") -> 0.24564,0.31049
N112: 0.2502744198 | O112: 0.3211753666 | P112: 8.671585083 | R112: 1.72552 | S112: 0.00665 | T112: -0.00103 | U112: 0.00658 | V112: OK | X112: 3.80482 | Y112: 0.2457839247 | Z112: 0.3102903697 | AB112: =TEXT($Y112, "0" & DeciSep() & "00000") & ListSep() & TEXT($Z112, "0" & DeciSep() & "00000") -> 0.24578,0.31029
N113: 0.256062299 | O113: 0.3176865578 | P113: 8.639860153 | R113: 0.57505 | S113: 0.00568 | T113: 0.00476 | U113: 0.00309 | V113: OK | X113: 3.83972 | Y113: 0.2459376889 | Z113: 0.3101004867 | AB113: =TEXT($Y113, "0" & DeciSep() & "00000") & ListSep() & TEXT($Z113, "0" & DeciSep() & "00000") -> 0.24594,0.31010
N114: 0.2544139922 | O114: 0.3145564198 | P114: 8.50375843 | R114: -0.01399 | S114: 0.00311 | T114: 0.00311 | U114: -0.00004 | V114: OK | X114: 3.87463 | Y114: 0.2460979862 | Z114: 0.3099160858 | AB114: =TEXT($Y114, "0" & DeciSep() & "00000") & ListSep() & TEXT($Z114, "0" & DeciSep() & "00000") -> 0.24610,0.30992
N115: 0.2479286343 | O115: 0.3110742569 | P115: 8.378341675 | R115: -2.33382 | S115: 0.00488 | T115: -0.00337 | U115: -0.00353 | V115: OK | X115: 3.90954 | Y115: 0.2462646214 | Z115: 0.3097373914 | AB115: =TEXT($Y115, "0" & DeciSep() & "00000") & ListSep() & TEXT($Z115, "0" & DeciSep() & "00000") -> 0.24626,0.30974
N116: 0.2476094365 | O116: 0.315782845 | P116: 8.519242287 | R116: 2.83143 | S116: 0.00388 | T116: -0.00369 | U116: 0.00118 | V116: OK | X116: 3.94444 | Y116: 0.2464373914 | Z116: 0.3095646214 | AB116: =TEXT($Y116, "0" & DeciSep() & "00000") & ListSep() & TEXT($Z116, "0" & DeciSep() & "00000") -> 0.24644,0.30956
N117: 0.2484957278 | O117: 0.316958487 | P117: 8.532007217 | R117: 2.44233 | S117: 0.00366 | T117: -0.00280 | U117: 0.00236 | V117: OK | X117: 3.97935 | Y117: 0.2466160858 | Z117: 0.3093979862 | AB117: =TEXT($Y117, "0" & DeciSep() & "00000") & ListSep() & TEXT($Z117, "0" & DeciSep() & "00000") -> 0.24662,0.30940
N118: 0.2458057255 | O118: 0.3115098178 | P118: 8.354618073 | R118: -2.62925 | S118: 0.00630 | T118: -0.00549 | U118: -0.00309 | V118: OK | X118: 4.01426 | Y118: 0.2468004867 | Z118: 0.3092376889 | AB118: =TEXT($Y118, "0" & DeciSep() & "00000") & ListSep() & TEXT($Z118, "0" & DeciSep() & "00000") -> 0.24680,0.30924
N119: 0.2529939413 | O119: 0.3161816299 | P119: 8.570275307 | R119: 0.75112 | S119: 0.00232 | T119: 0.00169 | U119: 0.00158 | V119: OK | X119: 4.04916 | Y119: 0.2469903697 | Z119: 0.3090839247 | AB119: =TEXT($Y119, "0" & DeciSep() & "00000") & ListSep() & TEXT($Z119, "0" & DeciSep() & "00000") -> 0.24699,0.30908
N120: 0.2514930964 | O120: 0.3133547008 | P120: 8.49455452 | R120: -1.41696 | S120: 0.00126 | T120: 0.00019 | U120: -0.00125 | V120: OK | X120: 4.08407 | Y120: 0.2471855032 | Z120: 0.308936881 | AB120: =TEXT($Y120, "0" & DeciSep() & "00000") & ListSep() & TEXT($Z120, "0" & DeciSep() & "00000") -> 0.24719,0.30894
N121: 0.2505300939 | O121: 0.3126352429 | P121: 8.464154243 | R121: -1.94426 | S121: 0.00211 | T121: -0.00077 | U121: -0.00196 | V121: OK | X121: 4.11898 | Y121: 0.2473856497 | Z121: 0.308796737 | AB121: =TEXT($Y121, "0" & DeciSep() & "00000") & ListSep() & TEXT($Z121, "0" & DeciSep() & "00000") -> 0.24739,0.30880
N122: 0.2510171831 | O122: 0.3126874268 | P122: 8.404093742 | R122: -1.71760 | S122: 0.00193 | T122: -0.00028 | U122: -0.00191 | V122: OK | X122: 4.15388 | Y122: 0.2475905652 | Z122: 0.3086636633 | AB122: =TEXT($Y122, "0" & DeciSep() & "00000") & ListSep() & TEXT($Z122, "0" & DeciSep() & "00000") -> 0.24759,0.30866
N123: 0.2499359995 | O123: 0.3180175722 | P123: 8.621995926 | R123: 1.95054 | S123: 0.00368 | T123: -0.00136 | U123: 0.00342 | V123: OK | X123: 4.18879 | Y123: 0.2478 | Z123: 0.3085378222 | AB123: =TEXT($Y123, "0" & DeciSep() & "00000") & ListSep() & TEXT($Z123, "0" & DeciSep() & "00000") -> 0.24780,0.30854
N124: 0.2487713397 | O124: 0.3190739155 | P124: 8.631859779 | R124: 2.08524 | S124: 0.00514 | T124: -0.00253 | U124: 0.00447 | V124: OK | X124: 4.22370 | Y124: 0.2480136991 | Z124: 0.3084193668 | AB124: =TEXT($Y124, "0" & DeciSep() & "00000") & ListSep() & TEXT($Z124, "0" & DeciSep() & "00000") -> 0.24801,0.30842
N125: 0.251134783 | O125: 0.3215558529 | P125: 8.714297295 | R125: 1.59454 | S125: 0.00696 | T125: -0.00017 | U125: 0.00696 | V125: OK | X125: 4.25860 | Y125: 0.248231402 | Z125: 0.3083084417 | AB125: =TEXT($Y125, "0" & DeciSep() & "00000") & ListSep() & TEXT($Z125, "0" & DeciSep() & "00000") -> 0.24823,0.30831
N126: 0.2540079355 | O126: 0.3113684356 | P126: 8.370117188 | R126: -0.87333 | S126: 0.00422 | T126: 0.00271 | U126: -0.00323 | V126: OK | X126: 4.29351 | Y126: 0.2484528435 | Z126: 0.3082051818 | AB126: =TEXT($Y126, "0" & DeciSep() & "00000") & ListSep() & TEXT($Z126, "0" & DeciSep() & "00000") -> 0.24845,0.30821
N127: 0.2552813292 | O127: 0.3099488318 | P127: 8.334592819 | R127: -0.86284 | S127: 0.00612 | T127: 0.00398 | U127: -0.00465 | V127: OK | X127: 4.32842 | Y127: 0.2486777538 | Z127: 0.308109713 | AB127: =TEXT($Y127, "0" & DeciSep() & "00000") & ListSep() & TEXT($Z127, "0" & DeciSep() & "00000") -> 0.24868,0.30811
N128: 0.2508862019 | O128: 0.3195638359 | P128: 8.683916092 | R128: 1.65397 | S128: 0.00498 | T128: -0.00041 | U128: 0.00496 | V128: OK | X128: 4.36332 | Y128: 0.248905859 | Z128: 0.3080221517 | AB128: =TEXT($Y128, "0" & DeciSep() & "00000") & ListSep() & TEXT($Z128, "0" & DeciSep() & "00000") -> 0.24891,0.30802
N129: 0.2542682886 | O129: 0.3181096017 | P129: 8.579001427 | R129: 0.86877 | S129: 0.00460 | T129: 0.00297 | U129: 0.00351 | V129: OK | X129: 4.39823 | Y129: 0.249136881 | Z129: 0.3079426044 | AB129: =TEXT($Y129, "0" & DeciSep() & "00000") & ListSep() & TEXT($Z129, "0" & DeciSep() & "00000") -> 0.24914,0.30794
N130: 0.2509677112 | O130: 0.3164959848 | P130: 8.565828323 | R130: 1.74429 | S130: 0.00192 | T130: -0.00033 | U130: 0.00190 | V130: OK | X130: 4.43314 | Y130: 0.2493705385 | Z130: 0.3078711681 | AB130: =TEXT($Y130, "0" & DeciSep() & "00000") & ListSep() & TEXT($Z130, "0" & DeciSep() & "00000") -> 0.24937,0.30787
N131: 0.2522348762 | O131: 0.3142528534 | P131: 8.565250397 | R131: =(ATAN2($N131-$A$3, $O131-$A$6))-$C$15 -> -0.35555 | S131: =SQRT(($N131-$A$3)^2+($O131-$A$6)^2) -> 0.00100 | T131: 0.00093 | U131: -0.00035 | V131: =IF(($T131/$A$9)^2 +($U131/$A$12)^2<=1, "OK", "NG") -> OK | X131: 4.46804 | Y131: =$A$3+$A$9*COS($X131)*COS($C$15)-$A$12*SIN($X131)*SIN($C$15) -> 0.2496065467 | Z131: =$A$6+$A$9*COS($X131)*SIN($C$15)+$A$12*SIN($X131)*COS($C$15) -> 0.3078079299 | AB131: =TEXT($Y131, "0" & DeciSep() & "00000") & ListSep() & TEXT($Z131, "0" & DeciSep() & "00000") -> 0.24961,0.30781
N132: 0.2466628999 | O132: 0.3109425306 | P132: 8.351849556 | R132: -2.47375 | S132: 0.00591 | T132: =$S132*COS($R132) -> -0.00464 | U132: =$S132*SIN($R132) -> -0.00366 | V132: OK | X132: 4.50295 | Y132: 0.2498446182 | Z132: 0.3077529668 | AB132: =TEXT($Y132, "0" & DeciSep() & "00000") & ListSep() & TEXT($Z132, "0" & DeciSep() & "00000") -> 0.24984,0.30775
N133: 0.2525796592 | O133: 0.3144397736 | P133: 8.533370018 | R133: -0.12456 | S133: 0.00129 | T133: 0.00128 | U133: -0.00016 | V133: OK | X133: 4.53786 | Y133: 0.2500844628 | Z133: 0.3077063457 | AB133: =TEXT($Y133, "0" & DeciSep() & "00000") & ListSep() & TEXT($Z133, "0" & DeciSep() & "00000") -> 0.25008,0.30771
N134: 0.253757149 | O134: 0.3159435987 | P134: 8.538704872 | R134: 0.50039 | S134: 0.00280 | T134: 0.00246 | U134: 0.00134 | V134: OK | X134: 4.57276 | Y134: 0.2503257883 | Z134: 0.3076681235 | AB134: =TEXT($Y134, "0" & DeciSep() & "00000") & ListSep() & TEXT($Z134, "0" & DeciSep() & "00000") -> 0.25033,0.30767
N135: 0.2529726326 | O135: 0.3183301985 | P135: 8.654794693 | R135: 1.14927 | S135: 0.00409 | T135: 0.00167 | U135: 0.00373 | V135: OK | X135: 4.60767 | Y135: 0.2505683008 | Z135: 0.3076383467 | AB135: =TEXT($Y135, "0" & DeciSep() & "00000") & ListSep() & TEXT($Z135, "0" & DeciSep() & "00000") -> 0.25057,0.30764
N136: 0.2483520359 | O136: 0.3184927702 | P136: 8.639109612 | R136: 2.21895 | S136: 0.00488 | T136: -0.00295 | U136: 0.00389 | V136: OK | X136: 4.64258 | Y136: 0.2508117047 | Z136: 0.3076170516 | AB136: =TEXT($Y136, "0" & DeciSep() & "00000") & ListSep() & TEXT($Z136, "0" & DeciSep() & "00000") -> 0.25081,0.30762
N137: 0.2533282638 | O137: 0.3210664392 | P137: 8.704995155 | R137: 1.26685 | S137: 0.00678 | T137: 0.00203 | U137: 0.00647 | V137: OK | X137: 4.67748 | Y137: 0.2510557035 | Z137: 0.3076042642 | AB137: =TEXT($Y137, "0" & DeciSep() & "00000") & ListSep() & TEXT($Z137, "0" & DeciSep() & "00000") -> 0.25106,0.30760
N138: 0.2510649562 | O138: 0.3152423203 | P138: 8.482380867 | R138: 1.92159 | S138: 0.00068 | T138: -0.00024 | U138: 0.00064 | V138: OK | X138: 4.71239 | Y138: 0.2513 | Z138: 0.3076 | AB138: =TEXT($Y138, "0" & DeciSep() & "00000") & ListSep() & TEXT($Z138, "0" & DeciSep() & "00000") -> 0.25130,0.30760
N139: 0.2459694892 | O139: 0.3185524344 | P139: 8.643981934 | R139: 2.50357 | S139: 0.00664 | T139: -0.00533 | U139: 0.00395 | V139: OK | X139: 4.74730 | Y139: 0.2515442965 | Z139: 0.3076042642 | AB139: =TEXT($Y139, "0" & DeciSep() & "00000") & ListSep() & TEXT($Z139, "0" & DeciSep() & "00000") -> 0.25154,0.30760
N140: 0.255441457 | O140: 0.3207196891 | P140: 8.743049622 | R140: 0.97585 | S140: 0.00739 | T140: 0.00414 | U140: 0.00612 | V140: NG | X140: 4.78220 | Y140: 0.2517882953 | Z140: 0.3076170516 | AB140: =TEXT($Y140, "0" & DeciSep() & "00000") & ListSep() & TEXT($Z140, "0" & DeciSep() & "00000") -> 0.25179,0.30762
N141: 0.2522394657 | O141: 0.3067211211 | P141: 8.261001587 | R141: -1.45212 | S141: 0.00793 | T141: 0.00094 | U141: -0.00788 | V141: NG | X141: 4.81711 | Y141: 0.2520316992 | Z141: 0.3076383467 | AB141: =TEXT($Y141, "0" & DeciSep() & "00000") & ListSep() & TEXT($Z141, "0" & DeciSep() & "00000") -> 0.25203,0.30764
N142: 0.2502607703 | O142: 0.3132724166 | P142: 8.415186882 | R142: -2.23496 | S142: 0.00169 | T142: -0.00104 | U142: -0.00133 | V142: OK | X142: 4.85202 | Y142: 0.2522742117 | Z142: 0.3076681235 | AB142: =TEXT($Y142, "0" & DeciSep() & "00000") & ListSep() & TEXT($Z142, "0" & DeciSep() & "00000") -> 0.25227,0.30767
N143: 0.2486734688 | O143: 0.3155702353 | P143: 8.525992393 | R143: 2.78774 | S143: 0.00280 | T143: -0.00263 | U143: 0.00097 | V143: OK | X143: 4.88692 | Y143: 0.2525155372 | Z143: 0.3077063457 | AB143: =TEXT($Y143, "0" & DeciSep() & "00000") & ListSep() & TEXT($Z143, "0" & DeciSep() & "00000") -> 0.25252,0.30771
N144: 0.2541051209 | O144: 0.3192258775 | P144: 8.711769104 | R144: 1.02569 | S144: 0.00541 | T144: 0.00281 | U144: 0.00463 | V144: OK | X144: 4.92183 | Y144: 0.2527553818 | Z144: 0.3077529668 | AB144: =TEXT($Y144, "0" & DeciSep() & "00000") & ListSep() & TEXT($Z144, "0" & DeciSep() & "00000") -> 0.25276,0.30775
N145: 0.2516256869 | O145: 0.3077308834 | P145: 8.262461662 | R145: -1.52342 | S145: 0.00688 | T145: 0.00033 | U145: -0.00687 | V145: OK | X145: 4.95674 | Y145: 0.2529934533 | Z145: 0.3078079299 | AB145: =TEXT($Y145, "0" & DeciSep() & "00000") & ListSep() & TEXT($Z145, "0" & DeciSep() & "00000") -> 0.25299,0.30781
N146: 0.2543204725 | O146: 0.310148865 | P146: 8.360189438 | R146: -0.97459 | S146: 0.00538 | T146: 0.00302 | U146: -0.00445 | V146: OK | X146: 4.99164 | Y146: 0.2532294615 | Z146: 0.3078711681 | AB146: =TEXT($Y146, "0" & DeciSep() & "00000") & ListSep() & TEXT($Z146, "0" & DeciSep() & "00000") -> 0.25323,0.30787
N147: 0.2518321276 | O147: 0.3200963438 | P147: 8.62242794 | R147: 1.47428 | S147: 0.00552 | T147: 0.00053 | U147: 0.00550 | V147: OK | X147: 5.02655 | Y147: 0.253463119 | Z147: 0.3079426044 | AB147: =TEXT($Y147, "0" & DeciSep() & "00000") & ListSep() & TEXT($Z147, "0" & DeciSep() & "00000") -> 0.25346,0.30794
N148: 0.2508273423 | O148: 0.3202683032 | P148: 8.656184196 | R148: 1.65399 | S148: 0.00569 | T148: -0.00047 | U148: 0.00567 | V148: OK | X148: 5.06145 | Y148: 0.253694141 | Z148: 0.3080221517 | AB148: =TEXT($Y148, "0" & DeciSep() & "00000") & ListSep() & TEXT($Z148, "0" & DeciSep() & "00000") -> 0.25369,0.30802
N149: 0.2521564364 | O149: 0.3119680285 | P149: 8.445001602 | R149: -1.25621 | S149: 0.00277 | T149: 0.00086 | U149: -0.00263 | V149: OK | X149: 5.09636 | Y149: 0.2539222462 | Z149: 0.308109713 | AB149: =TEXT($Y149, "0" & DeciSep() & "00000") & ListSep() & TEXT($Z149, "0" & DeciSep() & "00000") -> 0.25392,0.30811
N150: 0.2518039346 | O150: 0.3110196292 | P150: 8.37263298 | R150: -1.43097 | S150: 0.00362 | T150: 0.00050 | U150: -0.00358 | V150: OK | X150: 5.13127 | Y150: 0.2541471565 | Z150: 0.3082051818 | AB150: =TEXT($Y150, "0" & DeciSep() & "00000") & ListSep() & TEXT($Z150, "0" & DeciSep() & "00000") -> 0.25415,0.30821
N151: 0.2497515678 | O151: 0.3061244488 | P151: 8.219031334 | R151: -1.75150 | S151: 0.00862 | T151: -0.00155 | U151: -0.00848 | V151: NG | X151: 5.16617 | Y151: 0.254368598 | Z151: 0.3083084417 | AB151: =TEXT($Y151, "0" & DeciSep() & "00000") & ListSep() & TEXT($Z151, "0" & DeciSep() & "00000") -> 0.25437,0.30831
N152: 0.2470155507 | O152: 0.3119849563 | P152: 8.453186989 | R152: -2.59359 | S152: 0.00502 | T152: -0.00428 | U152: -0.00262 | V152: OK | X152: 5.20108 | Y152: 0.2545863009 | Z152: 0.3084193668 | AB152: =TEXT($Y152, "0" & DeciSep() & "00000") & ListSep() & TEXT($Z152, "0" & DeciSep() & "00000") -> 0.25459,0.30842
N153: 0.2529233098 | O153: 0.3152320385 | P153: 8.542392731 | R153: 0.37129 | S153: 0.00174 | T153: 0.00162 | U153: 0.00063 | V153: OK | X153: 5.23599 | Y153: 0.2548 | Z153: 0.3085378222 | AB153: =TEXT($Y153, "0" & DeciSep() & "00000") & ListSep() & TEXT($Z153, "0" & DeciSep() & "00000") -> 0.25480,0.30854
N154: 0.2540425956 | O154: 0.3106912673 | P154: 8.405993462 | R154: -0.95896 | S154: 0.00477 | T154: 0.00274 | U154: -0.00391 | V154: OK | X154: 5.27089 | Y154: 0.2550094348 | Z154: 0.3086636633 | AB154: =TEXT($Y154, "0" & DeciSep() & "00000") & ListSep() & TEXT($Z154, "0" & DeciSep() & "00000") -> 0.25501,0.30866
N155: 0.253881216 | O155: 0.3152684867 | P155: 8.503533363 | R155: 0.25341 | S155: 0.00267 | T155: 0.00258 | U155: 0.00067 | V155: OK | X155: 5.30580 | Y155: 0.2552143503 | Z155: 0.308796737 | AB155: =TEXT($Y155, "0" & DeciSep() & "00000") & ListSep() & TEXT($Z155, "0" & DeciSep() & "00000") -> 0.25521,0.30880
N156: 0.2541420758 | O156: 0.319421351 | P156: 8.634437561 | R156: 1.03815 | S156: 0.00560 | T156: 0.00284 | U156: 0.00482 | V156: OK | X156: 5.34071 | Y156: 0.2554144968 | Z156: 0.308936881 | AB156: =TEXT($Y156, "0" & DeciSep() & "00000") & ListSep() & TEXT($Z156, "0" & DeciSep() & "00000") -> 0.25541,0.30894
N157: 0.2502601743 | O157: 0.3187949359 | P157: 8.623470306 | R157: 1.81378 | S157: 0.00432 | T157: -0.00104 | U157: 0.00419 | V157: OK | X157: 5.37561 | Y157: 0.2556096303 | Z157: 0.3090839247 | AB157: =TEXT($Y157, "0" & DeciSep() & "00000") & ListSep() & TEXT($Z157, "0" & DeciSep() & "00000") -> 0.25561,0.30908
N158: 0.2472403497 | O158: 0.3061222732 | P158: 8.182092667 | R158: -2.01739 | S158: 0.00940 | T158: -0.00406 | U158: -0.00848 | V158: NG | X158: 5.41052 | Y158: 0.2557995133 | Z158: 0.3092376889 | AB158: =TEXT($Y158, "0" & DeciSep() & "00000") & ListSep() & TEXT($Z158, "0" & DeciSep() & "00000") -> 0.25580,0.30924
N159: 0.2472859025 | O159: 0.3097288013 | P159: 8.300158501 | R159: -2.26003 | S159: 0.00631 | T159: -0.00401 | U159: -0.00487 | V159: OK | X159: 5.44543 | Y159: 0.2559839142 | Z159: 0.3093979862 | AB159: =TEXT($Y159, "0" & DeciSep() & "00000") & ListSep() & TEXT($Z159, "0" & DeciSep() & "00000") -> 0.25598,0.30940
N160: 0.2524803877 | O160: 0.3127036691 | P160: 8.408135414 | R160: -1.01403 | S160: 0.00223 | T160: 0.00118 | U160: -0.00190 | V160: OK | X160: 5.48033 | Y160: 0.2561626086 | Z160: 0.3095646214 | AB160: =TEXT($Y160, "0" & DeciSep() & "00000") & ListSep() & TEXT($Z160, "0" & DeciSep() & "00000") -> 0.25616,0.30956
N161: 0.2553667426 | O161: 0.315092206 | P161: 8.529305458 | R161: 0.12045 | S161: 0.00410 | T161: 0.00407 | U161: 0.00049 | V161: OK | X161: 5.51524 | Y161: 0.2563353786 | Z161: 0.3097373914 | AB161: =TEXT($Y161, "0" & DeciSep() & "00000") & ListSep() & TEXT($Z161, "0" & DeciSep() & "00000") -> 0.25634,0.30974
N162: 0.2496169806 | O162: 0.3111524582 | P162: 8.392683029 | R162: -2.02494 | S162: 0.00384 | T162: -0.00168 | U162: -0.00345 | V162: OK | X162: 5.55015 | Y162: 0.2565020138 | Z162: 0.3099160858 | AB162: =TEXT($Y162, "0" & DeciSep() & "00000") & ListSep() & TEXT($Z162, "0" & DeciSep() & "00000") -> 0.25650,0.30992
N163: 0.2499841303 | O163: 0.3128367364 | P163: 8.454587936 | R163: -2.21191 | S163: 0.00220 | T163: -0.00132 | U163: -0.00176 | V163: OK | X163: 5.58505 | Y163: 0.2566623111 | Z163: 0.3101004867 | AB163: =TEXT($Y163, "0" & DeciSep() & "00000") & ListSep() & TEXT($Z163, "0" & DeciSep() & "00000") -> 0.25666,0.31010
N164: 0.2491477728 | O164: 0.3143834174 | P164: 8.433877945 | R164: -3.04130 | S164: 0.00216 | T164: -0.00215 | U164: -0.00022 | V164: OK | X164: 5.61996 | Y164: 0.2568160753 | Z164: 0.3102903697 | AB164: =TEXT($Y164, "0" & DeciSep() & "00000") & ListSep() & TEXT($Z164, "0" & DeciSep() & "00000") -> 0.25682,0.31029
N165: 0.2453241497 | O165: 0.3115465939 | P165: 8.382350922 | R165: -2.66922 | S165: 0.00671 | T165: -0.00598 | U165: -0.00305 | V165: OK | X165: 5.65487 | Y165: 0.256963119 | Z165: 0.3104855032 | AB165: =TEXT($Y165, "0" & DeciSep() & "00000") & ListSep() & TEXT($Z165, "0" & DeciSep() & "00000") -> 0.25696,0.31049
N166: 0.251873672 | O166: 0.3197520971 | P166: 8.632291794 | R166: 1.45991 | S166: 0.00518 | T166: 0.00057 | U166: 0.00515 | V166: OK | X166: 5.68977 | Y166: 0.257103263 | Z166: 0.3106856497 | AB166: =TEXT($Y166, "0" & DeciSep() & "00000") & ListSep() & TEXT($Z166, "0" & DeciSep() & "00000") -> 0.25710,0.31069
N167: 0.2531987429 | O167: 0.3151437044 | P167: 8.58711338 | R167: 0.27889 | S167: 0.00198 | T167: 0.00190 | U167: 0.00054 | V167: OK | X167: 5.72468 | Y167: 0.2572363367 | Z167: 0.3108905652 | AB167: =TEXT($Y167, "0" & DeciSep() & "00000") & ListSep() & TEXT($Z167, "0" & DeciSep() & "00000") -> 0.25724,0.31089
N168: 0.250685811 | O168: 0.31115219 | P168: 8.385398865 | R168: -1.74709 | S168: 0.00350 | T168: -0.00061 | U168: -0.00345 | V168: OK | X168: 5.75959 | Y168: 0.2573621778 | Z168: 0.3111 | AB168: =TEXT($Y168, "0" & DeciSep() & "00000") & ListSep() & TEXT($Z168, "0" & DeciSep() & "00000") -> 0.25736,0.31110
N169: 0.2524660826 | O169: 0.3152683675 | P169: 8.529582024 | R169: 0.52046 | S169: 0.00134 | T169: 0.00117 | U169: 0.00067 | V169: OK | X169: 5.79449 | Y169: 0.2574806332 | Z169: 0.3113136991 | AB169: =TEXT($Y169, "0" & DeciSep() & "00000") & ListSep() & TEXT($Z169, "0" & DeciSep() & "00000") -> 0.25748,0.31131
N170: 0.2477388978 | O170: 0.3180744946 | P170: 8.589449883 | R170: 2.36850 | S170: 0.00498 | T170: -0.00356 | U170: 0.00347 | V170: OK | X170: 5.82940 | Y170: 0.2575915583 | Z170: 0.311531402 | AB170: =TEXT($Y170, "0" & DeciSep() & "00000") & ListSep() & TEXT($Z170, "0" & DeciSep() & "00000") -> 0.25759,0.31153
N171: 0.252191484 | O171: 0.3142240345 | P171: 8.493741035 | R171: -0.39910 | S171: 0.00097 | T171: 0.00089 | U171: -0.00038 | V171: OK | X171: 5.86431 | Y171: 0.2576948182 | Z171: 0.3117528435 | AB171: =TEXT($Y171, "0" & DeciSep() & "00000") & ListSep() & TEXT($Z171, "0" & DeciSep() & "00000") -> 0.25769,0.31175
N172: 0.2510207891 | O172: 0.3146285117 | P172: 8.463434219 | R172: 3.03983 | S172: 0.00028 | T172: -0.00028 | U172: 0.00003 | V172: OK | X172: 5.89921 | Y172: 0.257790287 | Z172: 0.3119777538 | AB172: =TEXT($Y172, "0" & DeciSep() & "00000") & ListSep() & TEXT($Z172, "0" & DeciSep() & "00000") -> 0.25779,0.31198
N173: 0.2544995844 | O173: 0.3160954714 | P173: 8.524927139 | R173: 0.43723 | S173: 0.00353 | T173: 0.00320 | U173: 0.00150 | V173: OK | X173: 5.93412 | Y173: 0.2578778483 | Z173: 0.312205859 | AB173: =TEXT($Y173, "0" & DeciSep() & "00000") & ListSep() & TEXT($Z173, "0" & DeciSep() & "00000") -> 0.25788,0.31221
N174: 0.2558838725 | O174: 0.3150759041 | P174: 8.530443192 | R174: 0.10345 | S174: 0.00461 | T174: 0.00458 | U174: 0.00048 | V174: OK | X174: 5.96903 | Y174: 0.2579573956 | Z174: 0.312436881 | AB174: =TEXT($Y174, "0" & DeciSep() & "00000") & ListSep() & TEXT($Z174, "0" & DeciSep() & "00000") -> 0.25796,0.31244
N175: 0.2516339123 | O175: 0.3138921857 | P175: 8.48547554 | R175: -1.13000 | S175: 0.00078 | T175: 0.00033 | U175: -0.00071 | V175: OK | X175: 6.00393 | Y175: 0.2580288319 | Z175: 0.3126705385 | AB175: =TEXT($Y175, "0" & DeciSep() & "00000") & ListSep() & TEXT($Z175, "0" & DeciSep() & "00000") -> 0.25803,0.31267
N176: 0.2538800836 | O176: 0.3178676367 | P176: 8.596651077 | R176: 0.90244 | S176: 0.00416 | T176: 0.00258 | U176: 0.00327 | V176: OK | X176: 6.03884 | Y176: 0.2580920701 | Z176: 0.3129065467 | AB176: =TEXT($Y176, "0" & DeciSep() & "00000") & ListSep() & TEXT($Z176, "0" & DeciSep() & "00000") -> 0.25809,0.31291
N177: 0.2512576282 | O177: 0.3178986013 | P177: 8.614889145 | R177: 1.58364 | S177: 0.00330 | T177: -0.00004 | U177: 0.00330 | V177: OK | X177: 6.07375 | Y177: 0.2581470332 | Z177: 0.3131446182 | AB177: =TEXT($Y177, "0" & DeciSep() & "00000") & ListSep() & TEXT($Z177, "0" & DeciSep() & "00000") -> 0.25815,0.31314
N178: 0.2560291588 | O178: 0.3151422143 | P178: 8.509648323 | R178: 0.11415 | S178: 0.00476 | T178: 0.00473 | U178: 0.00054 | V178: OK | X178: 6.10865 | Y178: 0.2581936543 | Z178: 0.3133844628 | AB178: =TEXT($Y178, "0" & DeciSep() & "00000") & ListSep() & TEXT($Z178, "0" & DeciSep() & "00000") -> 0.25819,0.31338
N179: 0.2534398735 | O179: 0.3178516328 | P179: 8.639060974 | R179: 0.98875 | S179: 0.00389 | T179: 0.00214 | U179: 0.00325 | V179: OK | X179: 6.14356 | Y179: 0.2582318765 | Z179: 0.3136257883 | AB179: =TEXT($Y179, "0" & DeciSep() & "00000") & ListSep() & TEXT($Z179, "0" & DeciSep() & "00000") -> 0.25823,0.31363
N180: 0.2502832413 | O180: 0.3174821138 | P180: 8.583133698 | R180: 1.90995 | S180: 0.00306 | T180: -0.00102 | U180: 0.00288 | V180: OK | X180: 6.17847 | Y180: 0.2582616533 | Z180: 0.3138683008 | AB180: =TEXT($Y180, "0" & DeciSep() & "00000") & ListSep() & TEXT($Z180, "0" & DeciSep() & "00000") -> 0.25826,0.31387
N181: 0.2492323667 | O181: 0.3103014529 | P181: 8.385546684 | R181: -2.01913 | S181: 0.00477 | T181: -0.00207 | U181: -0.00430 | V181: OK | X181: 6.21337 | Y181: 0.2582829484 | Z181: 0.3141117047 | AB181: =TEXT($Y181, "0" & DeciSep() & "00000") & ListSep() & TEXT($Z181, "0" & DeciSep() & "00000") -> 0.25828,0.31411
N182: 0.2541761696 | O182: 0.3180519044 | P182: 8.634565353 | R182: 0.87613 | S182: 0.00449 | T182: 0.00288 | U182: 0.00345 | V182: OK | X182: 6.24828 | Y182: 0.2582957358 | Z182: 0.3143557035 | AB182: =TEXT($Y182, "0" & DeciSep() & "00000") & ListSep() & TEXT($Z182, "0" & DeciSep() & "00000") -> 0.25830,0.31436
N183: 0.2495840192 | O183: 0.3125942051 | P183: 8.407167435 | R183: -2.27848 | S183: 0.00264 | T183: -0.00172 | U183: -0.00201 | V183: OK | X183: 6.28319 | Y183: 0.2583 | Z183: 0.3146 | AB183: =TEXT($Y183, "0" & DeciSep() & "00000") & ListSep() & TEXT($Z183, "0" & DeciSep() & "00000") -> 0.25830,0.31460
N184: 0.2517000437 | O184: 0.3192403316 | P184: 8.626429558 | R184: 1.48480 | S184: 0.00466 | T184: 0.00040 | U184: 0.00464 | V184: OK
N185: 0.2510869205 | O185: 0.3186458349 | P185: 8.623215675 | R185: 1.62341 | S185: 0.00405 | T185: -0.00021 | U185: 0.00405 | V185: OK
N186: 0.2512515783 | O186: 0.3206468523 | P186: 8.646885872 | R186: 1.57880 | S186: 0.00605 | T186: -0.00005 | U186: 0.00605 | V186: OK
N187: 0.2475931346 | O187: 0.3137660325 | P187: 8.439918518 | R187: -2.92030 | S187: 0.00380 | T187: -0.00371 | U187: -0.00083 | V187: OK
N188: 0.2564613521 | O188: 0.31806463 | P188: 8.62066555 | R188: 0.59118 | S188: 0.00622 | T188: 0.00516 | U188: 0.00346 | V188: OK
N189: 0.254270792 | O189: 0.3173806965 | P189: 8.628539085 | R189: 0.75236 | S189: 0.00407 | T189: 0.00297 | U189: 0.00278 | V189: OK
N190: 0.2501045465 | O190: 0.3150078356 | P190: 8.510071754 | R190: 2.81282 | S190: 0.00126 | T190: -0.00120 | U190: 0.00041 | V190: OK
N191: 0.2480122596 | O191: 0.3132844567 | P191: 8.418469429 | R191: -2.76097 | S191: 0.00354 | T191: -0.00329 | U191: -0.00132 | V191: OK
N192: 0.2512264848 | O192: 0.3141316175 | P192: 8.503054619 | R192: -1.72648 | S192: 0.00047 | T192: -0.00007 | U192: -0.00047 | V192: OK
N193: 0.2493703514 | O193: 0.3085285425 | P193: 8.29309082 | R193: -1.87852 | S193: 0.00637 | T193: -0.00193 | U193: -0.00607 | V193: OK
N194: 0.2535673976 | O194: 0.3116890192 | P194: 8.394817352 | R194: -0.90905 | S194: 0.00369 | T194: 0.00227 | U194: -0.00291 | V194: OK
N195: 0.2518061996 | O195: 0.3179671466 | P195: 8.550086021 | R195: =(ATAN2($N195-$A$3, $O195-$A$6))-$C$15 -> 1.42158 | S195: =SQRT(($N195-$A$3)^2+($O195-$A$6)^2) -> 0.00340 | T195: 0.00051 | U195: 0.00337 | V195: =IF(($T195/$A$9)^2 +($U195/$A$12)^2<=1, "OK", "NG") -> OK
N196: 0.250608176 | O196: 0.3127349317 | P196: 8.42540741 | R196: -1.92600 | S196: 0.00199 | T196: =$S196*COS($R196) -> -0.00069 | U196: =$S196*SIN($R196) -> -0.00187 | V196: OK
N197: 0.2469224334 | O197: 0.3159142733 | P197: 8.531663895 | R197: 2.84993 | S197: 0.00457 | T197: -0.00438 | U197: 0.00131 | V197: OK
N198: 0.2474106997 | O198: 0.3123167455 | P198: 8.435844421 | R198: -2.61074 | S198: 0.00451 | T198: -0.00389 | U198: -0.00228 | V198: OK
N199: 0.2545955479 | O199: 0.3146493435 | P199: 8.537508965 | R199: 0.01497 | S199: 0.00330 | T199: 0.00330 | U199: 0.00005 | V199: OK
N200: 0.2489583641 | O200: 0.3127918243 | P200: 8.442783356 | R200: -2.48404 | S200: 0.00296 | T200: -0.00234 | U200: -0.00181 | V200: OK
... 802 more rows
